Department Family,Entity,Date of Payment,Expense Type,Expense Area,Supplier,Voluntary & Community Sector,SME Class,Sole Trader,D-U-N-S Number,Transaction number,PSPES Level 2,Directorate,Narrative,Postal Code,Amount in Sterling,Grant?
"Housing, Communities & Local Government",DLUHC,01/09/2023,Advertising,CFO and Corporate,GUARDIAN NEWS & MEDIA,,Large,,,5106301102,,People Capability & Change C/O,Bronze job ad incl agreed 5% discount -,N1 9GU,546.25,
"Housing, Communities & Local Government",DLUHC,01/09/2023,Agency Staff,CFO and Corporate,ALEXANDER MANN SOLUTIONS LTD,,Large,,,5106301024,,Digital,Agency Staff,EC2N 3AQ,-4174.5,
"Housing, Communities & Local Government",DLUHC,01/09/2023,Agency Staff,CFO and Corporate,ALEXANDER MANN SOLUTIONS LTD,,Large,,,5106301125,Contingent Labour,Digital,Agency Staff,EC2N 3AQ,10162.94,
"Housing, Communities & Local Government",DLUHC,01/09/2023,Agency Staff,CFO and Corporate,ALEXANDER MANN SOLUTIONS LTD,,Large,,,5106301129,,Digital,Agency Staff,EC2N 3AQ,4003.56,
"Housing, Communities & Local Government",DLUHC,01/09/2023,Agency Staff,CFO and Corporate,ALEXANDER MANN SOLUTIONS LTD,,Large,,,5106301130,Contingent Labour,Digital,Agency Staff,EC2N 3AQ,3980.88,
"Housing, Communities & Local Government",DLUHC,01/09/2023,Agency Staff,CFO and Corporate,ALEXANDER MANN SOLUTIONS LTD,,Large,,,5106301131,,Digital,Agency Staff,EC2N 3AQ,7547.26,
"Housing, Communities & Local Government",DLUHC,01/09/2023,Agency Staff,CFO and Corporate,ALEXANDER MANN SOLUTIONS LTD,,Large,,,5106301133,,Digital,Agency Staff,EC2N 3AQ,4840.38,
"Housing, Communities & Local Government",DLUHC,01/09/2023,Agency Staff,CFO and Corporate,ALEXANDER MANN SOLUTIONS LTD,,Large,,,5106301136,,Digital,Agency Staff,EC2N 3AQ,9239.04,
"Housing, Communities & Local Government",DLUHC,01/09/2023,Agency Staff,CFO and Corporate,ALEXANDER MANN SOLUTIONS LTD,,Large,,,5106301137,,Digital,Agency Staff,EC2N 3AQ,6930.6,
"Housing, Communities & Local Government",DLUHC,01/09/2023,Agency Staff,CFO and Corporate,ALEXANDER MANN SOLUTIONS LTD,,Large,,,5106301140,,Digital,Agency Staff,EC2N 3AQ,3980.88,
"Housing, Communities & Local Government",DLUHC,01/09/2023,Agency Staff,CFO and Corporate,ALEXANDER MANN SOLUTIONS LTD,,Large,,,5106301143,,Commercial,Commercial interim - Working in Procurement team ,EC2N 3AQ,4146.78,
"Housing, Communities & Local Government",DLUHC,01/09/2023,Agency Staff,CFO and Corporate,ALEXANDER MANN SOLUTIONS LTD,,Large,,,5106301145,,Digital,Agency Staff,EC2N 3AQ,8292.96,
"Housing, Communities & Local Government",DLUHC,01/09/2023,Agency Staff,CFO and Corporate,ALEXANDER MANN SOLUTIONS LTD,,Large,,,5106301148,,Commercial,Commercial interim - Working in Procurement team ,EC2N 3AQ,9239.04,
"Housing, Communities & Local Government",DLUHC,01/09/2023,Agency Staff,CFO and Corporate,ALEXANDER MANN SOLUTIONS LTD,,Large,,,5106301149,,Digital,Agency Staff,EC2N 3AQ,8862.72,
"Housing, Communities & Local Government",DLUHC,01/09/2023,Agency Staff,CFO and Corporate,ALEXANDER MANN SOLUTIONS LTD,,Large,,,5106301150,,Digital,Agency Staff,EC2N 3AQ,4619.52,
"Housing, Communities & Local Government",DLUHC,01/09/2023,Agency Staff,CFO and Corporate,ALEXANDER MANN SOLUTIONS LTD,,Large,,,5106301157,,Digital,Agency Staff,EC2N 3AQ,4619.52,
"Housing, Communities & Local Government",DLUHC,01/09/2023,Agency Staff,CFO and Corporate,ALEXANDER MANN SOLUTIONS LTD,,Large,,,5106301158,,Digital,Agency Staff,EC2N 3AQ,8007.12,
"Housing, Communities & Local Government",DLUHC,01/09/2023,Agency Staff,CFO and Corporate,ALEXANDER MANN SOLUTIONS LTD,,Large,,,5106301159,,Digital,Agency Staff,EC2N 3AQ,3326.02,
"Housing, Communities & Local Government",DLUHC,01/09/2023,Agency Staff,CFO and Corporate,ALEXANDER MANN SOLUTIONS LTD,,Large,,,5106301161,,Digital,Agency Staff,EC2N 3AQ,2772.24,
"Housing, Communities & Local Government",DLUHC,01/09/2023,Agency Staff,CFO and Corporate,ALEXANDER MANN SOLUTIONS LTD,,Large,,,5106301163,Contingent Labour,Digital,Agency Staff,EC2N 3AQ,8622.96,
"Housing, Communities & Local Government",DLUHC,01/09/2023,Agency Staff,Levelling Up,ALEXANDER MANN SOLUTIONS LTD,,Large,,,5106301134,,Community Investment and Funding Service,Agency Staff,EC2N 3AQ,1960.2,
"Housing, Communities & Local Government",DLUHC,01/09/2023,Agency Staff,Levelling Up,ALEXANDER MANN SOLUTIONS LTD,,Large,,,5106301139,,Community Investment and Funding Service,Agency Staff,EC2N 3AQ,803.64,
"Housing, Communities & Local Government",DLUHC,01/09/2023,Agency Staff,Levelling Up,ALEXANDER MANN SOLUTIONS LTD,,Large,,,5106301142,,Community Investment and Funding Service,Agency Staff,EC2N 3AQ,707.52,
"Housing, Communities & Local Government",DLUHC,01/09/2023,Agency Staff,Levelling Up,ALEXANDER MANN SOLUTIONS LTD,,Large,,,5106301147,,Community Investment and Funding Service,Agency Staff,EC2N 3AQ,760.2,
"Housing, Communities & Local Government",DLUHC,01/09/2023,Agency Staff,Levelling Up,ALEXANDER MANN SOLUTIONS LTD,,Large,,,5106301153,,Community Investment and Funding Service,Agency Staff,EC2N 3AQ,803.64,
"Housing, Communities & Local Government",DLUHC,01/09/2023,Agency Staff,Local Govnmnt Resilience and Communities,ALEXANDER MANN SOLUTIONS LTD,,Large,,,5106301127,,Holocaust Memorial UKHMF,Agency Staff,EC2N 3AQ,3141.25,
"Housing, Communities & Local Government",DLUHC,01/09/2023,Agency Staff,Local Govnmnt Resilience and Communities,ALEXANDER MANN SOLUTIONS LTD,,Large,,,5106301128,,Holocaust Memorial UKHMF,Agency Staff,EC2N 3AQ,2870.36,
"Housing, Communities & Local Government",DLUHC,01/09/2023,Agency Staff,Local Govnmnt Resilience and Communities,ALEXANDER MANN SOLUTIONS LTD,,Large,,,5106301135,,Elections Directorate,Agency Staff,EC2N 3AQ,4003.56,
"Housing, Communities & Local Government",DLUHC,01/09/2023,Agency Staff,Local Govnmnt Resilience and Communities,ALEXANDER MANN SOLUTIONS LTD,,Large,,,5106301144,,Covid 19 Inquiry,Agency Staff,EC2N 3AQ,3118.78,
"Housing, Communities & Local Government",DLUHC,01/09/2023,Agency Staff,Local Govnmnt Resilience and Communities,ALEXANDER MANN SOLUTIONS LTD,,Large,,,5106301146,,Covid 19 Inquiry,Agency Staff,EC2N 3AQ,3465.3,
"Housing, Communities & Local Government",DLUHC,01/09/2023,Agency Staff,Local Govnmnt Resilience and Communities,ALEXANDER MANN SOLUTIONS LTD,,Large,,,5106301156,,Elections Directorate,Agency Staff,EC2N 3AQ,3780.36,
"Housing, Communities & Local Government",DLUHC,01/09/2023,Agency Staff,Regeneration,ALEXANDER MANN SOLUTIONS LTD,,Large,,,5106301160,,Planning Reform,Agency Staff,EC2N 3AQ,4252.86,
"Housing, Communities & Local Government",DLUHC,01/09/2023,Agency Staff,Safer and Greener Buildings,ALEXANDER MANN SOLUTIONS LTD,,Large,,,5106301132,,Building Systems & Net Zero,Agency Staff,EC2N 3AQ,251.05,
"Housing, Communities & Local Government",DLUHC,01/09/2023,Agency Staff,Safer and Greener Buildings,ALEXANDER MANN SOLUTIONS LTD,,Large,,,5106301141,,Intervention Delivery,Agency Staff,EC2N 3AQ,3780.36,
"Housing, Communities & Local Government",DLUHC,01/09/2023,Agency Staff,Safer and Greener Buildings,ALEXANDER MANN SOLUTIONS LTD,,Large,,,5106301151,,Intervention Delivery,Agency Staff,EC2N 3AQ,6930.6,
"Housing, Communities & Local Government",DLUHC,01/09/2023,Agency Staff,Safer and Greener Buildings,ALEXANDER MANN SOLUTIONS LTD,,Large,,,5106301152,,Intervention Delivery,Agency Staff,EC2N 3AQ,4942.92,
"Housing, Communities & Local Government",DLUHC,01/09/2023,Agency Staff,Safer and Greener Buildings,ALEXANDER MANN SOLUTIONS LTD,,Large,,,5106301154,,Intervention Delivery,Agency Staff,EC2N 3AQ,2520.24,
"Housing, Communities & Local Government",DLUHC,01/09/2023,Cap Grants to Local Authorities (DEL),Local Govnmnt Resilience and Communities,LEEDS CITY CNCL,,Micro,,,3700234105,,Homelessness & Rough Sleeping,Grant payable by the Exchequer,LS1 1JF,21000,Yes
"Housing, Communities & Local Government",DLUHC,01/09/2023,Conferences and Meeting Facilities,CFO and Corporate,CALDER CONFERENCES  LTD,,Small,,,2100328871,Business Travel Accommodation,Digital,Conferences,LS16 6RF,1400,
"Housing, Communities & Local Government",DLUHC,01/09/2023,Conferences and Meeting Facilities,Local Govnmnt Resilience and Communities,CALDER CONFERENCES  LTD,,Small,,,2100328871,Business Travel Accommodation,Elections Directorate,Conferences,LS16 6RF,750,
"Housing, Communities & Local Government",DLUHC,01/09/2023,Conferences and Meeting Facilities,Regeneration,CALDER CONFERENCES  LTD,,Small,,,2100328871,Business Travel Accommodation,Leasehold Land & Planning Systems,Conferences and Meeting Facilities,LS16 6RF,361,
"Housing, Communities & Local Government",DLUHC,01/09/2023,Conferences and Meeting Facilities,Regeneration,CALDER CONFERENCES  LTD,,Small,,,2100328871,Business Travel Accommodation,Leasehold Land & Planning Systems,Conferences and Meeting Facilities,LS16 6RF,780,
"Housing, Communities & Local Government",DLUHC,01/09/2023,Conferences and Meeting Facilities,Union & Windsor Framework,CALDER CONFERENCES  LTD,,Small,,,2100328871,Business Travel Accommodation,Union & Devolution,Conferences,LS16 6RF,4927,
"Housing, Communities & Local Government",DLUHC,01/09/2023,Consulting,Local Govnmnt Resilience and Communities,ALEXANDER MANN SOLUTIONS LTD,,Large,,,5106301126,,Holocaust Memorial UKHMF,Agency Staff,EC2N 3AQ,3780.36,
"Housing, Communities & Local Government",DLUHC,01/09/2023,Consulting,Safer and Greener Buildings,DELOITTE  LLP,,Large,,215590489,5106301038,,Remediation Policy,Work to assist Q&A of RAS SI instruction,MK9 1FD,21313.2,
"Housing, Communities & Local Government",DLUHC,01/09/2023,Consulting,Safer and Greener Buildings,JACOBS UK LTD,,Large,,,5106300427,,Remediation Policy,Short term external technical support to,SE1 2QG,62367,
"Housing, Communities & Local Government",DLUHC,01/09/2023,Courier Services,CFO and Corporate,NATURAL ENGLAND,,Public Bodies,,212444538,5106301096,,Property Asset Management,Cambridge Franking,YO1 7PX,304.69,
"Housing, Communities & Local Government",DLUHC,01/09/2023,Current (non AEF) Grants to Local Authorities,Local Govnmnt Resilience and Communities,ADUR DC,,,,227472891,3700234123,,Homelessness & Rough Sleeping,Grant payable by the Exchequer,BN11 1HA,5649,Yes
"Housing, Communities & Local Government",DLUHC,01/09/2023,Current (non AEF) Grants to Local Authorities,Local Govnmnt Resilience and Communities,BASILDON BC,,,,,3700234145,,Homelessness & Rough Sleeping,Grant payable by the Exchequer,SS14 0DF,33535,Yes
"Housing, Communities & Local Government",DLUHC,01/09/2023,Current (non AEF) Grants to Local Authorities,Local Govnmnt Resilience and Communities,BASINGSTOKE & DEANE BC,,,,228328506,3700234157,,Homelessness & Rough Sleeping,Grant payable by the Exchequer,RG21 2AJ,17000,Yes
"Housing, Communities & Local Government",DLUHC,01/09/2023,Current (non AEF) Grants to Local Authorities,Local Govnmnt Resilience and Communities,BCP Council,,,,,3700234147,,Homelessness & Rough Sleeping,Grant payable by the Exchequer,BH2 6DY,22050,Yes
"Housing, Communities & Local Government",DLUHC,01/09/2023,Current (non AEF) Grants to Local Authorities,Local Govnmnt Resilience and Communities,BCP Council,,,,,3700234167,,Homelessness & Rough Sleeping,Grant payable by the Exchequer,BH2 6DY,22050,Yes
"Housing, Communities & Local Government",DLUHC,01/09/2023,Current (non AEF) Grants to Local Authorities,Local Govnmnt Resilience and Communities,BIRMINGHAM CITY CNCL,,,,213780559,3700234166,,Homelessness & Rough Sleeping,Grant payable by the Exchequer,B2 2AJ,115796,Yes
"Housing, Communities & Local Government",DLUHC,01/09/2023,Current (non AEF) Grants to Local Authorities,Local Govnmnt Resilience and Communities,BLACKBURN WITH DARWEN BC,,,,,3700234139,,Homelessness & Rough Sleeping,Grant payable by the Exchequer,BB1 7DY,65402,Yes
"Housing, Communities & Local Government",DLUHC,01/09/2023,Current (non AEF) Grants to Local Authorities,Local Govnmnt Resilience and Communities,BRISTOL CITY CNCL,,,,211103882,3700234121,,Homelessness & Rough Sleeping,Grant payable by the Exchequer,BS3 9FS,64109,Yes
"Housing, Communities & Local Government",DLUHC,01/09/2023,Current (non AEF) Grants to Local Authorities,Local Govnmnt Resilience and Communities,BUCKINGHAMSHIRE COUNCIL,,,,,3700234126,,Homelessness & Rough Sleeping,Grant payable by the Exchequer,HP19 8FF,11082,Yes
"Housing, Communities & Local Government",DLUHC,01/09/2023,Current (non AEF) Grants to Local Authorities,Local Govnmnt Resilience and Communities,BURY MBC,,,,,3700234127,,Homelessness & Rough Sleeping,Grant payable by the Exchequer,BL9 0SW,25000,Yes
"Housing, Communities & Local Government",DLUHC,01/09/2023,Current (non AEF) Grants to Local Authorities,Local Govnmnt Resilience and Communities,Capital Letters (London) Limiited,,,,,3700234103,,Homelessness & Rough Sleeping,Grant payable by the Exchequer,E14 9SH,2250000,Yes
"Housing, Communities & Local Government",DLUHC,01/09/2023,Current (non AEF) Grants to Local Authorities,Local Govnmnt Resilience and Communities,CHELMSFORD BC,,,,,3700234112,,Homelessness & Rough Sleeping,Grant payable by the Exchequer,CM1 1JE,12500,Yes
"Housing, Communities & Local Government",DLUHC,01/09/2023,Current (non AEF) Grants to Local Authorities,Local Govnmnt Resilience and Communities,CITY OF SUNDERLAND,,,,215599312,3700234149,,Homelessness & Rough Sleeping,Grant payable by the Exchequer,SR2 7DN,22500,Yes
"Housing, Communities & Local Government",DLUHC,01/09/2023,Current (non AEF) Grants to Local Authorities,Local Govnmnt Resilience and Communities,CORNWALL UNITARY AUTHORITY,,,,211334404,3700234151,,Homelessness & Rough Sleeping,Grant payable by the Exchequer,TR1 3AY,140613,Yes
"Housing, Communities & Local Government",DLUHC,01/09/2023,Current (non AEF) Grants to Local Authorities,Local Govnmnt Resilience and Communities,COVENTRY CITY CNCL,,,,210384802,3700234128,,Homelessness & Rough Sleeping,Grant payable by the Exchequer,CV1 2QL,14276,Yes
"Housing, Communities & Local Government",DLUHC,01/09/2023,Current (non AEF) Grants to Local Authorities,Local Govnmnt Resilience and Communities,CRAWLEY BC,,,,211222500,3700234130,,Homelessness & Rough Sleeping,Grant payable by the Exchequer,RH10 1UZ,10000,Yes
"Housing, Communities & Local Government",DLUHC,01/09/2023,Current (non AEF) Grants to Local Authorities,Local Govnmnt Resilience and Communities,DACORUM BC,,,,236448643,3700234142,,Homelessness & Rough Sleeping,Grant payable by the Exchequer,HP1 1DN,16045,Yes
"Housing, Communities & Local Government",DLUHC,01/09/2023,Current (non AEF) Grants to Local Authorities,Local Govnmnt Resilience and Communities,DARLINGTON BC,,,,,3700234138,,Homelessness & Rough Sleeping,Grant payable by the Exchequer,TS19 1JA,4516,Yes
"Housing, Communities & Local Government",DLUHC,01/09/2023,Current (non AEF) Grants to Local Authorities,Local Govnmnt Resilience and Communities,DURHAM COUNTY COUNCIL,,,,224004882,3700234129,,Homelessness & Rough Sleeping,Grant payable by the Exchequer,DH1 5UE,43119,Yes
"Housing, Communities & Local Government",DLUHC,01/09/2023,Current (non AEF) Grants to Local Authorities,Local Govnmnt Resilience and Communities,EASTBOURNE BC,,,,229896428,3700234108,,Homelessness & Rough Sleeping,Grant payable by the Exchequer,BN21 4TW,37185,Yes
"Housing, Communities & Local Government",DLUHC,01/09/2023,Current (non AEF) Grants to Local Authorities,Local Govnmnt Resilience and Communities,EXETER CITY COUNCIL,,,,,3700234140,,Homelessness & Rough Sleeping,Grant payable by the Exchequer,EX1 1JW,51103,Yes
"Housing, Communities & Local Government",DLUHC,01/09/2023,Current (non AEF) Grants to Local Authorities,Local Govnmnt Resilience and Communities,FENLAND DC,,,,227476348,3700234158,,Homelessness & Rough Sleeping,Grant payable by the Exchequer,PE15 8NQ,7420,Yes
"Housing, Communities & Local Government",DLUHC,01/09/2023,Current (non AEF) Grants to Local Authorities,Local Govnmnt Resilience and Communities,GREATER MANCHESTER COMBINED AUT,,,,,3700234161,,Homelessness & Rough Sleeping,Grant payable by the Exchequer,M27 8US,98750,Yes
"Housing, Communities & Local Government",DLUHC,01/09/2023,Current (non AEF) Grants to Local Authorities,Local Govnmnt Resilience and Communities,HALTON BC,,,,,3700234116,,Homelessness & Rough Sleeping,Grant payable by the Exchequer,WA8 7QF,90728,Yes
"Housing, Communities & Local Government",DLUHC,01/09/2023,Current (non AEF) Grants to Local Authorities,Local Govnmnt Resilience and Communities,HARTLEPOOL BOROUGH COUNCIL,,,,424291797,3700234110,,Homelessness & Rough Sleeping,Grant payable by the Exchequer,TS24 8AY,40550,Yes
"Housing, Communities & Local Government",DLUHC,01/09/2023,Current (non AEF) Grants to Local Authorities,Local Govnmnt Resilience and Communities,HASTINGS BC,,,,,3700234136,,Homelessness & Rough Sleeping,Grant payable by the Exchequer,TN34 3WN,52480,Yes
"Housing, Communities & Local Government",DLUHC,01/09/2023,Current (non AEF) Grants to Local Authorities,Local Govnmnt Resilience and Communities,HYNDBURN BC,,,,,3700234144,,Homelessness & Rough Sleeping,Grant payable by the Exchequer,BB5 1EZ,18750,Yes
"Housing, Communities & Local Government",DLUHC,01/09/2023,Current (non AEF) Grants to Local Authorities,Local Govnmnt Resilience and Communities,LEEDS CITY CNCL,,Micro,,,3700234150,,Homelessness & Rough Sleeping,Grant payable by the Exchequer,LS1 1JF,71558,Yes
"Housing, Communities & Local Government",DLUHC,01/09/2023,Current (non AEF) Grants to Local Authorities,Local Govnmnt Resilience and Communities,LIVERPOOL CITY COUNCIL,,,,,3700234119,,Homelessness & Rough Sleeping,Grant payable by the Exchequer,L2 2DH,176389,Yes
"Housing, Communities & Local Government",DLUHC,01/09/2023,Current (non AEF) Grants to Local Authorities,Local Govnmnt Resilience and Communities,LIVERPOOL CITY COUNCIL,,,,,3700234134,,Homelessness & Rough Sleeping,Grant payable by the Exchequer,L2 2DH,32666,Yes
"Housing, Communities & Local Government",DLUHC,01/09/2023,Current (non AEF) Grants to Local Authorities,Local Govnmnt Resilience and Communities,LONDON BOROUGH OF HACKNEY,,,,225221597,3700234164,,Homelessness & Rough Sleeping,Grant payable by the Exchequer,E8 4RU,677354,Yes
"Housing, Communities & Local Government",DLUHC,01/09/2023,Current (non AEF) Grants to Local Authorities,Local Govnmnt Resilience and Communities,MANCHESTER CITY CNCL,,,,211241393,3700234114,,Homelessness & Rough Sleeping,Grant payable by the Exchequer,M60 2JR,149523,Yes
"Housing, Communities & Local Government",DLUHC,01/09/2023,Current (non AEF) Grants to Local Authorities,Local Govnmnt Resilience and Communities,MID SUSSEX DC,,,,236675989,3700234109,,Homelessness & Rough Sleeping,Grant payable by the Exchequer,RH16 1SS,10940,Yes
"Housing, Communities & Local Government",DLUHC,01/09/2023,Current (non AEF) Grants to Local Authorities,Local Govnmnt Resilience and Communities,MIDDLESBROUGH BC,,Large,,,3700234155,,Homelessness & Rough Sleeping,Grant payable by the Exchequer,TS1 9GA,4500,Yes
"Housing, Communities & Local Government",DLUHC,01/09/2023,Current (non AEF) Grants to Local Authorities,Local Govnmnt Resilience and Communities,NEW FOREST DC,,Public Bodies,,,3700234137,,Homelessness & Rough Sleeping,Grant payable by the Exchequer,SO43 7PA,9625,Yes
"Housing, Communities & Local Government",DLUHC,01/09/2023,Current (non AEF) Grants to Local Authorities,Local Govnmnt Resilience and Communities,NEWCASTLE UPON TYNE DC,,,,239154040,3700234165,,Homelessness & Rough Sleeping,Grant payable by the Exchequer,NE99 2BN,71441,Yes
"Housing, Communities & Local Government",DLUHC,01/09/2023,Current (non AEF) Grants to Local Authorities,Local Govnmnt Resilience and Communities,NOTTINGHAM CITY COUNCIL,,,,214495447,3700234107,,Homelessness & Rough Sleeping,Grant payable by the Exchequer,NG2 3NG,6160,Yes
"Housing, Communities & Local Government",DLUHC,01/09/2023,Current (non AEF) Grants to Local Authorities,Local Govnmnt Resilience and Communities,OXFORD CITY COUNCIL,,,,212437417,3700234135,,Homelessness & Rough Sleeping,Grant payable by the Exchequer,OX1 1DS,118025,Yes
"Housing, Communities & Local Government",DLUHC,01/09/2023,Current (non AEF) Grants to Local Authorities,Local Govnmnt Resilience and Communities,PLYMOUTH CITY CNCL,,Public Bodies,,236416095,3700234152,,Homelessness & Rough Sleeping,Grant payable by the Exchequer,PL1 2AA,47500,Yes
"Housing, Communities & Local Government",DLUHC,01/09/2023,Current (non AEF) Grants to Local Authorities,Local Govnmnt Resilience and Communities,PORTSMOUTH CITY COUNCIL,,Large,,211183082,3700234153,,Homelessness & Rough Sleeping,Grant payable by the Exchequer,PO1 2AR,196507,Yes
"Housing, Communities & Local Government",DLUHC,01/09/2023,Current (non AEF) Grants to Local Authorities,Local Govnmnt Resilience and Communities,READING BC,,,,210220399,3700234113,,Homelessness & Rough Sleeping,Grant payable by the Exchequer,RG1 7TD,27500,Yes
"Housing, Communities & Local Government",DLUHC,01/09/2023,Current (non AEF) Grants to Local Authorities,Local Govnmnt Resilience and Communities,REDCAR & CLEVELAND BOROUGH COUNCIL,,,,215175196,3700234120,,Homelessness & Rough Sleeping,Grant payable by the Exchequer,TS10 1RT,10250,Yes
"Housing, Communities & Local Government",DLUHC,01/09/2023,Current (non AEF) Grants to Local Authorities,Local Govnmnt Resilience and Communities,ROCHDALE MBC,,,,,3700234118,,Homelessness & Rough Sleeping,Grant payable by the Exchequer,OL16 1YG,32718,Yes
"Housing, Communities & Local Government",DLUHC,01/09/2023,Current (non AEF) Grants to Local Authorities,Local Govnmnt Resilience and Communities,SALFORD CITY CNCL,,,,213180073,3700234156,,Homelessness & Rough Sleeping,Grant payable by the Exchequer,M27 5AW,32612,Yes
"Housing, Communities & Local Government",DLUHC,01/09/2023,Current (non AEF) Grants to Local Authorities,Local Govnmnt Resilience and Communities,SANDWELL MBC,,,,,3700234115,,Homelessness & Rough Sleeping,Grant payable by the Exchequer,B69 3BS,50000,Yes
"Housing, Communities & Local Government",DLUHC,01/09/2023,Current (non AEF) Grants to Local Authorities,Local Govnmnt Resilience and Communities,SANDWELL MBC,,,,,3700234146,,Homelessness & Rough Sleeping,Grant payable by the Exchequer,B69 3BS,9478,Yes
"Housing, Communities & Local Government",DLUHC,01/09/2023,Current (non AEF) Grants to Local Authorities,Local Govnmnt Resilience and Communities,SEVENOAKS DC,,,,236100913,3700234148,,Homelessness & Rough Sleeping,Grant payable by the Exchequer,TN13 1HG,20250,Yes
"Housing, Communities & Local Government",DLUHC,01/09/2023,Current (non AEF) Grants to Local Authorities,Local Govnmnt Resilience and Communities,SHEFFIELD CITY CNCL,,,,,3700234159,,Homelessness & Rough Sleeping,Grant payable by the Exchequer,S1 1UJ,67463,Yes
"Housing, Communities & Local Government",DLUHC,01/09/2023,Current (non AEF) Grants to Local Authorities,Local Govnmnt Resilience and Communities,SOMERSET WEST & TAUNTON DC,,,,,3700234154,,Homelessness & Rough Sleeping,Grant payable by the Exchequer,TA1 1HE,42502,Yes
"Housing, Communities & Local Government",DLUHC,01/09/2023,Current (non AEF) Grants to Local Authorities,Local Govnmnt Resilience and Communities,SOUTH GLOUCESTERSHIRE DC,,,,,3700234132,,Homelessness & Rough Sleeping,Grant payable by the Exchequer,BS15 2TR,6083,Yes
"Housing, Communities & Local Government",DLUHC,01/09/2023,Current (non AEF) Grants to Local Authorities,Local Govnmnt Resilience and Communities,SOUTHAMPTON CITY CNCL,,,,216927475,3700234143,,Homelessness & Rough Sleeping,Grant payable by the Exchequer,SO14 7LY,13875,Yes
"Housing, Communities & Local Government",DLUHC,01/09/2023,Current (non AEF) Grants to Local Authorities,Local Govnmnt Resilience and Communities,SOUTHEND ON SEA BC,,,,217067263,3700234111,,Homelessness & Rough Sleeping,Grant payable by the Exchequer,SS2 6EP,9534,Yes
"Housing, Communities & Local Government",DLUHC,01/09/2023,Current (non AEF) Grants to Local Authorities,Local Govnmnt Resilience and Communities,STOCKPORT MBC,,,,228706248,3700234162,,Homelessness & Rough Sleeping,Grant payable by the Exchequer,SK1 3XE,8750,Yes
"Housing, Communities & Local Government",DLUHC,01/09/2023,Current (non AEF) Grants to Local Authorities,Local Govnmnt Resilience and Communities,STOCKTON-ON-TEES BC,,,,,3700234125,,Homelessness & Rough Sleeping,Grant payable by the Exchequer,TS23 2YS,17500,Yes
"Housing, Communities & Local Government",DLUHC,01/09/2023,Current (non AEF) Grants to Local Authorities,Local Govnmnt Resilience and Communities,STOKE ON TRENT CITY COUNCIL,,,,216037890,3700234160,,Homelessness & Rough Sleeping,Grant payable by the Exchequer,ST4 1HH,63261,Yes
"Housing, Communities & Local Government",DLUHC,01/09/2023,Current (non AEF) Grants to Local Authorities,Local Govnmnt Resilience and Communities,SWINDON BC,,,,458639697,3700234168,,Homelessness & Rough Sleeping,Grant payable by the Exchequer,SN1 2JH,10800,Yes
"Housing, Communities & Local Government",DLUHC,01/09/2023,Current (non AEF) Grants to Local Authorities,Local Govnmnt Resilience and Communities,TEST VALLEY BC,,,,225442698,3700234117,,Homelessness & Rough Sleeping,Grant payable by the Exchequer,SP10 3AJ,20625,Yes
"Housing, Communities & Local Government",DLUHC,01/09/2023,Current (non AEF) Grants to Local Authorities,Local Govnmnt Resilience and Communities,THANET DC,,,,232309369,3700234131,,Homelessness & Rough Sleeping,Grant payable by the Exchequer,CT8 1XZ,50767,Yes
"Housing, Communities & Local Government",DLUHC,01/09/2023,Current (non AEF) Grants to Local Authorities,Local Govnmnt Resilience and Communities,WEST BERKSHIRE COUNCIL,,,,364809181,3700234122,,Homelessness & Rough Sleeping,Grant payable by the Exchequer,RG14 5LD,21584,Yes
"Housing, Communities & Local Government",DLUHC,01/09/2023,Current (non AEF) Grants to Local Authorities,Local Govnmnt Resilience and Communities,WOKINGHAM DC,,,,,3700234124,,Homelessness & Rough Sleeping,Grant payable by the Exchequer,RG11 1WJ,12500,Yes
"Housing, Communities & Local Government",DLUHC,01/09/2023,Current (non AEF) Grants to Local Authorities,Local Govnmnt Resilience and Communities,WORCESTER CITY CNCL,,,,227419751,3700234133,,Homelessness & Rough Sleeping,Grant payable by the Exchequer,WR1 2EZ,26066,Yes
"Housing, Communities & Local Government",DLUHC,01/09/2023,Current (non AEF) Grants to Local Authorities,Local Govnmnt Resilience and Communities,WORTHING BC,,,,236429734,3700234106,,Homelessness & Rough Sleeping,Grant payable by the Exchequer,BN11 1HA,10872,Yes
"Housing, Communities & Local Government",DLUHC,01/09/2023,Current (non AEF) Grants to Local Authorities,Local Govnmnt Resilience and Communities,WYCHAVON DISTRICT COUNCIL,,,,232257139,3700234163,,Homelessness & Rough Sleeping,Grant payable by the Exchequer,WR10 1PT,12605,Yes
"Housing, Communities & Local Government",DLUHC,01/09/2023,Current (non AEF) Grants to Local Authorities,Local Govnmnt Resilience and Communities,WYRE FOREST DISTRICT COUNCIL,,,,,3700234141,,Homelessness & Rough Sleeping,Grant payable by the Exchequer,DY11 7WF,7656,Yes
"Housing, Communities & Local Government",DLUHC,01/09/2023,Current Grants to Non Profit Bodies,Local Govnmnt Resilience and Communities,HOMELESS LINK,Yes,,,,3700233999,,Homelessness & Rough Sleeping,Grant payable by the Exchequer,SE11 4AP,85449,Yes
"Housing, Communities & Local Government",DLUHC,01/09/2023,Current Grants to Non Profit Bodies,Local Govnmnt Resilience and Communities,HOMELESS LINK,Yes,,,,3700234169,,Homelessness & Rough Sleeping,Grant payable by the Exchequer,SE11 4AP,105816,Yes
"Housing, Communities & Local Government",DLUHC,01/09/2023,Current Grants to Non Profit Bodies,Local Govnmnt Resilience and Communities,Housing Justice,,Small,,,3700234002,,Homelessness & Rough Sleeping,Grant payable by the Exchequer,SE11 5RR,40000,Yes
"Housing, Communities & Local Government",DLUHC,01/09/2023,Current Grants to Non Profit Bodies,Local Govnmnt Resilience and Communities,Inn Churches,,Small,,,3700234102,,Homelessness & Rough Sleeping,Grant payable by the Exchequer,BD4 7BQ,20900,Yes
"Housing, Communities & Local Government",DLUHC,01/09/2023,Current Grants to Non Profit Bodies,Local Govnmnt Resilience and Communities,SHELTER NAT CAMPAIGN HOMELESS,,Large,,,3700234000,,Homelessness & Rough Sleeping,Grant payable by the Exchequer,EC1V 9HU,209022,Yes
"Housing, Communities & Local Government",DLUHC,01/09/2023,Current Grants to Non Profit Bodies,Local Govnmnt Resilience and Communities,SHELTER NAT CAMPAIGN HOMELESS,,Large,,,3700234001,,Homelessness & Rough Sleeping,Grant payable by the Exchequer,EC1V 9HU,252462,Yes
"Housing, Communities & Local Government",DLUHC,01/09/2023,ERDF Work in Progress � Capital,Regeneration,KINGSTON UPON HULL CITY COUNCIL,,Large,,,7700014309,,Community Investment & Funding Services,ERDF grant payment,HU1 2AA,40930.26,Yes
"Housing, Communities & Local Government",DLUHC,01/09/2023,ERDF Work in Progress � Capital,Regeneration,SOUTH KESTEVEN DC,,,,,7700014307,,Community Investment & Funding Services,ERDF grant payment,NG31 6PZ,229703.05,Yes
"Housing, Communities & Local Government",DLUHC,01/09/2023,ERDF Work in Progress � Capital,Regeneration,UNIVERSITY OF HULL,,Large,,,7700014310,,Community Investment & Funding Services,ERDF grant payment,HU6 7RX,5700.05,Yes
"Housing, Communities & Local Government",DLUHC,01/09/2023,ERDF Work in Progress � Resource,Regeneration,KINGSTON UPON HULL CITY COUNCIL,,Large,,,7700014309,,Community Investment & Funding Services,ERDF grant payment,HU1 2AA,27804.6,Yes
"Housing, Communities & Local Government",DLUHC,01/09/2023,ERDF Work in Progress � Resource,Regeneration,LANCASTER UNIVERISTY,,,,,7700014308,,Community Investment & Funding Services,ERDF grant payment,LA1 4YW,128967.76,Yes
"Housing, Communities & Local Government",DLUHC,01/09/2023,ERDF Work in Progress � Resource,Regeneration,SOUTH KESTEVEN DC,,,,,7700014307,,Community Investment & Funding Services,ERDF grant payment,NG31 6PZ,11384.75,Yes
"Housing, Communities & Local Government",DLUHC,01/09/2023,ERDF Work in Progress � Resource,Regeneration,UNIVERSITY OF CENTRAL LANCASHIRE,,Large,,,7700014306,,Community Investment & Funding Services,ERDF grant payment,PR7 7DL,110504.74,Yes
"Housing, Communities & Local Government",DLUHC,01/09/2023,ERDF Work in Progress � Resource,Regeneration,UNIVERSITY OF CENTRAL LANCASHIRE,,Large,,,7700014311,,Community Investment & Funding Services,ERDF grant payment,PR7 7DL,117265.19,Yes
"Housing, Communities & Local Government",DLUHC,01/09/2023,ERDF Work in Progress � Resource,Regeneration,UNIVERSITY OF HULL,,Large,,,7700014310,,Community Investment & Funding Services,ERDF grant payment,HU6 7RX,123765.94,Yes
"Housing, Communities & Local Government",DLUHC,01/09/2023,IT - Service Contracts,CFO and Corporate,ALEXANDER MANN SOLUTIONS LTD,,Large,,,5106301138,,Digital,Agency Staff,EC2N 3AQ,8635.44,
"Housing, Communities & Local Government",DLUHC,01/09/2023,IT - Service Contracts,CFO and Corporate,ALEXANDER MANN SOLUTIONS LTD,,Large,,,5106301155,,Digital,Agency Staff,EC2N 3AQ,3336.3,
"Housing, Communities & Local Government",DLUHC,01/09/2023,IT - Service Contracts,CFO and Corporate,ALEXANDER MANN SOLUTIONS LTD,,Large,,,5106301162,,Digital,Agency Staff,EC2N 3AQ,7391.16,
"Housing, Communities & Local Government",DLUHC,01/09/2023,IT - Service Contracts,Local Govnmnt Resilience and Communities,Democracy Counts Ltd,,Small,,216310585,5106301112,,Elections Directorate,Capped T&M Funds,WA5 1DF,278400,
"Housing, Communities & Local Government",DLUHC,01/09/2023,IT - Service Contracts,Local Govnmnt Resilience and Communities,DEPARTMENT FOR WORK & PENSIONS,,Public Bodies,,218124765,5106301105,IT Managed / Outsourced Services,Elections Directorate,DWP/EIP Phase 2 Costs/VAC Running Costs,FY5 3TA,7091.3,
"Housing, Communities & Local Government",DLUHC,01/09/2023,IT - Software Maintenance,CFO and Corporate,AirWalk Consulting Reply Ltd,,,,,5106301119,,Digital,Balance of Stage 1 payment ( 16K on line,EH2 3ES,10800,
"Housing, Communities & Local Government",DLUHC,01/09/2023,IT - Software Maintenance,CFO and Corporate,AirWalk Consulting Reply Ltd,,,,,5106301119,,Digital,DLUHC Legacy File Archive Remediation,EH2 3ES,19200,
"Housing, Communities & Local Government",DLUHC,01/09/2023,IT Consultancy,Local Govnmnt Resilience and Communities,TPXimpact Limited,,Medium,,,5106301123,,Local Government Policy,OfLog Developers,SE1 9RG,110850,
"Housing, Communities & Local Government",DLUHC,01/09/2023,Legal Fees,Regeneration,39 ESSEX CHAMBERS,,Micro,,,5106301098,,Leasehold Land & Planning Systems,Legal Advice,WC2A 1DD,3132,
"Housing, Communities & Local Government",DLUHC,01/09/2023,Legal Fees,Safer and Greener Buildings,Temple Garden Chambers,,Medium,,,5106301106,,Remediation Policy,Legal Advice,EC4Y 9DA,1912,
"Housing, Communities & Local Government",DLUHC,01/09/2023,Legal Fees,Safer and Greener Buildings,Temple Garden Chambers,,Medium,,,5106301117,,Remediation Policy,Legal Advice,EC4Y 9DA,8983.98,
"Housing, Communities & Local Government",DLUHC,01/09/2023,Legal Fees,Safer and Greener Buildings,Temple Garden Chambers,,Medium,,,5106301118,,Remediation Policy,Legal Advice,EC4Y 9DA,6952,
"Housing, Communities & Local Government",DLUHC,01/09/2023,Professional services,Safer and Greener Buildings,BUILDING RESEARCH ESTABLISHMENT,,Large,,896495033,5106301104,,Building Systems & Net Zero,Convention Groups,WD25 9XX,3228.4,
"Housing, Communities & Local Government",DLUHC,01/09/2023,Professional services,Safer and Greener Buildings,MOTT MACDONALD LTD,,Large,,423676980,5106301035,Technical Services,Intervention Delivery,Provision of Client Side Support Service,BN1 4FY,39751.78,
"Housing, Communities & Local Government",DLUHC,01/09/2023,Publications,Local Govnmnt Resilience and Communities,JONES YARRELL LEADENHALL LTD,,Large,,505670265,5106301120,,Strategy and Private Offices,Subscriptions/publications,E3 3JH,414.08,
"Housing, Communities & Local Government",DLUHC,01/09/2023,Publications,Local Govnmnt Resilience and Communities,JONES YARRELL LEADENHALL LTD,,Large,,505670265,5106301121,,Strategy and Private Offices,Subscriptions/publications,E3 3JH,551.89,
"Housing, Communities & Local Government",DLUHC,01/09/2023,Publications,Local Govnmnt Resilience and Communities,JONES YARRELL LEADENHALL LTD,,Large,,505670265,5106301122,,Strategy and Private Offices,Subscriptions/publications,E3 3JH,862.68,
"Housing, Communities & Local Government",DLUHC,01/09/2023,Software Licences,CFO and Corporate,SLI.DO S.R.O,,Medium,,,5106301110,,People Capability & Change C/O,Slido Subscription Renewal for MHAs,84103,480,
"Housing, Communities & Local Government",DLUHC,01/09/2023,Training,CFO and Corporate,KPMG LLP (CSL),,Large,,,5106301114,,People Capability & Change C/O,Civil Service Training,E14 5GL,4800,
"Housing, Communities & Local Government",DLUHC,01/09/2023,Training,CFO and Corporate,KPMG LLP (CSL),,Large,,,5106301116,,People Capability & Change C/O,Civil Service Training,E14 5GL,1800,
"Housing, Communities & Local Government",DLUHC,01/09/2023,Training,CFO and Corporate,KPMG LLP (CSL),,Large,,,5106301124,,People Capability & Change C/O,Civil Service Training,E14 5GL,249,
"Housing, Communities & Local Government",DLUHC,01/09/2023,Training,Safer and Greener Buildings,KPMG LLP (CSL),,Large,,,5106301113,,Intervention Delivery,Civil Service Training,E14 5GL,467.4,
"Housing, Communities & Local Government",DLUHC,04/09/2023,Cap Grants to Local Authorities (DEL),Regeneration,GREATER LONDON AUTHORITY,,Large,,225353416,2100328819,,Social Housing & Resettlement,2016-23 Affordable Homes Programme spend for Q1 20,SE10 1AP,45830000,Yes
"Housing, Communities & Local Government",DLUHC,04/09/2023,Current Grants to Non Profit Bodies,Resettlements,Hong Kong Nursing Association Uk (H,Yes,Micro,,,2300003586,,Resettlements,Recovery of payment in error doc no 2401237757,ME16 9JQ,-40000,Yes
"Housing, Communities & Local Government",DLUHC,04/09/2023,ERDF Work in Progress � Capital,Regeneration,CAMBRIDGESHIRE COUNTY COUNCIL,,,,,7700014318,,Community Investment & Funding Services,ERDF grant payment,CB3 0AP,191834.2,Yes
"Housing, Communities & Local Government",DLUHC,04/09/2023,ERDF Work in Progress � Capital,Regeneration,CHICHESTER UNIVERSITY,,,,,7700014313,,Community Investment & Funding Services,ERDF grant payment,PO19 6PE,157508.15,Yes
"Housing, Communities & Local Government",DLUHC,04/09/2023,ERDF Work in Progress � Capital,Regeneration,LUTON BOROUGH COUNCIL,,,,,7700014314,,Community Investment & Funding Services,ERDF grant payment,LU1 2BQ,2516755.69,Yes
"Housing, Communities & Local Government",DLUHC,04/09/2023,ERDF Work in Progress � Capital,Regeneration,WORCESTERSHIRE COUNTY COUNCIL,,,,,7700014316,,Community Investment & Funding Services,ERDF grant payment,WR5 2NP,31922.22,Yes
"Housing, Communities & Local Government",DLUHC,04/09/2023,ERDF Work in Progress � Capital,Regeneration,WORCESTERSHIRE COUNTY COUNCIL,,,,,7700014317,,Community Investment & Funding Services,ERDF grant payment,WR5 2NP,0.14,Yes
"Housing, Communities & Local Government",DLUHC,04/09/2023,ERDF Work in Progress � Resource,Regeneration,CHICHESTER UNIVERSITY,,,,,7700014313,,Community Investment & Funding Services,ERDF grant payment,PO19 6PE,56736.39,Yes
"Housing, Communities & Local Government",DLUHC,04/09/2023,ERDF Work in Progress � Resource,Regeneration,LUTON BOROUGH COUNCIL,,,,,7700014314,,Community Investment & Funding Services,ERDF grant payment,LU1 2BQ,51264.01,Yes
"Housing, Communities & Local Government",DLUHC,04/09/2023,ERDF Work in Progress � Resource,Regeneration,PRINCE'S TRUST,,Large,,,7700014315,,Community Investment & Funding Services,ERDF grant payment,EC2M 7LS,453915.52,Yes
"Housing, Communities & Local Government",DLUHC,04/09/2023,ERDF Work in Progress � Resource,Regeneration,WORCESTERSHIRE COUNTY COUNCIL,,,,,7700014316,,Community Investment & Funding Services,ERDF grant payment,WR5 2NP,126827.13,Yes
"Housing, Communities & Local Government",DLUHC,04/09/2023,ERDF Work in Progress � Resource,Regeneration,WORCESTERSHIRE COUNTY COUNCIL,,,,,7700014317,,Community Investment & Funding Services,ERDF grant payment,WR5 2NP,117407.66,Yes
"Housing, Communities & Local Government",DLUHC,04/09/2023,Fees,Local Govnmnt Resilience and Communities,ATKINS LTD,,Large,,293650339,5106301188,,Holocaust Memorial UKHMF,Planning Advice on the UK Holocaust Memo,KT18 5BW,15400,
"Housing, Communities & Local Government",DLUHC,04/09/2023,"Furniture, Fittings and carpets",CFO and Corporate,Bates Office Services Ltd,,Medium,,,5106301174,"Furniture, Fixtures and Fittings",Property Asset Management,DLUHC Home-Working Equipment,ME2 2LS,290.62,
"Housing, Communities & Local Government",DLUHC,04/09/2023,"Furniture, Fittings and carpets",CFO and Corporate,Bates Office Services Ltd,,Medium,,,5106301176,"Furniture, Fixtures and Fittings",Property Asset Management,DLUHC Home-Working Equipment,ME2 2LS,290.38,
"Housing, Communities & Local Government",DLUHC,04/09/2023,"Furniture, Fittings and carpets",CFO and Corporate,Bates Office Services Ltd,,Medium,,,5106301178,"Furniture, Fixtures and Fittings",Property Asset Management,DLUHC Home-Working Equipment,ME2 2LS,279.74,
"Housing, Communities & Local Government",DLUHC,04/09/2023,"Furniture, Fittings and carpets",CFO and Corporate,DCLG GOVERNMENT PROCUREMENT CARD,,,,,1000005543,"Furniture, Fixtures and Fittings",People Capability & Change C/O,Sit stand Desk,TN37 7GA,365.97,
"Housing, Communities & Local Government",DLUHC,04/09/2023,Professional services,Safer and Greener Buildings,Bloom Procurement Services Limited,,Large,,,5106301179,,Remediation Policy,Additional specialist intelligence suppo,NE8 2ET,54718.56,
"Housing, Communities & Local Government",DLUHC,04/09/2023,Professional services,Safer and Greener Buildings,RIDGE & PARTNERS LLP,,Large,,739927452,5106301180,,Intervention Delivery,CSSP - Ridge & Partners LLP,OX20 1QR,53737.2,
"Housing, Communities & Local Government",DLUHC,04/09/2023,Rates,CFO and Corporate,GOVERNMENT PROPERTY AGENCY,,Medium,,,5106301181,,Property Asset Management,Multi Building Rates,B2 5LS,3220.83,
"Housing, Communities & Local Government",DLUHC,04/09/2023,Rates,CFO and Corporate,GOVERNMENT PROPERTY AGENCY,,Medium,,,5106301182,,Property Asset Management,Multi Building Rates,B2 5LS,6534.63,
"Housing, Communities & Local Government",DLUHC,04/09/2023,Rates,CFO and Corporate,GOVERNMENT PROPERTY AGENCY,,Medium,,,5106301201,,Property Asset Management,Multi Building Rates,B2 5LS,3426.23,
"Housing, Communities & Local Government",DLUHC,04/09/2023,Rates,CFO and Corporate,GOVERNMENT PROPERTY AGENCY,,Medium,,,5106301204,Business Support,Property Asset Management,21/22 Rates Balance,B2 5LS,56665.09,
"Housing, Communities & Local Government",DLUHC,04/09/2023,Rates,CFO and Corporate,GOVERNMENT PROPERTY AGENCY,,Medium,,,5106301207,,Property Asset Management,2MS rates 23/24,B2 5LS,13417,
"Housing, Communities & Local Government",DLUHC,04/09/2023,Rates,CFO and Corporate,GOVERNMENT PROPERTY AGENCY,,Medium,,,5106301209,,Property Asset Management,Multi Building Rates,B2 5LS,394.63,
"Housing, Communities & Local Government",DLUHC,04/09/2023,Rent,CFO and Corporate,GOVERNMENT PROPERTY AGENCY,,Medium,,,5106301181,,Property Asset Management,Multi Building rent,B2 5LS,26178,
"Housing, Communities & Local Government",DLUHC,04/09/2023,Rent,CFO and Corporate,GOVERNMENT PROPERTY AGENCY,,Medium,,,5106301182,,Property Asset Management,Multi Building rent,B2 5LS,52546,
"Housing, Communities & Local Government",DLUHC,04/09/2023,Rent,CFO and Corporate,GOVERNMENT PROPERTY AGENCY,,Medium,,,5106301201,,Property Asset Management,Multi Building rent,B2 5LS,18262.1,
"Housing, Communities & Local Government",DLUHC,04/09/2023,Rent,CFO and Corporate,GOVERNMENT PROPERTY AGENCY,,Medium,,,5106301207,,Property Asset Management,2MS rent 23/24,B2 5LS,52051.25,
"Housing, Communities & Local Government",DLUHC,04/09/2023,Rent,CFO and Corporate,GOVERNMENT PROPERTY AGENCY,,Medium,,,5106301208,,Property Asset Management,Multi Building rent,B2 5LS,10707.42,
"Housing, Communities & Local Government",DLUHC,04/09/2023,Rent,CFO and Corporate,GOVERNMENT PROPERTY AGENCY,,Medium,,,5106301209,,Property Asset Management,Multi Building rent,B2 5LS,1470.91,
"Housing, Communities & Local Government",DLUHC,04/09/2023,Rent,CFO and Corporate,GOVERNMENT PROPERTY AGENCY,,Medium,,,5106301210,,Property Asset Management,Multi Building rent,B2 5LS,45000,
"Housing, Communities & Local Government",DLUHC,04/09/2023,Rent,CFO and Corporate,GOVERNMENT PROPERTY AGENCY,,Medium,,,5106301211,,Property Asset Management,Multi Building rent,B2 5LS,38332.8,
"Housing, Communities & Local Government",DLUHC,04/09/2023,Rent,CFO and Corporate,GOVERNMENT PROPERTY AGENCY,,Medium,,,5106301274,,Property Asset Management,Multi Building Management Charge Fee,B2 5LS,-37583.33,
"Housing, Communities & Local Government",DLUHC,04/09/2023,Repayments of Private Sect Grant (Cap),Levelling Up,EBAC LIMITED,,,,,2300003588,,Community Investment and Funding Service,RGF Grant Recovery 1689c Grant Recovery 11th of 12,DL5 6SQ,-48185.88,
"Housing, Communities & Local Government",DLUHC,04/09/2023,Security,CFO and Corporate,GOVERNMENT PROPERTY AGENCY,,Medium,,,5106301181,,Property Asset Management,Multi Building FM Including Security,B2 5LS,11528.5,
"Housing, Communities & Local Government",DLUHC,04/09/2023,Security,CFO and Corporate,GOVERNMENT PROPERTY AGENCY,,Medium,,,5106301182,,Property Asset Management,Multi Building FM Including Security,B2 5LS,23389.79,
"Housing, Communities & Local Government",DLUHC,04/09/2023,Security,CFO and Corporate,GOVERNMENT PROPERTY AGENCY,,Medium,,,5106301201,,Property Asset Management,Multi Building FM Including Security,B2 5LS,20261.9,
"Housing, Communities & Local Government",DLUHC,04/09/2023,Security,CFO and Corporate,GOVERNMENT PROPERTY AGENCY,,Medium,,,5106301209,,Property Asset Management,Multi Building FM Including Security,B2 5LS,574.7,
"Housing, Communities & Local Government",DLUHC,04/09/2023,Steady State Service Provision,CFO and Corporate,GOVERNMENT PROPERTY AGENCY,,Medium,,,5106301181,,Property Asset Management,Multi Building Management Charge Fee,B2 5LS,5026.63,
"Housing, Communities & Local Government",DLUHC,04/09/2023,Steady State Service Provision,CFO and Corporate,GOVERNMENT PROPERTY AGENCY,,Medium,,,5106301182,,Property Asset Management,Multi Building Management Charge Fee,B2 5LS,6334.97,
"Housing, Communities & Local Government",DLUHC,04/09/2023,Steady State Service Provision,CFO and Corporate,GOVERNMENT PROPERTY AGENCY,,Medium,,,5106301199,,Property Asset Management,2MS management charge,B2 5LS,61222.99,
"Housing, Communities & Local Government",DLUHC,04/09/2023,Steady State Service Provision,CFO and Corporate,GOVERNMENT PROPERTY AGENCY,,Medium,,,5106301200,,Property Asset Management,2MS management charge,B2 5LS,20491.48,
"Housing, Communities & Local Government",DLUHC,04/09/2023,Steady State Service Provision,CFO and Corporate,GOVERNMENT PROPERTY AGENCY,,Medium,,,5106301201,,Property Asset Management,Multi Building Management Charge Fee,B2 5LS,14829.56,
"Housing, Communities & Local Government",DLUHC,04/09/2023,Steady State Service Provision,CFO and Corporate,GOVERNMENT PROPERTY AGENCY,,Medium,,,5106301208,,Property Asset Management,Multi Building Management Charge Fee,B2 5LS,3755,
"Housing, Communities & Local Government",DLUHC,04/09/2023,Steady State Service Provision,CFO and Corporate,GOVERNMENT PROPERTY AGENCY,,Medium,,,5106301209,,Property Asset Management,Multi Building Management Charge Fee,B2 5LS,2264.92,
"Housing, Communities & Local Government",DLUHC,04/09/2023,Steady State Service Provision,CFO and Corporate,GOVERNMENT PROPERTY AGENCY,,Medium,,,5106301210,,Property Asset Management,Multi Building Management Charge Fee,B2 5LS,2027.5,
"Housing, Communities & Local Government",DLUHC,04/09/2023,Steady State Service Provision,CFO and Corporate,GOVERNMENT PROPERTY AGENCY,,Medium,,,5106301211,,Property Asset Management,Multi Building Management Charge Fee,B2 5LS,2098.75,
"Housing, Communities & Local Government",DLUHC,04/09/2023,Steady State Service Provision,CFO and Corporate,GOVERNMENT PROPERTY AGENCY,,Medium,,,5106301275,,Property Asset Management,Multi Building Management Charge Fee,B2 5LS,37583.33,
"Housing, Communities & Local Government",DLUHC,04/09/2023,Training,CFO and Corporate,CRANFIELD MANAGEMENT DEVELOPMENT LT,,Medium,,346264427,5106298217,,People Capability & Change C/O,Civil Service Training,MK43 0AL,-1344.87,
"Housing, Communities & Local Government",DLUHC,04/09/2023,Training,CFO and Corporate,CRANFIELD MANAGEMENT DEVELOPMENT LT,,Medium,,346264427,5106298221,,People Capability & Change C/O,Civil Service Training,MK43 0AL,-1344.87,
"Housing, Communities & Local Government",DLUHC,04/09/2023,Training,CFO and Corporate,CRANFIELD MANAGEMENT DEVELOPMENT LT,,Medium,,346264427,5106298224,,People Capability & Change C/O,Civil Service Training,MK43 0AL,-1344.87,
"Housing, Communities & Local Government",DLUHC,04/09/2023,Training,CFO and Corporate,CRANFIELD MANAGEMENT DEVELOPMENT LT,,Medium,,346264427,5106300175,,People Capability & Change C/O,Civil Service Training,MK43 0AL,-1344.87,
"Housing, Communities & Local Government",DLUHC,04/09/2023,Training,CFO and Corporate,CRANFIELD MANAGEMENT DEVELOPMENT LT,,Medium,,346264427,5106300215,,People Capability & Change C/O,Civil Service Training,MK43 0AL,-1344.87,
"Housing, Communities & Local Government",DLUHC,04/09/2023,Training,CFO and Corporate,CRANFIELD MANAGEMENT DEVELOPMENT LT,,Medium,,346264427,5106301270,,People Capability & Change C/O,Civil Service Training,MK43 0AL,-8332.31,
"Housing, Communities & Local Government",DLUHC,04/09/2023,Training,CFO and Corporate,CRANFIELD MANAGEMENT DEVELOPMENT LT,,Medium,,346264427,5106301271,,People Capability & Change C/O,Civil Service Training,MK43 0AL,8332.31,
"Housing, Communities & Local Government",DLUHC,04/09/2023,Training,CFO and Corporate,MYCSP LIMITED,,Large,,217279092,5106301206,Development and Training,People Capability & Change C/O,Civil Service Training,SK3 0XN,2200,
"Housing, Communities & Local Government",DLUHC,04/09/2023,Training,Regeneration,CRANFIELD MANAGEMENT DEVELOPMENT LT,,Medium,,346264427,5106298227,,Planning Reform,Civil Service Training,MK43 0AL,-1344.87,
"Housing, Communities & Local Government",DLUHC,04/09/2023,Training,Regeneration,CRANFIELD MANAGEMENT DEVELOPMENT LT,,Medium,,346264427,5106301196,,Planning Reform,Civil Service Training,MK43 0AL,6987.44,
"Housing, Communities & Local Government",DLUHC,04/09/2023,Training,Regeneration,CRANFIELD MANAGEMENT DEVELOPMENT LT,,Medium,,346264427,5106301197,,Planning Reform,Civil Service Training,MK43 0AL,6987.44,
"Housing, Communities & Local Government",DLUHC,04/09/2023,Training,Regeneration,Robert Beardsworth T/A Urban Design,,Micro,,,5106301202,,Chief Planner,Civil Service Training,NE30 4PE,1195,
"Housing, Communities & Local Government",DLUHC,05/09/2023,Advertising,CFO and Corporate,23 RED LIMITED,,Small,,,5106301103,,Communications,Social housing complaints campaign 2023/,N1 9BG,45043.98,
"Housing, Communities & Local Government",DLUHC,05/09/2023,Advertising,CFO and Corporate,23 RED LIMITED,,Small,,,5106301187,,Communications,Social housing complaints campaign 2023/,N1 9BG,93533.51,
"Housing, Communities & Local Government",DLUHC,05/09/2023,Advertising,CFO and Corporate,23 RED LIMITED,,Small,,,5106301214,,Communications,Fees and production- Levelling up Campai,N1 9BG,190999.08,
"Housing, Communities & Local Government",DLUHC,05/09/2023,Courier Services,CFO and Corporate,NATURAL ENGLAND,,Public Bodies,,212444538,5106301273,,Property Asset Management,Cambridge Franking,YO1 7PX,527.38,
"Housing, Communities & Local Government",DLUHC,05/09/2023,Courier Services,CFO and Corporate,POSTURITE LTD,,Medium,,216832621,5106301259,,People Capability & Change C/O,Delivery & Set Up,BN26 6SZ,61.14,
"Housing, Communities & Local Government",DLUHC,05/09/2023,Courier Services,Safer and Greener Buildings,Jhb Adventures Ltd T/A Jogpost,,Small,,,5106301248,,Intervention Delivery,Distribution of GTMC leaflets - Jogpost,UB3 1BQ,462,
"Housing, Communities & Local Government",DLUHC,05/09/2023,Current (non AEF) Grants to Local Authorities,Regeneration,BRISTOL CITY COUNCIL,,,,213039763,2100328891,,Planning Reform,Payment on behalf of Land Registry,BS1 5TR,17639,Yes
"Housing, Communities & Local Government",DLUHC,05/09/2023,Current (non AEF) Grants to Local Authorities,Regeneration,RYEDALE DC,,,,229870415,2100328890,,Planning Reform,Payment on behalf of Land Registry,YO17 7HH,16492,Yes
"Housing, Communities & Local Government",DLUHC,05/09/2023,Current Grants to Non Profit Bodies,Resettlements,CONVENTION OF SCOTTISH LOCAL AUTH,,Medium,,229162565,2100328930,,Resettlements,Grant for Hong Kong BN(O) Welcome Hub,EH12 5BH,203000,Yes
"Housing, Communities & Local Government",DLUHC,05/09/2023,Current Grants to Non Profit Bodies,Resettlements,East of England Local Gov Associati,,,,,2100328929,,Resettlements,Grant for Hong Kong BN(O) Welcome Hub,IP33 3YU,199000,Yes
"Housing, Communities & Local Government",DLUHC,05/09/2023,ERDF Work in Progress � Capital,Regeneration,KENT COUNTY COUNCIL,,Large,,,7700014320,,Community Investment & Funding Services,ERDF grant payment,ME14 1XQ,40924.4,Yes
"Housing, Communities & Local Government",DLUHC,05/09/2023,ERDF Work in Progress � Capital,Regeneration,Southway Housing Trust,,,,,7700014323,,Community Investment & Funding Services,ERDF grant payment,M20 2LT,991251.04,Yes
"Housing, Communities & Local Government",DLUHC,05/09/2023,ERDF Work in Progress � Resource,Regeneration,GREATER LONDON AUTHORITY,,Large,,,7700014322,,Community Investment & Funding Services,ERDF grant payment,E16 1ZE,321879.74,Yes
"Housing, Communities & Local Government",DLUHC,05/09/2023,ERDF Work in Progress � Resource,Regeneration,KENT COUNTY COUNCIL,,Large,,,7700014320,,Community Investment & Funding Services,ERDF grant payment,ME14 1XQ,495279.55,Yes
"Housing, Communities & Local Government",DLUHC,05/09/2023,ERDF Work in Progress � Resource,Regeneration,Southway Housing Trust,,,,,7700014323,,Community Investment & Funding Services,ERDF grant payment,M20 2LT,10215.27,Yes
"Housing, Communities & Local Government",DLUHC,05/09/2023,ERDF Work in Progress � Resource,Regeneration,UNIVERSITY OF NOTTINGHAM,,,,,7700014319,,Community Investment & Funding Services,ERDF grant payment,NG7 2TU,1599966.99,Yes
"Housing, Communities & Local Government",DLUHC,05/09/2023,EXP � PURCHASE OF GOODS /SERVICES R & D,CFO and Corporate,NATIONAL CENTRE FOR SOCIAL RESEARCH,,Large,,424047426,5106300793,,Analysis and Data,English Housing Survey Research,EC1V 0AX,48304.91,
"Housing, Communities & Local Government",DLUHC,05/09/2023,EXP � PURCHASE OF GOODS /SERVICES R & D,CFO and Corporate,NATIONAL CENTRE FOR SOCIAL RESEARCH,,Large,,424047426,5106300794,,Analysis and Data,English Housing Survey Research,EC1V 0AX,529376.36,
"Housing, Communities & Local Government",DLUHC,05/09/2023,"Furniture, Fittings and carpets",CFO and Corporate,Bates Office Services Ltd,,Medium,,,5106301216,,Property Asset Management,DLUHC Home-Working Equipment,ME2 2LS,343.48,
"Housing, Communities & Local Government",DLUHC,05/09/2023,"Furniture, Fittings and carpets",CFO and Corporate,POSTURITE LTD,,Medium,,216832621,5106301259,,People Capability & Change C/O,Ergonomic Chair ,BN26 6SZ,874.72,
"Housing, Communities & Local Government",DLUHC,05/09/2023,IT Consultancy,CFO and Corporate,Version 1 Solutions Ltd,,Large,,536340334,5106301247,IT Managed / Outsourced Services,Digital,FSD development costs for April - Novemb,B97 4DL,163945.3,
"Housing, Communities & Local Government",DLUHC,05/09/2023,IT Consultancy,CFO and Corporate,Version 1 Solutions Ltd,,Large,,536340334,5106301253,IT Managed / Outsourced Services,Digital,FSD development costs for April - Novemb,B97 4DL,31740,
"Housing, Communities & Local Government",DLUHC,05/09/2023,IT Consultancy,CFO and Corporate,Version 1 Solutions Ltd,,Large,,536340334,5106301254,IT Managed / Outsourced Services,Digital,FSD development costs for April - Novemb,B97 4DL,92556.52,
"Housing, Communities & Local Government",DLUHC,05/09/2023,Legal Fees,Regeneration,MILLS & REEVE LLP,,Large,,,5106301036,,Planning Reform & Housing Quality,Legal Advice,EC4R 9AT,15052.2,
"Housing, Communities & Local Government",DLUHC,05/09/2023,Professional services,Regeneration,CEL GROUP,,Medium,,394794614,5106301246,,Social Housing & Resettlement,HIA fund extension,WA2 0YL,88000,
"Housing, Communities & Local Government",DLUHC,05/09/2023,Professional services,Safer and Greener Buildings,GOVT ACTUARYS DEPARTMENT,,Public Bodies,,217789766,5106301266,Financial,Remediation Policy,EWS1 PII Scheme - GAD Support FY23-24,EC14 4PU,4568.82,
"Housing, Communities & Local Government",DLUHC,05/09/2023,Rates,CFO and Corporate,GOVERNMENT PROPERTY AGENCY,,Medium,,,5106301213,,Property Asset Management,Multi Building Rates,B2 5LS,13454.1,
"Housing, Communities & Local Government",DLUHC,05/09/2023,Rates,CFO and Corporate,GOVERNMENT PROPERTY AGENCY,,Medium,,,5106301215,,Property Asset Management,Multi Building Rates,B2 5LS,2059.65,
"Housing, Communities & Local Government",DLUHC,05/09/2023,Rates,CFO and Corporate,GOVERNMENT PROPERTY AGENCY,,Medium,,,5106301256,,Property Asset Management,Multi Building Rates,B2 5LS,6534.63,
"Housing, Communities & Local Government",DLUHC,05/09/2023,Rates,CFO and Corporate,GOVERNMENT PROPERTY AGENCY,,Medium,,,5106301262,,Property Asset Management,Multi Building Rates,B2 5LS,709.21,
"Housing, Communities & Local Government",DLUHC,05/09/2023,Rates,CFO and Corporate,GOVERNMENT PROPERTY AGENCY,,Medium,,,5106301263,,Property Asset Management,Multi Building Rates,B2 5LS,3220.83,
"Housing, Communities & Local Government",DLUHC,05/09/2023,Rates,CFO and Corporate,GOVERNMENT PROPERTY AGENCY,,Medium,,,5106301265,,Property Asset Management,Multi Building Rates,B2 5LS,7855.24,
"Housing, Communities & Local Government",DLUHC,05/09/2023,Rent,CFO and Corporate,GOVERNMENT PROPERTY AGENCY,,Medium,,,5106301213,,Property Asset Management,Multi Building rent,B2 5LS,49926.64,
"Housing, Communities & Local Government",DLUHC,05/09/2023,Rent,CFO and Corporate,GOVERNMENT PROPERTY AGENCY,,Medium,,,5106301215,,Property Asset Management,Multi Building rent,B2 5LS,14643.84,
"Housing, Communities & Local Government",DLUHC,05/09/2023,Rent,CFO and Corporate,GOVERNMENT PROPERTY AGENCY,,Medium,,,5106301256,,Property Asset Management,Multi Building rent,B2 5LS,130643.35,
"Housing, Communities & Local Government",DLUHC,05/09/2023,Rent,CFO and Corporate,GOVERNMENT PROPERTY AGENCY,,Medium,,,5106301262,,Property Asset Management,Multi Building rent,B2 5LS,13056.05,
"Housing, Communities & Local Government",DLUHC,05/09/2023,Rent,CFO and Corporate,GOVERNMENT PROPERTY AGENCY,,Medium,,,5106301263,,Property Asset Management,Multi Building rent,B2 5LS,64671.08,
"Housing, Communities & Local Government",DLUHC,05/09/2023,Rent,CFO and Corporate,GOVERNMENT PROPERTY AGENCY,,Medium,,,5106301265,,Property Asset Management,Multi Building rent,B2 5LS,33005.65,
"Housing, Communities & Local Government",DLUHC,05/09/2023,Repayments of Private Sect Grant (Cap),Levelling Up,Moventas Gears UK Ltd,,,,,2300003623,,Community Investment and Funding Service,RGF Grant Recovery ref 1273C full and final notice,HD4 5AZ,-624832,
"Housing, Communities & Local Government",DLUHC,05/09/2023,Security,CFO and Corporate,GOVERNMENT PROPERTY AGENCY,,Medium,,,5106301213,,Property Asset Management,Multi Building FM Including Security,B2 5LS,13675.11,
"Housing, Communities & Local Government",DLUHC,05/09/2023,Security,CFO and Corporate,GOVERNMENT PROPERTY AGENCY,,Medium,,,5106301215,,Property Asset Management,Multi Building FM Including Security,B2 5LS,2999.5,
"Housing, Communities & Local Government",DLUHC,05/09/2023,Security,CFO and Corporate,GOVERNMENT PROPERTY AGENCY,,Medium,,,5106301256,,Property Asset Management,Multi Building FM Including Security,B2 5LS,23389.79,
"Housing, Communities & Local Government",DLUHC,05/09/2023,Security,CFO and Corporate,GOVERNMENT PROPERTY AGENCY,,Medium,,,5106301262,,Property Asset Management,Multi Building FM Including Security,B2 5LS,3565.56,
"Housing, Communities & Local Government",DLUHC,05/09/2023,Security,CFO and Corporate,GOVERNMENT PROPERTY AGENCY,,Medium,,,5106301263,,Property Asset Management,Multi Building FM Including Security,B2 5LS,11528.5,
"Housing, Communities & Local Government",DLUHC,05/09/2023,Security,CFO and Corporate,GOVERNMENT PROPERTY AGENCY,,Medium,,,5106301265,,Property Asset Management,Multi Building FM Including Security,B2 5LS,30301.9,
"Housing, Communities & Local Government",DLUHC,05/09/2023,Software Licences,CFO and Corporate,PHOENIX SOFTWARE LTD,,Large,,,5106300855,Software,Digital,Consent Kit Team Plan,YO42 1NS,3922.56,
"Housing, Communities & Local Government",DLUHC,05/09/2023,Steady State Service Provision,CFO and Corporate,EDENRED (UK GROUP) LTD,,Large,,210186342,5106301261,,People Capability & Change C/O,EPS Vouchers 23/24,SW1V 2RS,17030,
"Housing, Communities & Local Government",DLUHC,05/09/2023,Steady State Service Provision,CFO and Corporate,GOVERNMENT PROPERTY AGENCY,,Medium,,,5106301213,,Property Asset Management,Multi Building Management Charge Fee,B2 5LS,2098.75,
"Housing, Communities & Local Government",DLUHC,05/09/2023,Steady State Service Provision,CFO and Corporate,GOVERNMENT PROPERTY AGENCY,,Medium,,,5106301215,,Property Asset Management,Multi Building Management Charge Fee,B2 5LS,2966,
"Housing, Communities & Local Government",DLUHC,05/09/2023,Steady State Service Provision,CFO and Corporate,GOVERNMENT PROPERTY AGENCY,,Medium,,,5106301256,,Property Asset Management,Multi Building Management Charge Fee,B2 5LS,6334.97,
"Housing, Communities & Local Government",DLUHC,05/09/2023,Steady State Service Provision,CFO and Corporate,GOVERNMENT PROPERTY AGENCY,,Medium,,,5106301262,,Property Asset Management,Multi Building Management Charge Fee,B2 5LS,2098.75,
"Housing, Communities & Local Government",DLUHC,05/09/2023,Steady State Service Provision,CFO and Corporate,GOVERNMENT PROPERTY AGENCY,,Medium,,,5106301263,,Property Asset Management,Multi Building Management Charge Fee,B2 5LS,5026.63,
"Housing, Communities & Local Government",DLUHC,05/09/2023,Steady State Service Provision,CFO and Corporate,GOVERNMENT PROPERTY AGENCY,,Medium,,,5106301265,,Property Asset Management,Multi Building Management Charge Fee,B2 5LS,7281.38,
"Housing, Communities & Local Government",DLUHC,05/09/2023,Steady State Service Provision,Safer and Greener Buildings,Heads Resourcing Group Ltd,,Small,,218026480,5106301189,,Intervention Delivery,Procurement Lead,SO50 9PD,3398.4,
"Housing, Communities & Local Government",DLUHC,05/09/2023,Training,CFO and Corporate,ERNST & YOUNG LLP,,Large,,221768935,5106301238,,People Capability & Change C/O,Civil Service Training,SE1 2AF,7322.4,
"Housing, Communities & Local Government",DLUHC,05/09/2023,Travel and Subsistence Account,Levelling Up,NETWORK EXECUTIVE CHAUFFEURS UK LTD,,Small,,217495152,5106301245,,Strategy & Private Offices,Official Travel & Subsistence,B7 4HJ,452.7,
"Housing, Communities & Local Government",DLUHC,05/09/2023,Web Services,CFO and Corporate,Juicy Media Ltd,,Small,,,5106301252,,Digital,Local Digital Campaign - Hosting 23/24,M50 2ST,3570,
"Housing, Communities & Local Government",DLUHC,06/09/2023,Advertising,CFO and Corporate,23 RED LIMITED,,Small,,,5106301186,,Communications,Social housing complaints campaign 2023/,N1 9BG,106590.72,
"Housing, Communities & Local Government",DLUHC,06/09/2023,Capital Grants to Private Sect Non Profit,Levelling Up,CHAPEL ST CREATIVE,,,,,2100328953,,Community Investment and Funding Service,COF23 045 - Chapel St Creative - Capital Grant,TR18 4AW,169000,Yes
"Housing, Communities & Local Government",DLUHC,06/09/2023,Capital Grants to Private Sect Non Profit,Levelling Up,Interim Spaces,,Micro,,,2100328948,,Community Investment and Funding Service,COF23 073 - Interim Spaces Capital Grant,WC2H 7DT,120000,Yes
"Housing, Communities & Local Government",DLUHC,06/09/2023,Capital Grants to Private Sect Non Profit,Levelling Up,Winchcombe Arts & Community Hob,,,,,2100328946,,Community Investment and Funding Service,CPF23 060 WinchombeArts Capital grant,GL54 5JJ,162500,Yes
"Housing, Communities & Local Government",DLUHC,06/09/2023,Current (non AEF) Grants to Local Authorities,Local Govnmnt Resilience and Communities,SALFORD CITY COUNCIL,,Public Bodies,,210765504,2300003609,,Resilience & Recovery,Payment Recovery,M27 5AW,-31978,Yes
"Housing, Communities & Local Government",DLUHC,06/09/2023,Current Grants to Non Profit Bodies,Levelling Up,CHAPEL ST CREATIVE,,,,,2100328954,,Community Investment and Funding Service,COF23 045 - Chapel St Creative - Revenue Grant,TR18 4AW,8000,Yes
"Housing, Communities & Local Government",DLUHC,06/09/2023,Current Grants to Non Profit Bodies,Levelling Up,Interim Spaces,,Micro,,,2100328949,,Community Investment and Funding Service,COF23 073 - Interim Spaces Revenue Grant,WC2H 7DT,24000,Yes
"Housing, Communities & Local Government",DLUHC,06/09/2023,Current Grants to Non Profit Bodies,Levelling Up,Winchcombe Arts & Community Hob,,,,,2100328947,,Community Investment and Funding Service,COF23 060 Winchombe Arts Revenue,GL54 5JJ,9190.67,Yes
"Housing, Communities & Local Government",DLUHC,06/09/2023,Current Grants to Non Profit Bodies,Regeneration,GROUNDWORK UK,Yes,,,739193758,2100328653,,Chief Planner,Neighbourhood Planning support to communities,B5 5NR,800000,Yes
"Housing, Communities & Local Government",DLUHC,06/09/2023,Current Grants to Non Profit Bodies,Resettlements,Options Wellbeing Trust,Yes,Micro,,,2300003587,,Resettlements,Recovery of payment in error doc no 2401237756,SO15 3FH,-65994,Yes
"Housing, Communities & Local Government",DLUHC,06/09/2023,Current Grants to Non Profit Bodies,Resettlements,SE STRATEGIC PARTNERSHIP FOR MIGRAT,,Micro,,,2100328952,,Resettlements,Grant for Hong Kong BN(O) Welcome Hub,TN13 1HG,296000,Yes
"Housing, Communities & Local Government",DLUHC,06/09/2023,ERDF Work in Progress � Capital,Regeneration,CORNWALL COUNCIL,,Large,,,7700014326,,Community Investment & Funding Services,ERDF grant payment,TR1 3AY,18308.66,Yes
"Housing, Communities & Local Government",DLUHC,06/09/2023,ERDF Work in Progress � Resource,Regeneration,CORNWALL COUNCIL,,Large,,,7700014326,,Community Investment & Funding Services,ERDF grant payment,TR1 3AY,385231.11,Yes
"Housing, Communities & Local Government",DLUHC,06/09/2023,ERDF Work in Progress � Resource,Regeneration,CORNWALL COUNCIL,,Large,,,7700014327,,Community Investment & Funding Services,ERDF grant offset,TR1 3AY,-3198.3,Yes
"Housing, Communities & Local Government",DLUHC,06/09/2023,ERDF Work in Progress � Resource,Regeneration,LIVERPOOL JOHN MOORES UNIVERSITY,,Large,,,7700014328,,Community Investment & Funding Services,ERDF grant payment,L1 2UA,58994.63,Yes
"Housing, Communities & Local Government",DLUHC,06/09/2023,ERDF Work in Progress � Resource,Regeneration,UNIVERSITY OF THE WEST OF ENGLAND,,Large,,,7700014324,,Community Investment & Funding Services,ERDF grant payment,BS16 1QY,157772.21,Yes
"Housing, Communities & Local Government",DLUHC,06/09/2023,ERDF Work in Progress � Resource,Regeneration,UNIVERSITY OF THE WEST OF ENGLAND,,Large,,,7700014325,,Community Investment & Funding Services,ERDF grant payment,BS16 1QY,25087.03,Yes
"Housing, Communities & Local Government",DLUHC,06/09/2023,EXP � PURCHASE OF GOODS /SERVICES R & D,Safer and Greener Buildings,AECOM LTD,,Large,,214127604,5106301304,,Building Systems & Net Zero,Embodied Carbon Research and Analysis,E1 8FA,5168,
"Housing, Communities & Local Government",DLUHC,06/09/2023,"Furniture, Fittings and carpets",CFO and Corporate,Bates Office Services Ltd,,Medium,,,5106301282,,Property Asset Management,DLUHC Home-Working Equipment,ME2 2LS,290.62,
"Housing, Communities & Local Government",DLUHC,06/09/2023,Grant in Aid to NDPBs (non budget),Regeneration,REGULATOR OF SOCIAL HOUSING,,Medium,,,2100328674,,Regulator of Social Housing,Grant in Aid to RSH,M1 4BT,761000,Yes
"Housing, Communities & Local Government",DLUHC,06/09/2023,IT - Service Contracts,CFO and Corporate,Brandlogik,,Micro,,,5106301305,,People Capability & Change C/O,UK Boardroom Apprentice Website developm,BT20 3GQ,300,
"Housing, Communities & Local Government",DLUHC,06/09/2023,Legal Fees,Regeneration,MILLS & REEVE LLP,,Large,,,5106301242,,Planning Reform & Housing Quality,Legal Advice,EC4R 9AT,6608.76,
"Housing, Communities & Local Government",DLUHC,06/09/2023,Legal Fees,Regeneration,VALUATION OFFICE AGENCY,,Public Bodies,,215253886,5106301343,,Chief Planner,Legal Advice,W1D 5BU,1365.04,
"Housing, Communities & Local Government",DLUHC,06/09/2023,Professional services,Regeneration,VALUATION OFFICE AGENCY,,Public Bodies,,215253886,5106301337,,Social Housing & Resettlement,VOA fees F/Y 2023/24,W1D 5BU,124012.12,
"Housing, Communities & Local Government",DLUHC,06/09/2023,Professional services,Safer and Greener Buildings,GOVT ACTUARYS DEPARTMENT,,Public Bodies,,217789766,5106301334,,Remediation Policy,Buildings Insurance Actuarial Services,EC14 4PU,1504.34,
"Housing, Communities & Local Government",DLUHC,06/09/2023,Professional services,Safer and Greener Buildings,RIDGE & PARTNERS LLP,,Large,,739927452,5106301194,,Intervention Delivery,CSSP - Ridge & Partners LLP,OX20 1QR,63386.4,
"Housing, Communities & Local Government",DLUHC,06/09/2023,Professional services,Safer and Greener Buildings,TURNER&TOWNSEND PROJECT MAN LTD,,Large,,,5106301198,,Intervention Delivery,CSSP - T+T,LS18 4GH,126942,
"Housing, Communities & Local Government",DLUHC,06/09/2023,Publications,CFO and Corporate,HH Associates Limited,,Large,,770639193,5106301323,,Finance,DLUHC printing ARA 2022-23,KT22 9DF,7413.78,
"Housing, Communities & Local Government",DLUHC,06/09/2023,Publications,CFO and Corporate,HH Associates Limited,,Large,,770639193,5106301323,,Finance,Finance Faststream Costs,KT22 9DF,2879.46,
"Housing, Communities & Local Government",DLUHC,06/09/2023,Publications,CFO and Corporate,HH Associates Limited,,Large,,770639193,5106301323,,Finance,Minister Copy of LY ARA,KT22 9DF,95.87,
"Housing, Communities & Local Government",DLUHC,06/09/2023,Publications,CFO and Corporate,HH Associates Limited,,Large,,770639193,5106301323,,Finance,Finance Faststream Costs,KT22 9DF,0.59,
"Housing, Communities & Local Government",DLUHC,06/09/2023,Rates,CFO and Corporate,GOVERNMENT PROPERTY AGENCY,,Medium,,,5106301346,,Property Asset Management,GPA Balancing Charges 22/23 NON VAT   58,B2 5LS,83967.82,
"Housing, Communities & Local Government",DLUHC,06/09/2023,Rates,CFO and Corporate,GOVERNMENT PROPERTY AGENCY,,Medium,,,5106301348,,Property Asset Management,GPA Balancing Charges 22/23 NON VAT   58,B2 5LS,4322.94,
"Housing, Communities & Local Government",DLUHC,06/09/2023,Rates,CFO and Corporate,GOVERNMENT PROPERTY AGENCY,,Medium,,,5106301349,,Property Asset Management,GPA Balancing Charges 22/23 NON VAT   58,B2 5LS,9152.21,
"Housing, Communities & Local Government",DLUHC,06/09/2023,Rent,CFO and Corporate,GOVERNMENT PROPERTY AGENCY,,Medium,,,5106301340,,Property Asset Management,Multi Building FM Including Security,B2 5LS,2510.32,
"Housing, Communities & Local Government",DLUHC,06/09/2023,Repayments of Private Sect Grant (Cap),Levelling Up,ERLSON PRECISION COMPONENTS LTD,,Medium,,,2300003589,,Community Investment and Funding Service,RGF Grant Recovery ref 1707C August 2023 instalmen,WN8 9QB,-2618.42,
"Housing, Communities & Local Government",DLUHC,06/09/2023,Security,CFO and Corporate,CHUBB FIRE AND SECURITY LTD,,Large,,216041905,5106301335,Security,Property Asset Management,HEMEL HEMPSTEAD maintenance contract fo,LU1 1UR,554.7,
"Housing, Communities & Local Government",DLUHC,06/09/2023,Steady State Service Provision,CFO and Corporate,GOVERNMENT PROPERTY AGENCY,,Medium,,,5106301346,,Property Asset Management,"Balancing Charges 22/23 VAT  515,683.66",B2 5LS,15490.53,
"Housing, Communities & Local Government",DLUHC,06/09/2023,Steady State Service Provision,CFO and Corporate,GOVERNMENT PROPERTY AGENCY,,Medium,,,5106301347,,Property Asset Management,"Balancing Charges 22/23 VAT  515,683.66",B2 5LS,22106.21,
"Housing, Communities & Local Government",DLUHC,06/09/2023,Steady State Service Provision,CFO and Corporate,GOVERNMENT PROPERTY AGENCY,,Medium,,,5106301349,,Property Asset Management,"Balancing Charges 22/23 VAT  515,683.66",B2 5LS,66777.3,
"Housing, Communities & Local Government",DLUHC,06/09/2023,Steady State Service Provision,CFO and Corporate,GOVERNMENT PROPERTY AGENCY,,Medium,,,5106301350,,Property Asset Management,"Balancing Charges 22/23 VAT  515,683.66",B2 5LS,36066.23,
"Housing, Communities & Local Government",DLUHC,06/09/2023,Steady State Service Provision,Regeneration,GROUNDWORK UK,Yes,,,739193758,5106301351,,Chief Planner,Management Fee,B5 5NR,6522,
"Housing, Communities & Local Government",DLUHC,06/09/2023,Steady State Service Provision,Regeneration,LOCALITY,,Medium,,347998312,5106301352,Business Process Outsourcing Services,Chief Planner,Neighbourhood Planning Support,N1 6DR,36458.35,
"Housing, Communities & Local Government",DLUHC,06/09/2023,Subscriptions to organisations,CFO and Corporate,DCLG GOVERNMENT PROCUREMENT CARD,,,,,1000005545,,Digital,Subscriptions/publications,TN37 7GA,864,
"Housing, Communities & Local Government",DLUHC,06/09/2023,Training,CFO and Corporate,PERPETUITY TRAINING LTD,,Micro,,,5106301300,,Commercial,Civil Service Training,LE18 4XH,1467,
"Housing, Communities & Local Government",DLUHC,06/09/2023,Travel and Subsistence Account,Local Govnmnt Resilience and Communities,DCLG GOVERNMENT PROCUREMENT CARD,,,,,1000005547,Business Travel,Strategy and Private Offices,Official Travel & Subsistence,TN37 7GA,400,
"Housing, Communities & Local Government",DLUHC,07/09/2023,Accommodation - actuals,CFO and Corporate,CORPORATE TRAVEL MANAGEMENT(NORTH)L,,Small,,213089972,2100328971,Business Travel Accommodation,Analysis and Data,Business Travel Accomodation July 2023,BD1 5HQ,298.32,
"Housing, Communities & Local Government",DLUHC,07/09/2023,Accommodation - actuals,CFO and Corporate,CORPORATE TRAVEL MANAGEMENT(NORTH)L,,Small,,213089972,2100328971,Business Travel Accommodation,Analysis and Data,Business Travel Accomodation July 2023,BD1 5HQ,2823.26,
"Housing, Communities & Local Government",DLUHC,07/09/2023,Accommodation - actuals,CFO and Corporate,CORPORATE TRAVEL MANAGEMENT(NORTH)L,,Small,,213089972,2100328971,Business Travel Accommodation,People Capability & Change C/O,Consolidated Monthly Travel July 2023 Hotels,BD1 5HQ,533.59,
"Housing, Communities & Local Government",DLUHC,07/09/2023,Accommodation - actuals,CFO and Corporate,CORPORATE TRAVEL MANAGEMENT(NORTH)L,,Small,,213089972,2100328971,Business Travel Accommodation,Digital,Consolidated Monthly Travel July 2023 Hotels,BD1 5HQ,1258.26,
"Housing, Communities & Local Government",DLUHC,07/09/2023,Accommodation - actuals,CFO and Corporate,CORPORATE TRAVEL MANAGEMENT(NORTH)L,,Small,,213089972,2100328971,Business Travel Accommodation,Digital,Consolidated Monthly Travel July 2023 Hotels,BD1 5HQ,912,
"Housing, Communities & Local Government",DLUHC,07/09/2023,Accommodation - actuals,CFO and Corporate,CORPORATE TRAVEL MANAGEMENT(NORTH)L,,Small,,213089972,2100328971,Business Travel Accommodation,Finance,Consolidated Monthly Travel July 2023 Hotels,BD1 5HQ,634.3,
"Housing, Communities & Local Government",DLUHC,07/09/2023,Accommodation - actuals,CFO and Corporate,CORPORATE TRAVEL MANAGEMENT(NORTH)L,,Small,,213089972,2100328971,Business Travel Accommodation,Commercial,Consolidated Monthly Travel July 2023 Hotels,BD1 5HQ,2098.15,
"Housing, Communities & Local Government",DLUHC,07/09/2023,Accommodation - actuals,Levelling Up,CORPORATE TRAVEL MANAGEMENT(NORTH)L,,Small,,213089972,2100328971,Business Travel Accommodation,Areas,Consolidated Monthly Travel July 2023 Hotels,BD1 5HQ,482.5,
"Housing, Communities & Local Government",DLUHC,07/09/2023,Accommodation - actuals,Levelling Up,CORPORATE TRAVEL MANAGEMENT(NORTH)L,,Small,,213089972,2100328971,Business Travel Accommodation,Spatial Data Unit,Consolidated Monthly Travel July 2023 Hotels,BD1 5HQ,446.25,
"Housing, Communities & Local Government",DLUHC,07/09/2023,Accommodation - actuals,Levelling Up,CORPORATE TRAVEL MANAGEMENT(NORTH)L,,Small,,213089972,2100328971,Business Travel Accommodation,Place,Consolidated Monthly Travel July 2023 Hotels,BD1 5HQ,4683.89,
"Housing, Communities & Local Government",DLUHC,07/09/2023,Accommodation - actuals,Levelling Up,CORPORATE TRAVEL MANAGEMENT(NORTH)L,,Small,,213089972,2100328971,Business Travel Accommodation,LU Policy & Delivery,Consolidated Monthly Travel July 2023 Hotels,BD1 5HQ,367.09,
"Housing, Communities & Local Government",DLUHC,07/09/2023,Accommodation - actuals,Levelling Up,CORPORATE TRAVEL MANAGEMENT(NORTH)L,,Small,,213089972,2100328971,Business Travel Accommodation,LU Policy & Delivery,Consolidated Monthly Travel July 2023 Hotels,BD1 5HQ,783,
"Housing, Communities & Local Government",DLUHC,07/09/2023,Accommodation - actuals,Levelling Up,CORPORATE TRAVEL MANAGEMENT(NORTH)L,,Small,,213089972,2100328971,Business Travel Accommodation,Strategy & Private Offices,Consolidated Monthly Travel July 2023 Hotels,BD1 5HQ,2521.06,
"Housing, Communities & Local Government",DLUHC,07/09/2023,Accommodation - actuals,Levelling Up,CORPORATE TRAVEL MANAGEMENT(NORTH)L,,Small,,213089972,2100328971,Business Travel Accommodation,Strategy & Private Offices,Consolidated Monthly Travel July 2023 Hotels,BD1 5HQ,1513.47,
"Housing, Communities & Local Government",DLUHC,07/09/2023,Accommodation - actuals,Levelling Up,CORPORATE TRAVEL MANAGEMENT(NORTH)L,,Small,,213089972,2100328971,Business Travel Accommodation,Levelling Up: Major Programmes,Consolidated Monthly Travel July 2023 Hotels,BD1 5HQ,400.88,
"Housing, Communities & Local Government",DLUHC,07/09/2023,Accommodation - actuals,Levelling Up,CORPORATE TRAVEL MANAGEMENT(NORTH)L,,Small,,213089972,2100328971,Business Travel Accommodation,Community Investment and Funding Service,Consolidated Monthly Travel July 2023 Hotels,BD1 5HQ,543.99,
"Housing, Communities & Local Government",DLUHC,07/09/2023,Accommodation - actuals,Levelling Up,CORPORATE TRAVEL MANAGEMENT(NORTH)L,,Small,,213089972,2100328971,Business Travel Accommodation,Community Investment and Funding Service,Consolidated Monthly Travel July 2023 Hotels,BD1 5HQ,793.66,
"Housing, Communities & Local Government",DLUHC,07/09/2023,Accommodation - actuals,Levelling Up,CORPORATE TRAVEL MANAGEMENT(NORTH)L,,Small,,213089972,2100328971,Business Travel Accommodation,Community Investment and Funding Service,Consolidated Monthly Travel July 2023 Hotels,BD1 5HQ,387,
"Housing, Communities & Local Government",DLUHC,07/09/2023,Accommodation - actuals,Local Govnmnt Resilience and Communities,CORPORATE TRAVEL MANAGEMENT(NORTH)L,,Small,,213089972,2100328971,Business Travel Accommodation,Local Government Finance,Consolidated Monthly Travel July 2023 Hotels,BD1 5HQ,263.5,
"Housing, Communities & Local Government",DLUHC,07/09/2023,Accommodation - actuals,Local Govnmnt Resilience and Communities,CORPORATE TRAVEL MANAGEMENT(NORTH)L,,Small,,213089972,2100328971,Business Travel Accommodation,Integration and Communities,Consolidated Monthly Travel July 2023 Hotels,BD1 5HQ,1403.61,
"Housing, Communities & Local Government",DLUHC,07/09/2023,Accommodation - actuals,Local Govnmnt Resilience and Communities,CORPORATE TRAVEL MANAGEMENT(NORTH)L,,Small,,213089972,2100328971,Business Travel Accommodation,Strategy and Private Offices,Consolidated Monthly Travel July 2023 Hotels,BD1 5HQ,2514.17,
"Housing, Communities & Local Government",DLUHC,07/09/2023,Accommodation - actuals,Local Govnmnt Resilience and Communities,CORPORATE TRAVEL MANAGEMENT(NORTH)L,,Small,,213089972,2100328971,Business Travel Accommodation,Homelessness & Rough Sleeping,Consolidated Monthly Travel July 2023 Hotels,BD1 5HQ,2892.9,
"Housing, Communities & Local Government",DLUHC,07/09/2023,Accommodation - actuals,Local Govnmnt Resilience and Communities,CORPORATE TRAVEL MANAGEMENT(NORTH)L,,Small,,213089972,2100328971,Business Travel Accommodation,Homelessness & Rough Sleeping,Consolidated Monthly Travel July 2023 Hotels,BD1 5HQ,1282.98,
"Housing, Communities & Local Government",DLUHC,07/09/2023,Accommodation - actuals,Local Govnmnt Resilience and Communities,CORPORATE TRAVEL MANAGEMENT(NORTH)L,,Small,,213089972,2100328971,Business Travel Accommodation,Homelessness & Rough Sleeping,Consolidated Monthly Travel July 2023 Hotels,BD1 5HQ,2741.64,
"Housing, Communities & Local Government",DLUHC,07/09/2023,Accommodation - actuals,Local Govnmnt Resilience and Communities,CORPORATE TRAVEL MANAGEMENT(NORTH)L,,Small,,213089972,2100328971,Business Travel Accommodation,Resilience & Recovery,Consolidated Monthly Travel July 2023 Hotels,BD1 5HQ,2253.9,
"Housing, Communities & Local Government",DLUHC,07/09/2023,Accommodation - actuals,Local Govnmnt Resilience and Communities,CORPORATE TRAVEL MANAGEMENT(NORTH)L,,Small,,213089972,2100328971,Business Travel Accommodation,Holocaust Memorial UKHMF,Consolidated Monthly Travel July 2023 Hotels,BD1 5HQ,468,
"Housing, Communities & Local Government",DLUHC,07/09/2023,Accommodation - actuals,Local Govnmnt Resilience and Communities,CORPORATE TRAVEL MANAGEMENT(NORTH)L,,Small,,213089972,2100328971,Business Travel Accommodation,Elections Directorate,Consolidated Monthly Travel July 2023 Hotels,BD1 5HQ,534,
"Housing, Communities & Local Government",DLUHC,07/09/2023,Accommodation - actuals,Local Govnmnt Resilience and Communities,CORPORATE TRAVEL MANAGEMENT(NORTH)L,,Small,,213089972,2100328971,Business Travel Accommodation,Elections Directorate,Consolidated Monthly Travel July 2023 Hotels,BD1 5HQ,383,
"Housing, Communities & Local Government",DLUHC,07/09/2023,Accommodation - actuals,Local Govnmnt Resilience and Communities,CORPORATE TRAVEL MANAGEMENT(NORTH)L,,Small,,213089972,2100328971,Business Travel Accommodation,Local Government Policy,Consolidated Monthly Travel July 2023 Hotels,BD1 5HQ,300,
"Housing, Communities & Local Government",DLUHC,07/09/2023,Accommodation - actuals,Local Govnmnt Resilience and Communities,CORPORATE TRAVEL MANAGEMENT(NORTH)L,,Small,,213089972,2100328971,Business Travel Accommodation,Local Government Policy,Consolidated Monthly Travel July 2023 Hotels,BD1 5HQ,508.5,
"Housing, Communities & Local Government",DLUHC,07/09/2023,Accommodation - actuals,Local Govnmnt Resilience and Communities,CORPORATE TRAVEL MANAGEMENT(NORTH)L,,Small,,213089972,2100328971,Business Travel Accommodation,Local Government Policy,Consolidated Monthly Travel July 2023 Hotels,BD1 5HQ,661.5,
"Housing, Communities & Local Government",DLUHC,07/09/2023,Accommodation - actuals,Local Govnmnt Resilience and Communities,CORPORATE TRAVEL MANAGEMENT(NORTH)L,,Small,,213089972,2100328971,Business Travel Accommodation,Local Government Policy,Consolidated Monthly Travel July 2023 Hotels,BD1 5HQ,982.99,
"Housing, Communities & Local Government",DLUHC,07/09/2023,Accommodation - actuals,Local Govnmnt Resilience and Communities,CORPORATE TRAVEL MANAGEMENT(NORTH)L,,Small,,213089972,2100328971,Business Travel Accommodation,Covid 19 Inquiry,Consolidated Monthly Travel July 2023 Hotels,BD1 5HQ,459,
"Housing, Communities & Local Government",DLUHC,07/09/2023,Accommodation - actuals,Regeneration,CORPORATE TRAVEL MANAGEMENT(NORTH)L,,Small,,213089972,2100328971,Business Travel Accommodation,Chief Planner,Consolidated Monthly Travel July 2023 Hotels,BD1 5HQ,978.54,
"Housing, Communities & Local Government",DLUHC,07/09/2023,Accommodation - actuals,Regeneration,CORPORATE TRAVEL MANAGEMENT(NORTH)L,,Small,,213089972,2100328971,Business Travel Accommodation,Housing Markets and Strategy,Consolidated Monthly Travel July 2023 Hotels,BD1 5HQ,864.5,
"Housing, Communities & Local Government",DLUHC,07/09/2023,Accommodation - actuals,Regeneration,CORPORATE TRAVEL MANAGEMENT(NORTH)L,,Small,,213089972,2100328971,Business Travel Accommodation,Housing Markets and Strategy,Consolidated Monthly Travel July 2023 Hotels,BD1 5HQ,384.59,
"Housing, Communities & Local Government",DLUHC,07/09/2023,Accommodation - actuals,Regeneration,CORPORATE TRAVEL MANAGEMENT(NORTH)L,,Small,,213089972,2100328971,Business Travel Accommodation,Housing Markets and Strategy,Consolidated Monthly Travel July 2023 Hotels,BD1 5HQ,503.29,
"Housing, Communities & Local Government",DLUHC,07/09/2023,Accommodation - actuals,Regeneration,CORPORATE TRAVEL MANAGEMENT(NORTH)L,,Small,,213089972,2100328971,Business Travel Accommodation,Social Housing & Resettlement,Directorate Monthly Travel July 2023 Hotels,BD1 5HQ,299,
"Housing, Communities & Local Government",DLUHC,07/09/2023,Accommodation - actuals,Regeneration,CORPORATE TRAVEL MANAGEMENT(NORTH)L,,Small,,213089972,2100328971,Business Travel Accommodation,Leasehold Land & Planning Systems,Consolidated Monthly Travel July 2023 Hotels,BD1 5HQ,972.05,
"Housing, Communities & Local Government",DLUHC,07/09/2023,Accommodation - actuals,Regeneration,CORPORATE TRAVEL MANAGEMENT(NORTH)L,,Small,,213089972,2100328971,Business Travel Accommodation,Planning Reform & Housing Quality,Consolidated Monthly Travel July 2023 Hotels,BD1 5HQ,281,
"Housing, Communities & Local Government",DLUHC,07/09/2023,Accommodation - actuals,Regeneration,CORPORATE TRAVEL MANAGEMENT(NORTH)L,,Small,,213089972,2100328971,Business Travel Accommodation,Planning Reform & Housing Quality,Consolidated Monthly Travel July 2023 Hotels,BD1 5HQ,2188.93,
"Housing, Communities & Local Government",DLUHC,07/09/2023,Accommodation - actuals,Regeneration,CORPORATE TRAVEL MANAGEMENT(NORTH)L,,Small,,213089972,2100328971,Business Travel Accommodation,Planning Reform & Housing Quality,Consolidated Monthly Travel July 2023 Hotels,BD1 5HQ,471.53,
"Housing, Communities & Local Government",DLUHC,07/09/2023,Accommodation - actuals,Regeneration,CORPORATE TRAVEL MANAGEMENT(NORTH)L,,Small,,213089972,2100328971,Business Travel Accommodation,Planning Reform & Housing Quality,Consolidated Monthly Travel July 2023 Hotels,BD1 5HQ,317.7,
"Housing, Communities & Local Government",DLUHC,07/09/2023,Accommodation - actuals,Regeneration,CORPORATE TRAVEL MANAGEMENT(NORTH)L,,Small,,213089972,2100328971,Business Travel Accommodation,Planning Reform & Housing Quality,Consolidated Monthly Travel July 2023 Hotels,BD1 5HQ,1429.04,
"Housing, Communities & Local Government",DLUHC,07/09/2023,Accommodation - actuals,Safer and Greener Buildings,CORPORATE TRAVEL MANAGEMENT(NORTH)L,,Small,,213089972,2100328971,Business Travel Accommodation,Intervention Delivery,Consolidated Monthly Travel July 2023 Hotels,BD1 5HQ,1368.14,
"Housing, Communities & Local Government",DLUHC,07/09/2023,Accommodation - actuals,Safer and Greener Buildings,CORPORATE TRAVEL MANAGEMENT(NORTH)L,,Small,,213089972,2100328971,Business Travel Accommodation,Intervention Delivery,Consolidated Monthly Travel July 2023 Hotels,BD1 5HQ,1371,
"Housing, Communities & Local Government",DLUHC,07/09/2023,Accommodation - actuals,Safer and Greener Buildings,CORPORATE TRAVEL MANAGEMENT(NORTH)L,,Small,,213089972,2100328971,Business Travel Accommodation,Intervention Delivery,Consolidated Monthly Travel July 2023 Hotels,BD1 5HQ,403.9,
"Housing, Communities & Local Government",DLUHC,07/09/2023,Accommodation - actuals,Safer and Greener Buildings,CORPORATE TRAVEL MANAGEMENT(NORTH)L,,Small,,213089972,2100328971,Business Travel Accommodation,Intervention Delivery,Consolidated Monthly Travel July 2023 Hotels,BD1 5HQ,1215.04,
"Housing, Communities & Local Government",DLUHC,07/09/2023,Accommodation - actuals,Safer and Greener Buildings,CORPORATE TRAVEL MANAGEMENT(NORTH)L,,Small,,213089972,2100328971,Business Travel Accommodation,Building Systems & Net Zero,Consolidated Monthly Travel July 2023 Hotels,BD1 5HQ,995,
"Housing, Communities & Local Government",DLUHC,07/09/2023,Accommodation - actuals,Safer and Greener Buildings,CORPORATE TRAVEL MANAGEMENT(NORTH)L,,Small,,213089972,2100328971,Business Travel Accommodation,Building Systems & Net Zero,Consolidated Monthly Travel July 2023 Hotels,BD1 5HQ,761.25,
"Housing, Communities & Local Government",DLUHC,07/09/2023,Accommodation - actuals,Safer and Greener Buildings,CORPORATE TRAVEL MANAGEMENT(NORTH)L,,Small,,213089972,2100328971,Business Travel Accommodation,Building Systems & Net Zero,Consolidated Monthly Travel July 2023 Hotels,BD1 5HQ,365,
"Housing, Communities & Local Government",DLUHC,07/09/2023,Accommodation - actuals,Safer and Greener Buildings,CORPORATE TRAVEL MANAGEMENT(NORTH)L,,Small,,213089972,2100328971,Business Travel Accommodation,Remediation Policy,Consolidated Monthly Travel July 2023 Hotels,BD1 5HQ,404.6,
"Housing, Communities & Local Government",DLUHC,07/09/2023,Accommodation - actuals,Safer and Greener Buildings,CORPORATE TRAVEL MANAGEMENT(NORTH)L,,Small,,213089972,2100328971,Business Travel Accommodation,Remediation Policy,Consolidated Monthly Travel July 2023 Hotels,BD1 5HQ,974.25,
"Housing, Communities & Local Government",DLUHC,07/09/2023,Accommodation - actuals,Union & Windsor Framework,CORPORATE TRAVEL MANAGEMENT(NORTH)L,,Small,,213089972,2100328971,Business Travel Accommodation,Union & Devolution,Consolidated Monthly Travel July 2023 Hotels,BD1 5HQ,1840.68,
"Housing, Communities & Local Government",DLUHC,07/09/2023,Accommodation - actuals,CFO and Corporate,CORPORATE TRAVEL MANAGEMENT(NORTH)L,,Small,,213089972,2100328971,Business Travel Accommodation,Not assigned,Consolidated Monthly Travel July 2023 Hotels,BD1 5HQ,1584.08,
"Housing, Communities & Local Government",DLUHC,07/09/2023,Agency Staff,Local Govnmnt Resilience and Communities,CABINET OFFICE HR SHARED SERVICES,,Large,,232159186,5106301306,,Integration and Communities,Staff Costs,FY5 9BU,23229,
"Housing, Communities & Local Government",DLUHC,07/09/2023,Air Travel,CFO and Corporate,CORPORATE TRAVEL MANAGEMENT(NORTH)L,,Small,,213089972,2100328970,Air,Analysis and Data,Business Travel Air July 2023,BD1 5HQ,741.22,
"Housing, Communities & Local Government",DLUHC,07/09/2023,Air Travel,Levelling Up,CORPORATE TRAVEL MANAGEMENT(NORTH)L,,Small,,213089972,2100328971,Air,Place,Consolidated Monthly Travel July 2023 Air Tickets,BD1 5HQ,290.84,
"Housing, Communities & Local Government",DLUHC,07/09/2023,Air Travel,Levelling Up,CORPORATE TRAVEL MANAGEMENT(NORTH)L,,Small,,213089972,2100328971,Air,Strategy & Private Offices,Consolidated Monthly Travel July 2023 Air Tickets,BD1 5HQ,1009.7,
"Housing, Communities & Local Government",DLUHC,07/09/2023,Air Travel,Local Govnmnt Resilience and Communities,CORPORATE TRAVEL MANAGEMENT(NORTH)L,,Small,,213089972,2100328971,Air,Strategy and Private Offices,Consolidated Monthly Travel July 2023 Air Tickets,BD1 5HQ,350.86,
"Housing, Communities & Local Government",DLUHC,07/09/2023,Air Travel,Local Govnmnt Resilience and Communities,CORPORATE TRAVEL MANAGEMENT(NORTH)L,,Small,,213089972,2100328971,Air,Holocaust Memorial UKHMF,Consolidated Monthly Travel July 2023 Air Tickets,BD1 5HQ,1146.93,
"Housing, Communities & Local Government",DLUHC,07/09/2023,Air Travel,Local Govnmnt Resilience and Communities,CORPORATE TRAVEL MANAGEMENT(NORTH)L,,Small,,213089972,2100328971,Air,Local Government Policy,Consolidated Monthly Travel July 2023 Air Tickets,BD1 5HQ,405.22,
"Housing, Communities & Local Government",DLUHC,07/09/2023,Cap Grants to Local Authorities (DEL),Regeneration,BARKING & DAGENHAM LB,,,,217142293,3700234269,,Social Housing & Resettlement,Grant payable by the Exchequer,RM10 7BY,162033,Yes
"Housing, Communities & Local Government",DLUHC,07/09/2023,Cap Grants to Local Authorities (DEL),Regeneration,BARNET LB,,,,211049507,3700234278,,Social Housing & Resettlement,Grant payable by the Exchequer,NN1 1NP,251704,Yes
"Housing, Communities & Local Government",DLUHC,07/09/2023,Cap Grants to Local Authorities (DEL),Regeneration,BARNSLEY MBC,,,,211178595,3700234194,,Social Housing & Resettlement,Grant payable by the Exchequer,S70 2AQ,294681,Yes
"Housing, Communities & Local Government",DLUHC,07/09/2023,Cap Grants to Local Authorities (DEL),Regeneration,BATH & NE SOMERSET DC,,,,214502499,3700234218,,Social Housing & Resettlement,Grant payable by the Exchequer,BA1 1JG,125820,Yes
"Housing, Communities & Local Government",DLUHC,07/09/2023,Cap Grants to Local Authorities (DEL),Regeneration,BCP Council,,,,,3700234248,,Social Housing & Resettlement,Grant payable by the Exchequer,BH2 6DY,307008,Yes
"Housing, Communities & Local Government",DLUHC,07/09/2023,Cap Grants to Local Authorities (DEL),Regeneration,BEDFORD UNITARY AUTHORITY,,,,225682160,3700234203,,Social Housing & Resettlement,Grant payable by the Exchequer,MK40 1SJ,123101,Yes
"Housing, Communities & Local Government",DLUHC,07/09/2023,Cap Grants to Local Authorities (DEL),Regeneration,BEXLEY LB,,,,,3700234188,,Social Housing & Resettlement,Grant payable by the Exchequer,DA8 1TL,258724,Yes
"Housing, Communities & Local Government",DLUHC,07/09/2023,Cap Grants to Local Authorities (DEL),Regeneration,BIRMINGHAM CITY CNCL,,,,213780559,3700234309,,Social Housing & Resettlement,Grant payable by the Exchequer,B2 2AJ,1129415,Yes
"Housing, Communities & Local Government",DLUHC,07/09/2023,Cap Grants to Local Authorities (DEL),Regeneration,BLACKBURN WITH DARWEN BC,,,,,3700234182,,Social Housing & Resettlement,Grant payable by the Exchequer,BB1 7DY,185841,Yes
"Housing, Communities & Local Government",DLUHC,07/09/2023,Cap Grants to Local Authorities (DEL),Regeneration,BLACKPOOL BC,,,,,3700234295,,Social Housing & Resettlement,Grant payable by the Exchequer,FY1 1NA,228180,Yes
"Housing, Communities & Local Government",DLUHC,07/09/2023,Cap Grants to Local Authorities (DEL),Regeneration,BOLTON MBC,,,,,3700234191,,Social Housing & Resettlement,Grant payable by the Exchequer,BL1 1RU,312207,Yes
"Housing, Communities & Local Government",DLUHC,07/09/2023,Cap Grants to Local Authorities (DEL),Regeneration,BRACKNELL FOREST DC,,,,236184867,3700234193,,Social Housing & Resettlement,Grant payable by the Exchequer,RG12 1AQ,84502,Yes
"Housing, Communities & Local Government",DLUHC,07/09/2023,Cap Grants to Local Authorities (DEL),Regeneration,BRADFORD MBC,,,,,3700234314,,Social Housing & Resettlement,Grant payable by the Exchequer,BD1 1HX,448266,Yes
"Housing, Communities & Local Government",DLUHC,07/09/2023,Cap Grants to Local Authorities (DEL),Regeneration,BRENT LB,,,,,3700234190,,Social Housing & Resettlement,Grant payable by the Exchequer,HA9 0FJ,463953,Yes
"Housing, Communities & Local Government",DLUHC,07/09/2023,Cap Grants to Local Authorities (DEL),Regeneration,BRIGHTON & HOVE CITY COUNCIL,,Large,,228455218,3700234286,,Social Housing & Resettlement,Grant payable by the Exchequer,BN1 3JE,201827,Yes
"Housing, Communities & Local Government",DLUHC,07/09/2023,Cap Grants to Local Authorities (DEL),Regeneration,BRISTOL CITY CNCL,,,,211103882,3700234171,,Social Housing & Resettlement,Grant payable by the Exchequer,BS3 9FS,307884,Yes
"Housing, Communities & Local Government",DLUHC,07/09/2023,Cap Grants to Local Authorities (DEL),Regeneration,BROMLEY LB,,,,211331954,3700234319,,Social Housing & Resettlement,Grant payable by the Exchequer,BR1 3UH,213138,Yes
"Housing, Communities & Local Government",DLUHC,07/09/2023,Cap Grants to Local Authorities (DEL),Regeneration,BUCKINGHAMSHIRE COUNCIL,,,,,3700234274,,Social Housing & Resettlement,Grant payable by the Exchequer,HP19 8FF,354796,Yes
"Housing, Communities & Local Government",DLUHC,07/09/2023,Cap Grants to Local Authorities (DEL),Regeneration,BURY MBC,,,,,3700234317,,Social Housing & Resettlement,Grant payable by the Exchequer,BL9 0SW,181205,Yes
"Housing, Communities & Local Government",DLUHC,07/09/2023,Cap Grants to Local Authorities (DEL),Regeneration,CALDERDALE MBC,,,,,3700234263,,Social Housing & Resettlement,Grant payable by the Exchequer,HX1 1YP,264661,Yes
"Housing, Communities & Local Government",DLUHC,07/09/2023,Cap Grants to Local Authorities (DEL),Regeneration,CAMBRIDGESHIRE COUNTY CNCL,,,,219047347,3700234315,,Social Housing & Resettlement,Grant payable by the Exchequer,CB3 0AP,442369,Yes
"Housing, Communities & Local Government",DLUHC,07/09/2023,Cap Grants to Local Authorities (DEL),Regeneration,CAMDEN LB,,,,211651836,3700234276,,Social Housing & Resettlement,Grant payable by the Exchequer,N1C 4AG,91338,Yes
"Housing, Communities & Local Government",DLUHC,07/09/2023,Cap Grants to Local Authorities (DEL),Regeneration,CENTRAL BEDFORDSHIRE COUNCIL,,,,232624882,3700234243,,Social Housing & Resettlement,Grant payable by the Exchequer,SG17 5TQ,168126,Yes
"Housing, Communities & Local Government",DLUHC,07/09/2023,Cap Grants to Local Authorities (DEL),Regeneration,CHESHIRE EAST COUNCIL,,Large,,,3700234241,,Social Housing & Resettlement,Grant payable by the Exchequer,CW11 1HZ,204384,Yes
"Housing, Communities & Local Government",DLUHC,07/09/2023,Cap Grants to Local Authorities (DEL),Regeneration,CHESHIRE WEST & CHESTER UA,,Large,,215584383,3700234321,,Social Housing & Resettlement,Grant payable by the Exchequer,CH1 2NP,321841,Yes
"Housing, Communities & Local Government",DLUHC,07/09/2023,Cap Grants to Local Authorities (DEL),Regeneration,CITY OF LONDON,,,,217471460,3700234174,,Social Housing & Resettlement,Grant payable by the Exchequer,EC2P 2EJ,3236,Yes
"Housing, Communities & Local Government",DLUHC,07/09/2023,Cap Grants to Local Authorities (DEL),Regeneration,CITY OF SUNDERLAND,,,,215599312,3700234239,,Social Housing & Resettlement,Grant payable by the Exchequer,SR2 7DN,353874,Yes
"Housing, Communities & Local Government",DLUHC,07/09/2023,Cap Grants to Local Authorities (DEL),Regeneration,CORNWALL UNITARY AUTHORITY,,,,211334404,3700234289,,Social Housing & Resettlement,Grant payable by the Exchequer,TR1 3AY,658684,Yes
"Housing, Communities & Local Government",DLUHC,07/09/2023,Cap Grants to Local Authorities (DEL),Regeneration,COVENTRY CITY CNCL,,,,210384802,3700234237,,Social Housing & Resettlement,Grant payable by the Exchequer,CV1 2QL,364894,Yes
"Housing, Communities & Local Government",DLUHC,07/09/2023,Cap Grants to Local Authorities (DEL),Regeneration,CROYDON LB,,,,212419973,3700234259,,Social Housing & Resettlement,Grant payable by the Exchequer,CR0 1EA,261141,Yes
"Housing, Communities & Local Government",DLUHC,07/09/2023,Cap Grants to Local Authorities (DEL),Regeneration,Cumberland Council,,,,,3700234252,,Social Housing & Resettlement,Grant payable by the Exchequer,CA1 1RD,379089,Yes
"Housing, Communities & Local Government",DLUHC,07/09/2023,Cap Grants to Local Authorities (DEL),Regeneration,DARLINGTON BC,,,,,3700234283,,Social Housing & Resettlement,Grant payable by the Exchequer,TS19 1JA,92788,Yes
"Housing, Communities & Local Government",DLUHC,07/09/2023,Cap Grants to Local Authorities (DEL),Regeneration,DERBY CITY CNCL,,,,229641378,3700234227,,Social Housing & Resettlement,Grant payable by the Exchequer,DE1 2FS,202732,Yes
"Housing, Communities & Local Government",DLUHC,07/09/2023,Cap Grants to Local Authorities (DEL),Regeneration,DERBYSHIRE COUNTYCOUNCIL,,,,232152967,3700234195,,Social Housing & Resettlement,Grant payable by the Exchequer,DE4 3AG,689180,Yes
"Housing, Communities & Local Government",DLUHC,07/09/2023,Cap Grants to Local Authorities (DEL),Regeneration,DEVON COUNTY CNCL,,,,213754018,3700234184,,Social Housing & Resettlement,Grant payable by the Exchequer,EX2 4QJ,719491,Yes
"Housing, Communities & Local Government",DLUHC,07/09/2023,Cap Grants to Local Authorities (DEL),Regeneration,DONCASTER MBC,,,,,3700234270,,Social Housing & Resettlement,Grant payable by the Exchequer,DN1 3QA,242769,Yes
"Housing, Communities & Local Government",DLUHC,07/09/2023,Cap Grants to Local Authorities (DEL),Regeneration,DORSET COUNCIL,,,,,3700234260,,Social Housing & Resettlement,Grant payable by the Exchequer,DT1 1XJ,362343,Yes
"Housing, Communities & Local Government",DLUHC,07/09/2023,Cap Grants to Local Authorities (DEL),Regeneration,DUDLEY MBC,,,,,3700234175,,Social Housing & Resettlement,Grant payable by the Exchequer,DY1 1HF,562322,Yes
"Housing, Communities & Local Government",DLUHC,07/09/2023,Cap Grants to Local Authorities (DEL),Regeneration,DURHAM COUNTY COUNCIL,,,,224004882,3700234281,,Social Housing & Resettlement,Grant payable by the Exchequer,DH1 5UE,609785,Yes
"Housing, Communities & Local Government",DLUHC,07/09/2023,Cap Grants to Local Authorities (DEL),Regeneration,EALING LB,,,,,3700234305,,Social Housing & Resettlement,Grant payable by the Exchequer,W5 2HL,324997,Yes
"Housing, Communities & Local Government",DLUHC,07/09/2023,Cap Grants to Local Authorities (DEL),Regeneration,EAST RIDING OF YORKS,,,,423159987,3700234211,,Social Housing & Resettlement,Grant payable by the Exchequer,HU17 9BA,269303,Yes
"Housing, Communities & Local Government",DLUHC,07/09/2023,Cap Grants to Local Authorities (DEL),Regeneration,EAST SUSSEX COUNTY CNCL,,,,,3700234185,,Social Housing & Resettlement,Grant payable by the Exchequer,BN7 1SF,708867,Yes
"Housing, Communities & Local Government",DLUHC,07/09/2023,Cap Grants to Local Authorities (DEL),Regeneration,ENFIELD LB,,,,,3700234215,,Social Housing & Resettlement,Grant payable by the Exchequer,EN1 3XF,325997,Yes
"Housing, Communities & Local Government",DLUHC,07/09/2023,Cap Grants to Local Authorities (DEL),Regeneration,ESSEX COUNTY CNCL,,,,233572986,3700234216,,Social Housing & Resettlement,Grant payable by the Exchequer,CM1 1JZ,1037124,Yes
"Housing, Communities & Local Government",DLUHC,07/09/2023,Cap Grants to Local Authorities (DEL),Regeneration,GATESHEAD MBC,,,,216116041,3700234261,,Social Housing & Resettlement,Grant payable by the Exchequer,NE8 1HH,184219,Yes
"Housing, Communities & Local Government",DLUHC,07/09/2023,Cap Grants to Local Authorities (DEL),Regeneration,GLOUCESTERSHIRE COUNTY CNCL,,,,211272067,3700234225,,Social Housing & Resettlement,Grant payable by the Exchequer,GL1 2TG,597064,Yes
"Housing, Communities & Local Government",DLUHC,07/09/2023,Cap Grants to Local Authorities (DEL),Regeneration,GREENWICH LB,,,,,3700234291,,Social Housing & Resettlement,Grant payable by the Exchequer,SE18 6HQ,249288,Yes
"Housing, Communities & Local Government",DLUHC,07/09/2023,Cap Grants to Local Authorities (DEL),Regeneration,HALTON BC,,,,,3700234247,,Social Housing & Resettlement,Grant payable by the Exchequer,WA8 7QF,174058,Yes
"Housing, Communities & Local Government",DLUHC,07/09/2023,Cap Grants to Local Authorities (DEL),Regeneration,HAMMERSMITH & FULHAM LB,,,,216929489,3700234288,,Social Housing & Resettlement,Grant payable by the Exchequer,W6 9JU,130506,Yes
"Housing, Communities & Local Government",DLUHC,07/09/2023,Cap Grants to Local Authorities (DEL),Regeneration,HAMPSHIRE COUNTY COUNCIL,,,,211325832,3700234176,,Social Housing & Resettlement,Grant payable by the Exchequer,SO23 8UB,1243668,Yes
"Housing, Communities & Local Government",DLUHC,07/09/2023,Cap Grants to Local Authorities (DEL),Regeneration,HARINGEY LB,,,,217471767,3700234234,,Social Housing & Resettlement,Grant payable by the Exchequer,AL7 8LR,233757,Yes
"Housing, Communities & Local Government",DLUHC,07/09/2023,Cap Grants to Local Authorities (DEL),Regeneration,HARROW LB,,,,,3700234245,,Social Housing & Resettlement,Grant payable by the Exchequer,SL1 0ZS,150223,Yes
"Housing, Communities & Local Government",DLUHC,07/09/2023,Cap Grants to Local Authorities (DEL),Regeneration,HARTLEPOOL BOROUGH COUNCIL,,,,424291797,3700234187,,Social Housing & Resettlement,Grant payable by the Exchequer,TS24 8AY,106621,Yes
"Housing, Communities & Local Government",DLUHC,07/09/2023,Cap Grants to Local Authorities (DEL),Regeneration,HAVERING LB,,,,211209770,3700234214,,Social Housing & Resettlement,Grant payable by the Exchequer,RM1 3BB,179477,Yes
"Housing, Communities & Local Government",DLUHC,07/09/2023,Cap Grants to Local Authorities (DEL),Regeneration,HEREFORDSHIRE COUNCIL,,,,,3700234294,,Social Housing & Resettlement,Grant payable by the Exchequer,HR4 0XH,197963,Yes
"Housing, Communities & Local Government",DLUHC,07/09/2023,Cap Grants to Local Authorities (DEL),Regeneration,HERTFORDSHIRE COUNTY CNCL,,,,210659897,3700234228,,Social Housing & Resettlement,Grant payable by the Exchequer,SG13 8DQ,721107,Yes
"Housing, Communities & Local Government",DLUHC,07/09/2023,Cap Grants to Local Authorities (DEL),Regeneration,HILLINGDON LB,,,,211198585,3700234316,,Social Housing & Resettlement,Grant payable by the Exchequer,UB8 1UW,445991,Yes
"Housing, Communities & Local Government",DLUHC,07/09/2023,Cap Grants to Local Authorities (DEL),Regeneration,HOUNSLOW LB,,Public Bodies,,210388999,3700234249,,Social Housing & Resettlement,Grant payable by the Exchequer,TW3 3EB,261743,Yes
"Housing, Communities & Local Government",DLUHC,07/09/2023,Cap Grants to Local Authorities (DEL),Regeneration,HULL CITY CNCL,,,,217460984,3700234307,,Social Housing & Resettlement,Grant payable by the Exchequer,HU1 3DT,250809,Yes
"Housing, Communities & Local Government",DLUHC,07/09/2023,Cap Grants to Local Authorities (DEL),Regeneration,ISLE OF WIGHT CNCL,,,,236431730,3700234223,,Social Housing & Resettlement,Grant payable by the Exchequer,PO30 1UD,198258,Yes
"Housing, Communities & Local Government",DLUHC,07/09/2023,Cap Grants to Local Authorities (DEL),Regeneration,ISLES OF SCILLY COUNCIL,,,,214146040,3700234293,,Social Housing & Resettlement,Grant payable by the Exchequer,TR21 0LW,2560,Yes
"Housing, Communities & Local Government",DLUHC,07/09/2023,Cap Grants to Local Authorities (DEL),Regeneration,ISLINGTON LB,,,,225716729,3700234212,,Social Housing & Resettlement,Grant payable by the Exchequer,N1 1XR,169265,Yes
"Housing, Communities & Local Government",DLUHC,07/09/2023,Cap Grants to Local Authorities (DEL),Regeneration,KENT COUNTY CNCL,,,,211334420,3700234240,,Social Housing & Resettlement,Grant payable by the Exchequer,ME14 1RF,1671543,Yes
"Housing, Communities & Local Government",DLUHC,07/09/2023,Cap Grants to Local Authorities (DEL),Regeneration,KINGSTON UPON THAMES,,,,211379941,3700234318,,Social Housing & Resettlement,Grant payable by the Exchequer,KT1 1EU,132645,Yes
"Housing, Communities & Local Government",DLUHC,07/09/2023,Cap Grants to Local Authorities (DEL),Regeneration,KIRKLEES MBC,,Large,,,3700234322,,Social Housing & Resettlement,Grant payable by the Exchequer,HD1 2YU,316230,Yes
"Housing, Communities & Local Government",DLUHC,07/09/2023,Cap Grants to Local Authorities (DEL),Regeneration,KNOWSLEY MBC,,,,,3700234213,,Social Housing & Resettlement,Grant payable by the Exchequer,L36 9YZ,239673,Yes
"Housing, Communities & Local Government",DLUHC,07/09/2023,Cap Grants to Local Authorities (DEL),Regeneration,LAMBETH LB,,,,228216479,3700234275,,Social Housing & Resettlement,Grant payable by the Exchequer,SW2 1RL,146458,Yes
"Housing, Communities & Local Government",DLUHC,07/09/2023,Cap Grants to Local Authorities (DEL),Regeneration,LANCASHIRE COUNTY CNCL,,,,233136584,3700234177,,Social Housing & Resettlement,Grant payable by the Exchequer,PR1 8RD,1458541,Yes
"Housing, Communities & Local Government",DLUHC,07/09/2023,Cap Grants to Local Authorities (DEL),Regeneration,LEEDS CITY CNCL,,Micro,,,3700234197,,Social Housing & Resettlement,Grant payable by the Exchequer,LS1 1JF,723042,Yes
"Housing, Communities & Local Government",DLUHC,07/09/2023,Cap Grants to Local Authorities (DEL),Regeneration,LEICESTER CITY CNCL,,,,228219960,3700234183,,Social Housing & Resettlement,Grant payable by the Exchequer,LE1 1FZ,236824,Yes
"Housing, Communities & Local Government",DLUHC,07/09/2023,Cap Grants to Local Authorities (DEL),Regeneration,LEICESTERSHIRE COUNTY CNCL,,,,423679836,3700234170,,Social Housing & Resettlement,Grant payable by the Exchequer,LE3 8RB,388065,Yes
"Housing, Communities & Local Government",DLUHC,07/09/2023,Cap Grants to Local Authorities (DEL),Regeneration,LEWISHAM LB,,Large,,235653300,3700234192,,Social Housing & Resettlement,Grant payable by the Exchequer,SE6 4RU,132545,Yes
"Housing, Communities & Local Government",DLUHC,07/09/2023,Cap Grants to Local Authorities (DEL),Regeneration,LINCOLNSHIRE COUNTY COUNCIL,,,,,3700234299,,Social Housing & Resettlement,Grant payable by the Exchequer,LN2 1DY,608768,Yes
"Housing, Communities & Local Government",DLUHC,07/09/2023,Cap Grants to Local Authorities (DEL),Regeneration,LIVERPOOL CITY COUNCIL,,,,,3700234304,,Social Housing & Resettlement,Grant payable by the Exchequer,L2 2DH,742959,Yes
"Housing, Communities & Local Government",DLUHC,07/09/2023,Cap Grants to Local Authorities (DEL),Regeneration,LONDON BOROUGH OF HACKNEY,,,,225221597,3700234232,,Social Housing & Resettlement,Grant payable by the Exchequer,E8 4RU,151020,Yes
"Housing, Communities & Local Government",DLUHC,07/09/2023,Cap Grants to Local Authorities (DEL),Regeneration,LONDON BOROUGH OF NEWHAM,,,,211381004,3700234219,,Social Housing & Resettlement,Grant payable by the Exchequer,E16 2QU,248523,Yes
"Housing, Communities & Local Government",DLUHC,07/09/2023,Cap Grants to Local Authorities (DEL),Regeneration,LONDON BOROUGH OF REDBRIDGE,,,,211341417,3700234302,,Social Housing & Resettlement,Grant payable by the Exchequer,IG1 1NN,211972,Yes
"Housing, Communities & Local Government",DLUHC,07/09/2023,Cap Grants to Local Authorities (DEL),Regeneration,LUTON BC,,,,365112155,3700234221,,Social Housing & Resettlement,Grant payable by the Exchequer,LU1 2BQ,140352,Yes
"Housing, Communities & Local Government",DLUHC,07/09/2023,Cap Grants to Local Authorities (DEL),Regeneration,MANCHESTER CITY CNCL,,,,211241393,3700234265,,Social Housing & Resettlement,Grant payable by the Exchequer,M60 2JR,740206,Yes
"Housing, Communities & Local Government",DLUHC,07/09/2023,Cap Grants to Local Authorities (DEL),Regeneration,MEDWAY TOWNS DC,,,,,3700234209,,Social Housing & Resettlement,Grant payable by the Exchequer,ME4 4TR,215591,Yes
"Housing, Communities & Local Government",DLUHC,07/09/2023,Cap Grants to Local Authorities (DEL),Regeneration,MERTON LB,,,,,3700234242,,Social Housing & Resettlement,Grant payable by the Exchequer,SM4 5DX,126721,Yes
"Housing, Communities & Local Government",DLUHC,07/09/2023,Cap Grants to Local Authorities (DEL),Regeneration,MIDDLESBROUGH BC,,Large,,,3700234217,,Social Housing & Resettlement,Grant payable by the Exchequer,TS1 9GA,197916,Yes
"Housing, Communities & Local Government",DLUHC,07/09/2023,Cap Grants to Local Authorities (DEL),Regeneration,MILTON KEYNES BC,,,,,3700234256,,Social Housing & Resettlement,Grant payable by the Exchequer,MK9 3WJ,110627,Yes
"Housing, Communities & Local Government",DLUHC,07/09/2023,Cap Grants to Local Authorities (DEL),Regeneration,NEWCASTLE UPON TYNE DC,,,,239154040,3700234208,,Social Housing & Resettlement,Grant payable by the Exchequer,NE99 2BN,237564,Yes
"Housing, Communities & Local Government",DLUHC,07/09/2023,Cap Grants to Local Authorities (DEL),Regeneration,NORFOLK COUNTY COUNCIL,,,,232602789,3700234229,,Social Housing & Resettlement,Grant payable by the Exchequer,NR1 2DW,799108,Yes
"Housing, Communities & Local Government",DLUHC,07/09/2023,Cap Grants to Local Authorities (DEL),Regeneration,NORTH EAST LINCOLN DC,,,,211242737,3700234264,,Social Housing & Resettlement,Grant payable by the Exchequer,DN31 1HU,281050,Yes
"Housing, Communities & Local Government",DLUHC,07/09/2023,Cap Grants to Local Authorities (DEL),Regeneration,NORTH LINCOLNSHIRE DC,,Public Bodies,,424005502,3700234206,,Social Housing & Resettlement,Grant payable by the Exchequer,DN16 1AB,225748,Yes
"Housing, Communities & Local Government",DLUHC,07/09/2023,Cap Grants to Local Authorities (DEL),Regeneration,North Northamptonshire UA,,,,,3700234173,,Social Housing & Resettlement,Grant payable by the Exchequer,NN16 8TL,223539,Yes
"Housing, Communities & Local Government",DLUHC,07/09/2023,Cap Grants to Local Authorities (DEL),Regeneration,NORTH SOMERSET COUNCIL,,Large,,,3700234224,,Social Housing & Resettlement,Grant payable by the Exchequer,BS23 1UJ,206063,Yes
"Housing, Communities & Local Government",DLUHC,07/09/2023,Cap Grants to Local Authorities (DEL),Regeneration,NORTH TYNESIDE MBC,,,,,3700234199,,Social Housing & Resettlement,Grant payable by the Exchequer,NE27 0BY,163091,Yes
"Housing, Communities & Local Government",DLUHC,07/09/2023,Cap Grants to Local Authorities (DEL),Regeneration,North Yorkshire Council (UA),,,,,3700234235,,Social Housing & Resettlement,Grant payable by the Exchequer,DL7 8AD,446328,Yes
"Housing, Communities & Local Government",DLUHC,07/09/2023,Cap Grants to Local Authorities (DEL),Regeneration,NORTHUMBERLAND COUNTY COUNCIL,,,,210308905,3700234290,,Social Housing & Resettlement,Grant payable by the Exchequer,NE61 2EF,290484,Yes
"Housing, Communities & Local Government",DLUHC,07/09/2023,Cap Grants to Local Authorities (DEL),Regeneration,NOTTINGHAM CITY COUNCIL,,,,214495447,3700234258,,Social Housing & Resettlement,Grant payable by the Exchequer,NG2 3NG,241575,Yes
"Housing, Communities & Local Government",DLUHC,07/09/2023,Cap Grants to Local Authorities (DEL),Regeneration,NOTTINGHAMSHIRE COUNTY CNCL,,,,,3700234298,,Social Housing & Resettlement,Grant payable by the Exchequer,NG1 4BU,688188,Yes
"Housing, Communities & Local Government",DLUHC,07/09/2023,Cap Grants to Local Authorities (DEL),Regeneration,OLDHAM MBC,,,,213015574,3700234231,,Social Housing & Resettlement,Grant payable by the Exchequer,OL1 1UH,204475,Yes
"Housing, Communities & Local Government",DLUHC,07/09/2023,Cap Grants to Local Authorities (DEL),Regeneration,OXFORDSHIRE CC,,,,228216438,3700234306,,Social Housing & Resettlement,Grant payable by the Exchequer,OX1 1TH,581025,Yes
"Housing, Communities & Local Government",DLUHC,07/09/2023,Cap Grants to Local Authorities (DEL),Regeneration,PETERBOROUGH CITY CNCL,,,,,3700234200,,Social Housing & Resettlement,Grant payable by the Exchequer,PE1 1HG,195147,Yes
"Housing, Communities & Local Government",DLUHC,07/09/2023,Cap Grants to Local Authorities (DEL),Regeneration,PLYMOUTH CITY CNCL,,Public Bodies,,236416095,3700234201,,Social Housing & Resettlement,Grant payable by the Exchequer,PL1 2AA,245531,Yes
"Housing, Communities & Local Government",DLUHC,07/09/2023,Cap Grants to Local Authorities (DEL),Regeneration,PORTSMOUTH CITY COUNCIL,,Large,,211183082,3700234181,,Social Housing & Resettlement,Grant payable by the Exchequer,PO1 2AR,179729,Yes
"Housing, Communities & Local Government",DLUHC,07/09/2023,Cap Grants to Local Authorities (DEL),Regeneration,RB KENSINGTON & CHELSEA,,,,211124466,3700234284,,Social Housing & Resettlement,Grant payable by the Exchequer,W8 7NX,83754,Yes
"Housing, Communities & Local Government",DLUHC,07/09/2023,Cap Grants to Local Authorities (DEL),Regeneration,READING BC,,,,210220399,3700234226,,Social Housing & Resettlement,Grant payable by the Exchequer,RG1 7TD,104480,Yes
"Housing, Communities & Local Government",DLUHC,07/09/2023,Cap Grants to Local Authorities (DEL),Regeneration,REDCAR & CLEVELAND BOROUGH COUNCIL,,,,215175196,3700234253,,Social Housing & Resettlement,Grant payable by the Exchequer,TS10 1RT,156216,Yes
"Housing, Communities & Local Government",DLUHC,07/09/2023,Cap Grants to Local Authorities (DEL),Regeneration,RICHMOND UPON THAMES LB,,,,228868535,3700234246,,Social Housing & Resettlement,Grant payable by the Exchequer,TW1 3BZ,168040,Yes
"Housing, Communities & Local Government",DLUHC,07/09/2023,Cap Grants to Local Authorities (DEL),Regeneration,ROCHDALE MBC,,,,,3700234207,,Social Housing & Resettlement,Grant payable by the Exchequer,OL16 1YG,260680,Yes
"Housing, Communities & Local Government",DLUHC,07/09/2023,Cap Grants to Local Authorities (DEL),Regeneration,ROTHERHAM MBC,,,,211266937,3700234272,,Social Housing & Resettlement,Grant payable by the Exchequer,S60 1AE,267342,Yes
"Housing, Communities & Local Government",DLUHC,07/09/2023,Cap Grants to Local Authorities (DEL),Regeneration,RUTLAND CC,,,,,3700234267,,Social Housing & Resettlement,Grant payable by the Exchequer,LE15 6HP,23582,Yes
"Housing, Communities & Local Government",DLUHC,07/09/2023,Cap Grants to Local Authorities (DEL),Regeneration,SALFORD CITY CNCL,,,,213180073,3700234271,,Social Housing & Resettlement,Grant payable by the Exchequer,M27 5AW,305409,Yes
"Housing, Communities & Local Government",DLUHC,07/09/2023,Cap Grants to Local Authorities (DEL),Regeneration,SANDWELL MBC,,,,,3700234280,,Social Housing & Resettlement,Grant payable by the Exchequer,B69 3BS,412628,Yes
"Housing, Communities & Local Government",DLUHC,07/09/2023,Cap Grants to Local Authorities (DEL),Regeneration,SEFTON MBC,,Public Bodies,,232936125,3700234204,,Social Housing & Resettlement,Grant payable by the Exchequer,L20 3NJ,420887,Yes
"Housing, Communities & Local Government",DLUHC,07/09/2023,Cap Grants to Local Authorities (DEL),Regeneration,SHEFFIELD CITY CNCL,,,,,3700234301,,Social Housing & Resettlement,Grant payable by the Exchequer,S1 1UJ,445752,Yes
"Housing, Communities & Local Government",DLUHC,07/09/2023,Cap Grants to Local Authorities (DEL),Regeneration,SHROPSHIRE UNITARY AUTHORITY,,,,217036490,3700234296,,Social Housing & Resettlement,Grant payable by the Exchequer,SY2 6ND,317752,Yes
"Housing, Communities & Local Government",DLUHC,07/09/2023,Cap Grants to Local Authorities (DEL),Regeneration,SLOUGH BOROUGH COUNCIL,,,,211027123,3700234255,,Social Housing & Resettlement,Grant payable by the Exchequer,SL1 3UF,99536,Yes
"Housing, Communities & Local Government",DLUHC,07/09/2023,Cap Grants to Local Authorities (DEL),Regeneration,SOLIHULL MBC,,,,,3700234313,,Social Housing & Resettlement,Grant payable by the Exchequer,B91 3QR,216828,Yes
"Housing, Communities & Local Government",DLUHC,07/09/2023,Cap Grants to Local Authorities (DEL),Regeneration,Somerset Council (UA),,,,,3700234310,,Social Housing & Resettlement,Grant payable by the Exchequer,TA1 4DY,432185,Yes
"Housing, Communities & Local Government",DLUHC,07/09/2023,Cap Grants to Local Authorities (DEL),Regeneration,SOUTH GLOUCESTERSHIRE DC,,,,,3700234251,,Social Housing & Resettlement,Grant payable by the Exchequer,BS15 2TR,204108,Yes
"Housing, Communities & Local Government",DLUHC,07/09/2023,Cap Grants to Local Authorities (DEL),Regeneration,SOUTH TYNESIDE MBC,,,,345736438,3700234178,,Social Housing & Resettlement,Grant payable by the Exchequer,NE33 2RL,167405,Yes
"Housing, Communities & Local Government",DLUHC,07/09/2023,Cap Grants to Local Authorities (DEL),Regeneration,SOUTHAMPTON CITY CNCL,,,,216927475,3700234311,,Social Housing & Resettlement,Grant payable by the Exchequer,SO14 7LY,219312,Yes
"Housing, Communities & Local Government",DLUHC,07/09/2023,Cap Grants to Local Authorities (DEL),Regeneration,SOUTHEND ON SEA BC,,,,217067263,3700234262,,Social Housing & Resettlement,Grant payable by the Exchequer,SS2 6EP,150180,Yes
"Housing, Communities & Local Government",DLUHC,07/09/2023,Cap Grants to Local Authorities (DEL),Regeneration,SOUTHWARK LB,,,,,3700234186,,Social Housing & Resettlement,Grant payable by the Exchequer,SE1 2QH,147133,Yes
"Housing, Communities & Local Government",DLUHC,07/09/2023,Cap Grants to Local Authorities (DEL),Regeneration,ST HELENS MBC,,,,,3700234205,,Social Housing & Resettlement,Grant payable by the Exchequer,WA10 1HP,274673,Yes
"Housing, Communities & Local Government",DLUHC,07/09/2023,Cap Grants to Local Authorities (DEL),Regeneration,STAFFORDSHIRE COUNTY CNCL,,Public Bodies,,,3700234273,,Social Housing & Resettlement,Grant payable by the Exchequer,ST16 2DH,873069,Yes
"Housing, Communities & Local Government",DLUHC,07/09/2023,Cap Grants to Local Authorities (DEL),Regeneration,STOCKPORT MBC,,,,228706248,3700234250,,Social Housing & Resettlement,Grant payable by the Exchequer,SK1 3XE,251820,Yes
"Housing, Communities & Local Government",DLUHC,07/09/2023,Cap Grants to Local Authorities (DEL),Regeneration,STOCKTON-ON-TEES BC,,,,,3700234285,,Social Housing & Resettlement,Grant payable by the Exchequer,TS23 2YS,157474,Yes
"Housing, Communities & Local Government",DLUHC,07/09/2023,Cap Grants to Local Authorities (DEL),Regeneration,STOKE ON TRENT CITY COUNCIL,,,,216037890,3700234320,,Social Housing & Resettlement,Grant payable by the Exchequer,ST4 1HH,300488,Yes
"Housing, Communities & Local Government",DLUHC,07/09/2023,Cap Grants to Local Authorities (DEL),Regeneration,SUFFOLK CC (SOCIAL CARE SERV) (H,,,,385614821,3700234303,,Social Housing & Resettlement,Grant payable by the Exchequer,IP4 1LH,610951,Yes
"Housing, Communities & Local Government",DLUHC,07/09/2023,Cap Grants to Local Authorities (DEL),Regeneration,SURREY COUNTY COUNCIL,,Public Bodies,,,3700234277,,Social Housing & Resettlement,Grant payable by the Exchequer,KT1 2DN,886200,Yes
"Housing, Communities & Local Government",DLUHC,07/09/2023,Cap Grants to Local Authorities (DEL),Regeneration,SUTTON LB,,,,,3700234236,,Social Housing & Resettlement,Grant payable by the Exchequer,SM1 1EA,157747,Yes
"Housing, Communities & Local Government",DLUHC,07/09/2023,Cap Grants to Local Authorities (DEL),Regeneration,SWINDON BC,,,,458639697,3700234297,,Social Housing & Resettlement,Grant payable by the Exchequer,SN1 2JH,113996,Yes
"Housing, Communities & Local Government",DLUHC,07/09/2023,Cap Grants to Local Authorities (DEL),Regeneration,TAMESIDE MBC,,,,212635875,3700234279,,Social Housing & Resettlement,Grant payable by the Exchequer,OL6 0GA,248632,Yes
"Housing, Communities & Local Government",DLUHC,07/09/2023,Cap Grants to Local Authorities (DEL),Regeneration,TELFORD & WREKIN DC,,,,230235801,3700234230,,Social Housing & Resettlement,Grant payable by the Exchequer,TF3 4NT,201288,Yes
"Housing, Communities & Local Government",DLUHC,07/09/2023,Cap Grants to Local Authorities (DEL),Regeneration,THURROCK BC,,,,,3700234179,,Social Housing & Resettlement,Grant payable by the Exchequer,RM17 6SL,115054,Yes
"Housing, Communities & Local Government",DLUHC,07/09/2023,Cap Grants to Local Authorities (DEL),Regeneration,TORBAY BC,,,,,3700234196,,Social Housing & Resettlement,Grant payable by the Exchequer,TQ1 3DR,185749,Yes
"Housing, Communities & Local Government",DLUHC,07/09/2023,Cap Grants to Local Authorities (DEL),Regeneration,TOWER HAMLETS LB,,,,231315144,3700234300,,Social Housing & Resettlement,Grant payable by the Exchequer,E14 2BG,202504,Yes
"Housing, Communities & Local Government",DLUHC,07/09/2023,Cap Grants to Local Authorities (DEL),Regeneration,TRAFFORD MBC,,,,,3700234222,,Social Housing & Resettlement,Grant payable by the Exchequer,M32 0TH,215530,Yes
"Housing, Communities & Local Government",DLUHC,07/09/2023,Cap Grants to Local Authorities (DEL),Regeneration,WAKEFIELD MDC,,,,,3700234198,,Social Housing & Resettlement,Grant payable by the Exchequer,WF1 2QW,378771,Yes
"Housing, Communities & Local Government",DLUHC,07/09/2023,Cap Grants to Local Authorities (DEL),Regeneration,WALSALL MBC,,,,212515585,3700234220,,Social Housing & Resettlement,Grant payable by the Exchequer,WS1 1TW,366734,Yes
"Housing, Communities & Local Government",DLUHC,07/09/2023,Cap Grants to Local Authorities (DEL),Regeneration,WALTHAM FOREST LB,,,,,3700234312,,Social Housing & Resettlement,Grant payable by the Exchequer,E17 4JA,206135,Yes
"Housing, Communities & Local Government",DLUHC,07/09/2023,Cap Grants to Local Authorities (DEL),Regeneration,WANDSWORTH LB,,,,,3700234254,,Social Housing & Resettlement,Grant payable by the Exchequer,SW18 2PU,153579,Yes
"Housing, Communities & Local Government",DLUHC,07/09/2023,Cap Grants to Local Authorities (DEL),Regeneration,WARRINGTON BC,,,,,3700234202,,Social Housing & Resettlement,Grant payable by the Exchequer,WA1 1BN,193922,Yes
"Housing, Communities & Local Government",DLUHC,07/09/2023,Cap Grants to Local Authorities (DEL),Regeneration,WARWICKSHIRE COUNTY CNCL,,,,210396290,3700234308,,Social Housing & Resettlement,Grant payable by the Exchequer,CV34 4RH,447189,Yes
"Housing, Communities & Local Government",DLUHC,07/09/2023,Cap Grants to Local Authorities (DEL),Regeneration,WEST BERKSHIRE COUNCIL,,,,364809181,3700234238,,Social Housing & Resettlement,Grant payable by the Exchequer,RG14 5LD,180210,Yes
"Housing, Communities & Local Government",DLUHC,07/09/2023,Cap Grants to Local Authorities (DEL),Regeneration,WEST NORTHAMPTONSHIRE COUNCIL,,,,,3700234292,,Social Housing & Resettlement,Grant payable by the Exchequer,NN1 1ED,223293,Yes
"Housing, Communities & Local Government",DLUHC,07/09/2023,Cap Grants to Local Authorities (DEL),Regeneration,WEST SUSSEX CC,,Public Bodies,,232198762,3700234172,,Social Housing & Resettlement,Grant payable by the Exchequer,PO19 1RG,821551,Yes
"Housing, Communities & Local Government",DLUHC,07/09/2023,Cap Grants to Local Authorities (DEL),Regeneration,WESTMINSTER CITY CNCL,,,,229845706,3700234233,,Social Housing & Resettlement,Grant payable by the Exchequer,SW1E 6QP,150890,Yes
"Housing, Communities & Local Government",DLUHC,07/09/2023,Cap Grants to Local Authorities (DEL),Regeneration,Westmorland & Furness Council,,,,,3700234180,,Social Housing & Resettlement,Grant payable by the Exchequer,LA9 4UF,243120,Yes
"Housing, Communities & Local Government",DLUHC,07/09/2023,Cap Grants to Local Authorities (DEL),Regeneration,WIGAN MBC,,Public Bodies,,,3700234282,,Social Housing & Resettlement,Grant payable by the Exchequer,WN1 1AZ,397415,Yes
"Housing, Communities & Local Government",DLUHC,07/09/2023,Cap Grants to Local Authorities (DEL),Regeneration,WILTSHIRE COUNCIL,,,,211341656,3700234210,,Social Housing & Resettlement,Grant payable by the Exchequer,BA14 4DS,324072,Yes
"Housing, Communities & Local Government",DLUHC,07/09/2023,Cap Grants to Local Authorities (DEL),Regeneration,WINDSOR & MAIDENHEAD,,,,227411998,3700234266,,Social Housing & Resettlement,Grant payable by the Exchequer,SL6 1RF,90064,Yes
"Housing, Communities & Local Government",DLUHC,07/09/2023,Cap Grants to Local Authorities (DEL),Regeneration,WIRRAL MBC,,,,211222602,3700234189,,Social Housing & Resettlement,Grant payable by the Exchequer,CH41 6BU,412184,Yes
"Housing, Communities & Local Government",DLUHC,07/09/2023,Cap Grants to Local Authorities (DEL),Regeneration,WOKINGHAM DC,,,,,3700234268,,Social Housing & Resettlement,Grant payable by the Exchequer,RG11 1WJ,93862,Yes
"Housing, Communities & Local Government",DLUHC,07/09/2023,Cap Grants to Local Authorities (DEL),Regeneration,WOLVERHAMPTON MBC,,,,229895453,3700234257,,Social Housing & Resettlement,Grant payable by the Exchequer,WV1 1RL,311632,Yes
"Housing, Communities & Local Government",DLUHC,07/09/2023,Cap Grants to Local Authorities (DEL),Regeneration,WORCESTERSHIRE COUNTY COUNCIL,,,,230359643,3700234244,,Social Housing & Resettlement,Grant payable by the Exchequer,WR5 2NP,537834,Yes
"Housing, Communities & Local Government",DLUHC,07/09/2023,Cap Grants to Local Authorities (DEL),Regeneration,YORK CITY CNCL,,,,,3700234287,,Social Housing & Resettlement,Grant payable by the Exchequer,YO1 0EG,128096,Yes
"Housing, Communities & Local Government",DLUHC,07/09/2023,Consulting,Safer and Greener Buildings,JACOBS UK LTD,,Large,,,5106301361,,Remediation Policy,Technical support ,SE1 2QG,49302,
"Housing, Communities & Local Government",DLUHC,07/09/2023,Courier Services,CFO and Corporate,NATURAL ENGLAND,,Public Bodies,,212444538,5106301403,Office Solutions,Property Asset Management,Cambridge Franking,YO1 7PX,1001.85,
"Housing, Communities & Local Government",DLUHC,07/09/2023,Current (non AEF) Grants to Local Authorities,Local Govnmnt Resilience and Communities,ROCHDALE MBC,,,,,2300003608,,Resilience & Recovery,Business Rates Refund,OL16 1JH,-91320,Yes
"Housing, Communities & Local Government",DLUHC,07/09/2023,Current (non AEF) Grants to Local Authorities,Local Govnmnt Resilience and Communities,WYRE BC,,,,424695609,2300003615,,Resilience & Recovery,Business Rates Refund,FY6 7PU,-23269,Yes
"Housing, Communities & Local Government",DLUHC,07/09/2023,ERDF Work in Progress � Capital,Regeneration,CORNWALL COUNCIL,,Large,,,7700014332,,Community Investment & Funding Services,ERDF grant offset,TR1 3AY,-50699.04,Yes
"Housing, Communities & Local Government",DLUHC,07/09/2023,ERDF Work in Progress � Capital,Regeneration,CORNWALL COUNCIL,,Large,,,7700014336,,Community Investment & Funding Services,ERDF grant payment,TR1 3AY,126735.46,Yes
"Housing, Communities & Local Government",DLUHC,07/09/2023,ERDF Work in Progress � Capital,Regeneration,CU Services Limited,,Medium,,,7700014338,,Community Investment & Funding Services,ERDF grant payment,CV1 5FB,5432.17,Yes
"Housing, Communities & Local Government",DLUHC,07/09/2023,ERDF Work in Progress � Capital,Regeneration,STAFFORDSHIRE COUNTY COUNCIL,,,,,7700014329,,Community Investment & Funding Services,ERDF grant payment,ST16 2DH,302187.53,Yes
"Housing, Communities & Local Government",DLUHC,07/09/2023,ERDF Work in Progress � Resource,Regeneration, WEST YORKSHIRE COMBINED AUTHORITY,,Large,,,7700014330,,Community Investment & Funding Services,ERDF grant payment,LS1 2DE,208366.83,Yes
"Housing, Communities & Local Government",DLUHC,07/09/2023,ERDF Work in Progress � Resource,Regeneration,CHESTER UNIVERSITY,,Large,,,7700014337,,Community Investment & Funding Services,ERDF grant payment,CH1 4BJ,48635.92,Yes
"Housing, Communities & Local Government",DLUHC,07/09/2023,ERDF Work in Progress � Resource,Regeneration,CORNWALL COUNCIL,,Large,,,7700014336,,Community Investment & Funding Services,ERDF grant payment,TR1 3AY,163528.41,Yes
"Housing, Communities & Local Government",DLUHC,07/09/2023,ERDF Work in Progress � Resource,Regeneration,CU Services Limited,,Medium,,,7700014338,,Community Investment & Funding Services,ERDF grant payment,CV1 5FB,126286.27,Yes
"Housing, Communities & Local Government",DLUHC,07/09/2023,ERDF Work in Progress � Resource,Regeneration,OXFORD INNOVATION SERVICES LTD,,Medium,,,7700014331,,Community Investment & Funding Services,ERDF grant payment,OX1 1BY,56514.42,Yes
"Housing, Communities & Local Government",DLUHC,07/09/2023,ERDF Work in Progress � Resource,Regeneration,OXFORD INNOVATION SERVICES LTD,,Medium,,,7700014333,,Community Investment & Funding Services,ERDF grant payment,OX1 1BY,64653.67,Yes
"Housing, Communities & Local Government",DLUHC,07/09/2023,ERDF Work in Progress � Resource,Regeneration,OXFORD INNOVATION SERVICES LTD,,Medium,,,7700014334,,Community Investment & Funding Services,ERDF grant payment,OX1 1BY,25600.33,Yes
"Housing, Communities & Local Government",DLUHC,07/09/2023,ERDF Work in Progress � Resource,Regeneration,STAFFORDSHIRE COUNTY COUNCIL,,,,,7700014329,,Community Investment & Funding Services,ERDF grant payment,ST16 2DH,22078.92,Yes
"Housing, Communities & Local Government",DLUHC,07/09/2023,ERDF Work in Progress � Resource,Regeneration,TEESSIDE UNIVERSITY,,Large,,,7700014335,,Community Investment & Funding Services,ERDF grant payment,TS1 3BA,561393.93,Yes
"Housing, Communities & Local Government",DLUHC,07/09/2023,EXP � PURCHASE OF GOODS /SERVICES R & D,CFO and Corporate,Brian Titley Consulting Limited,,Micro,,,5106301401,Research,Analysis and Data,Monetising social benefits of RS scoping - Research,RH20 4EP,9975,
"Housing, Communities & Local Government",DLUHC,07/09/2023,EXP � PURCHASE OF GOODS /SERVICES R & D,CFO and Corporate,Deprivation.Org,,Micro,,220348563,5106301402,,Analysis and Data,English Indices of Deprivation - Research,SK14 1AH,24668.17,
"Housing, Communities & Local Government",DLUHC,07/09/2023,Grant in Aid to NDPBs (non budget),Local Govnmnt Resilience and Communities,VALUATION TRIBUNAL SERVICE,,,,211218366,2100328969,,ALBs (LG&PS),GIA to VTS,E1 8EU,373000,Yes
"Housing, Communities & Local Government",DLUHC,07/09/2023,IT - Service Contracts,CFO and Corporate,AirWalk Consulting Reply Ltd,,,,,5106301400,IT Managed / Outsourced Services,Digital,Servicedesk specification support as per,EH2 3ES,56650,
"Housing, Communities & Local Government",DLUHC,07/09/2023,IT - Service Contracts,CFO and Corporate,Brandlogik,,Micro,,,5106301371,,People Capability & Change C/O,UK Boardroom Apprentice Website developm,BT20 3GQ,3400,
"Housing, Communities & Local Government",DLUHC,07/09/2023,IT - Service Contracts,CFO and Corporate,KONICA MINOLTA BUSINESS SOLUTIONS (,,Large,,,5106301390,,Digital,Print Costs (estimated) Years 1-3,SS14 3AR,3348.91,
"Housing, Communities & Local Government",DLUHC,07/09/2023,IT - Service Contracts,CFO and Corporate,LITTLE FISH(UK)T/A LITTLE FISH,,Medium,,,5106301386,IT Managed / Outsourced Services,Digital,Servicedesk 8 mths FY23/24,NG1 1LS,106612.94,
"Housing, Communities & Local Government",DLUHC,07/09/2023,IT - Service Contracts,CFO and Corporate,RISUAL LIMITED,,Medium,,,5106301399,,Digital,Cyber Event Remediation work,ST18 0WP,28500,
"Housing, Communities & Local Government",DLUHC,07/09/2023,IT - Service Contracts,CFO and Corporate,RISUAL LIMITED,,Medium,,,5106301399,,Digital,Cyber Security Operations Centre (CSOC),ST18 0WP,1550,
"Housing, Communities & Local Government",DLUHC,07/09/2023,IT - Service Contracts,CFO and Corporate,X M A LTD,,Large,,298484148,5106301384,,Digital,Optional further 6 month extension Hardw,NG11 7EP,14929.74,
"Housing, Communities & Local Government",DLUHC,07/09/2023,IT - Software Maintenance,CFO and Corporate,DATAVID LIMITED,,Micro,,223819458,5106301353,,Digital,FY 2023-24 E-Claims Tech Support,RG2 9BE,35183.26,
"Housing, Communities & Local Government",DLUHC,07/09/2023,Professional services,Safer and Greener Buildings,Anneliese Day QC,,Small,,,5106301303,,Regulatory Stewardship & Reform,Legal Fees,EC4Y 9DH,26400,
"Housing, Communities & Local Government",DLUHC,07/09/2023,Professional services,Safer and Greener Buildings,JACOBS UK LTD,,Large,,,5106301360,,Intervention Delivery,Technical Advisor Support New Contract,SE1 2QG,37399.8,
"Housing, Communities & Local Government",DLUHC,07/09/2023,Professional services,Safer and Greener Buildings,PAUL MORRELL CONSULTING,,Large,,,5106301382,,Regulatory Stewardship & Reform,Testing of Building Produ,W14 0JB,16500,
"Housing, Communities & Local Government",DLUHC,07/09/2023,Publishing,Local Govnmnt Resilience and Communities,HH Associates Limited,,Large,,770639193,5106301398,,Strategy and Private Offices,DLUHC Command and House Paper Contract,KT22 9DF,282.59,
"Housing, Communities & Local Government",DLUHC,07/09/2023,"Rail, Underground and Eurostar",CFO and Corporate,CORPORATE TRAVEL MANAGEMENT(NORTH)L,,Small,,213089972,2100328971,Rail,Analysis and Data,Business Travel Rail July 2023,BD1 5HQ,288.25,
"Housing, Communities & Local Government",DLUHC,07/09/2023,"Rail, Underground and Eurostar",CFO and Corporate,CORPORATE TRAVEL MANAGEMENT(NORTH)L,,Small,,213089972,2100328971,Rail,Analysis and Data,Business Travel Rail July 2023,BD1 5HQ,4740.8,
"Housing, Communities & Local Government",DLUHC,07/09/2023,"Rail, Underground and Eurostar",CFO and Corporate,CORPORATE TRAVEL MANAGEMENT(NORTH)L,,Small,,213089972,2100328971,Rail,People Capability & Change C/O,Consolidated Monthly Travel July 2023 Rail,BD1 5HQ,292.4,
"Housing, Communities & Local Government",DLUHC,07/09/2023,"Rail, Underground and Eurostar",CFO and Corporate,CORPORATE TRAVEL MANAGEMENT(NORTH)L,,Small,,213089972,2100328971,Rail,People Capability & Change C/O,Consolidated Monthly Travel July 2023 Rail,BD1 5HQ,278.2,
"Housing, Communities & Local Government",DLUHC,07/09/2023,"Rail, Underground and Eurostar",CFO and Corporate,CORPORATE TRAVEL MANAGEMENT(NORTH)L,,Small,,213089972,2100328971,Rail,People Capability & Change C/O,Consolidated Monthly Travel July 2023 Rail,BD1 5HQ,276.2,
"Housing, Communities & Local Government",DLUHC,07/09/2023,"Rail, Underground and Eurostar",CFO and Corporate,CORPORATE TRAVEL MANAGEMENT(NORTH)L,,Small,,213089972,2100328971,Rail,Digital,Consolidated Monthly Travel July 2023 Rail,BD1 5HQ,308.1,
"Housing, Communities & Local Government",DLUHC,07/09/2023,"Rail, Underground and Eurostar",CFO and Corporate,CORPORATE TRAVEL MANAGEMENT(NORTH)L,,Small,,213089972,2100328971,Rail,Digital,Consolidated Monthly Travel July 2023 Rail,BD1 5HQ,254.1,
"Housing, Communities & Local Government",DLUHC,07/09/2023,"Rail, Underground and Eurostar",CFO and Corporate,CORPORATE TRAVEL MANAGEMENT(NORTH)L,,Small,,213089972,2100328971,Rail,Digital,Consolidated Monthly Travel July 2023 Rail,BD1 5HQ,3519.3,
"Housing, Communities & Local Government",DLUHC,07/09/2023,"Rail, Underground and Eurostar",CFO and Corporate,CORPORATE TRAVEL MANAGEMENT(NORTH)L,,Small,,213089972,2100328971,Rail,Digital,Consolidated Monthly Travel July 2023 Rail,BD1 5HQ,1840.8,
"Housing, Communities & Local Government",DLUHC,07/09/2023,"Rail, Underground and Eurostar",CFO and Corporate,CORPORATE TRAVEL MANAGEMENT(NORTH)L,,Small,,213089972,2100328971,Rail,Finance,Consolidated Monthly Travel July 2023 Rail,BD1 5HQ,783.25,
"Housing, Communities & Local Government",DLUHC,07/09/2023,"Rail, Underground and Eurostar",CFO and Corporate,CORPORATE TRAVEL MANAGEMENT(NORTH)L,,Small,,213089972,2100328971,Rail,Finance,Consolidated Monthly Travel July 2023 Rail,BD1 5HQ,311.65,
"Housing, Communities & Local Government",DLUHC,07/09/2023,"Rail, Underground and Eurostar",CFO and Corporate,CORPORATE TRAVEL MANAGEMENT(NORTH)L,,Small,,213089972,2100328971,Rail,Commercial,Consolidated Monthly Travel July 2023 Rail,BD1 5HQ,294.85,
"Housing, Communities & Local Government",DLUHC,07/09/2023,"Rail, Underground and Eurostar",CFO and Corporate,CORPORATE TRAVEL MANAGEMENT(NORTH)L,,Small,,213089972,2100328971,Rail,Commercial,Consolidated Monthly Travel July 2023 Rail,BD1 5HQ,1655.2,
"Housing, Communities & Local Government",DLUHC,07/09/2023,"Rail, Underground and Eurostar",CFO and Corporate,CORPORATE TRAVEL MANAGEMENT(NORTH)L,,Small,,213089972,2100328971,Rail,Commercial,Consolidated Monthly Travel July 2023 Rail,BD1 5HQ,3479.3,
"Housing, Communities & Local Government",DLUHC,07/09/2023,"Rail, Underground and Eurostar",Levelling Up,CORPORATE TRAVEL MANAGEMENT(NORTH)L,,Small,,213089972,2100328971,Rail,Areas,Consolidated Monthly Travel July 2023 Rail,BD1 5HQ,1573.85,
"Housing, Communities & Local Government",DLUHC,07/09/2023,"Rail, Underground and Eurostar",Levelling Up,CORPORATE TRAVEL MANAGEMENT(NORTH)L,,Small,,213089972,2100328971,Rail,Spatial Data Unit,Consolidated Monthly Travel July 2023 Rail,BD1 5HQ,1526.1,
"Housing, Communities & Local Government",DLUHC,07/09/2023,"Rail, Underground and Eurostar",Levelling Up,CORPORATE TRAVEL MANAGEMENT(NORTH)L,,Small,,213089972,2100328971,Rail,Place,Consolidated Monthly Travel July 2023 Rail,BD1 5HQ,292.5,
"Housing, Communities & Local Government",DLUHC,07/09/2023,"Rail, Underground and Eurostar",Levelling Up,CORPORATE TRAVEL MANAGEMENT(NORTH)L,,Small,,213089972,2100328971,Rail,Place,Consolidated Monthly Travel July 2023 Rail,BD1 5HQ,2059.1,
"Housing, Communities & Local Government",DLUHC,07/09/2023,"Rail, Underground and Eurostar",Levelling Up,CORPORATE TRAVEL MANAGEMENT(NORTH)L,,Small,,213089972,2100328971,Rail,Place,Consolidated Monthly Travel July 2023 Rail,BD1 5HQ,6216.85,
"Housing, Communities & Local Government",DLUHC,07/09/2023,"Rail, Underground and Eurostar",Levelling Up,CORPORATE TRAVEL MANAGEMENT(NORTH)L,,Small,,213089972,2100328971,Rail,LU Policy & Delivery,Consolidated Monthly Travel July 2023 Rail,BD1 5HQ,1410.3,
"Housing, Communities & Local Government",DLUHC,07/09/2023,"Rail, Underground and Eurostar",Levelling Up,CORPORATE TRAVEL MANAGEMENT(NORTH)L,,Small,,213089972,2100328971,Rail,LU Policy & Delivery,Consolidated Monthly Travel July 2023 Rail,BD1 5HQ,944.25,
"Housing, Communities & Local Government",DLUHC,07/09/2023,"Rail, Underground and Eurostar",Levelling Up,CORPORATE TRAVEL MANAGEMENT(NORTH)L,,Small,,213089972,2100328971,Rail,LU Policy & Delivery,Consolidated Monthly Travel July 2023 Rail,BD1 5HQ,1040.8,
"Housing, Communities & Local Government",DLUHC,07/09/2023,"Rail, Underground and Eurostar",Levelling Up,CORPORATE TRAVEL MANAGEMENT(NORTH)L,,Small,,213089972,2100328971,Rail,LU Policy & Delivery,Consolidated Monthly Travel July 2023 Rail,BD1 5HQ,492.9,
"Housing, Communities & Local Government",DLUHC,07/09/2023,"Rail, Underground and Eurostar",Levelling Up,CORPORATE TRAVEL MANAGEMENT(NORTH)L,,Small,,213089972,2100328971,Rail,LU Policy & Delivery,Consolidated Monthly Travel July 2023 Rail,BD1 5HQ,5728.5,
"Housing, Communities & Local Government",DLUHC,07/09/2023,"Rail, Underground and Eurostar",Levelling Up,CORPORATE TRAVEL MANAGEMENT(NORTH)L,,Small,,213089972,2100328971,Rail,Strategy & Private Offices,Consolidated Monthly Travel July 2023 Rail,BD1 5HQ,2894.25,
"Housing, Communities & Local Government",DLUHC,07/09/2023,"Rail, Underground and Eurostar",Levelling Up,CORPORATE TRAVEL MANAGEMENT(NORTH)L,,Small,,213089972,2100328971,Rail,Strategy & Private Offices,Consolidated Monthly Travel July 2023 Rail,BD1 5HQ,4856.9,
"Housing, Communities & Local Government",DLUHC,07/09/2023,"Rail, Underground and Eurostar",Levelling Up,CORPORATE TRAVEL MANAGEMENT(NORTH)L,,Small,,213089972,2100328971,Rail,Levelling Up: Major Programmes,Consolidated Monthly Travel July 2023 Rail,BD1 5HQ,660.9,
"Housing, Communities & Local Government",DLUHC,07/09/2023,"Rail, Underground and Eurostar",Levelling Up,CORPORATE TRAVEL MANAGEMENT(NORTH)L,,Small,,213089972,2100328971,Rail,Levelling Up: Major Programmes,Consolidated Monthly Travel July 2023 Rail,BD1 5HQ,1286.3,
"Housing, Communities & Local Government",DLUHC,07/09/2023,"Rail, Underground and Eurostar",Levelling Up,CORPORATE TRAVEL MANAGEMENT(NORTH)L,,Small,,213089972,2100328971,Rail,Levelling Up: Major Programmes,Consolidated Monthly Travel July 2023 Rail,BD1 5HQ,461,
"Housing, Communities & Local Government",DLUHC,07/09/2023,"Rail, Underground and Eurostar",Levelling Up,CORPORATE TRAVEL MANAGEMENT(NORTH)L,,Small,,213089972,2100328971,Rail,Levelling Up: Major Programmes,Consolidated Monthly Travel July 2023 Rail,BD1 5HQ,251.05,
"Housing, Communities & Local Government",DLUHC,07/09/2023,"Rail, Underground and Eurostar",Levelling Up,CORPORATE TRAVEL MANAGEMENT(NORTH)L,,Small,,213089972,2100328971,Rail,Community Investment and Funding Service,Consolidated Monthly Travel July 2023 Rail,BD1 5HQ,292.6,
"Housing, Communities & Local Government",DLUHC,07/09/2023,"Rail, Underground and Eurostar",Levelling Up,CORPORATE TRAVEL MANAGEMENT(NORTH)L,,Small,,213089972,2100328971,Rail,Community Investment and Funding Service,Consolidated Monthly Travel July 2023 Rail,BD1 5HQ,1013.75,
"Housing, Communities & Local Government",DLUHC,07/09/2023,"Rail, Underground and Eurostar",Levelling Up,CORPORATE TRAVEL MANAGEMENT(NORTH)L,,Small,,213089972,2100328971,Rail,Community Investment and Funding Service,Consolidated Monthly Travel July 2023 Rail,BD1 5HQ,579.3,
"Housing, Communities & Local Government",DLUHC,07/09/2023,"Rail, Underground and Eurostar",Levelling Up,CORPORATE TRAVEL MANAGEMENT(NORTH)L,,Small,,213089972,2100328971,Rail,Community Investment and Funding Service,Consolidated Monthly Travel July 2023 Rail,BD1 5HQ,310.7,
"Housing, Communities & Local Government",DLUHC,07/09/2023,"Rail, Underground and Eurostar",Levelling Up,CORPORATE TRAVEL MANAGEMENT(NORTH)L,,Small,,213089972,2100328971,Rail,Community Investment and Funding Service,Consolidated Monthly Travel July 2023 Rail,BD1 5HQ,549.3,
"Housing, Communities & Local Government",DLUHC,07/09/2023,"Rail, Underground and Eurostar",Levelling Up,CORPORATE TRAVEL MANAGEMENT(NORTH)L,,Small,,213089972,2100328971,Rail,Community Investment and Funding Service,Consolidated Monthly Travel July 2023 Rail,BD1 5HQ,2474.45,
"Housing, Communities & Local Government",DLUHC,07/09/2023,"Rail, Underground and Eurostar",Levelling Up,CORPORATE TRAVEL MANAGEMENT(NORTH)L,,Small,,213089972,2100328971,Rail,Community Investment and Funding Service,Consolidated Monthly Travel July 2023 Rail,BD1 5HQ,553.2,
"Housing, Communities & Local Government",DLUHC,07/09/2023,"Rail, Underground and Eurostar",Levelling Up,CORPORATE TRAVEL MANAGEMENT(NORTH)L,,Small,,213089972,2100328971,Rail,Community Investment and Funding Service,Consolidated Monthly Travel July 2023 Rail,BD1 5HQ,298.4,
"Housing, Communities & Local Government",DLUHC,07/09/2023,"Rail, Underground and Eurostar",Levelling Up,CORPORATE TRAVEL MANAGEMENT(NORTH)L,,Small,,213089972,2100328971,Rail,Levelling Up Activity,Consolidated Monthly Travel July 2023 Rail,BD1 5HQ,689,
"Housing, Communities & Local Government",DLUHC,07/09/2023,"Rail, Underground and Eurostar",Local Govnmnt Resilience and Communities,CORPORATE TRAVEL MANAGEMENT(NORTH)L,,Small,,213089972,2100328971,Rail,Local Government Finance,Consolidated Monthly Travel July 2023 Rail,BD1 5HQ,771.65,
"Housing, Communities & Local Government",DLUHC,07/09/2023,"Rail, Underground and Eurostar",Local Govnmnt Resilience and Communities,CORPORATE TRAVEL MANAGEMENT(NORTH)L,,Small,,213089972,2100328971,Rail,Local Government Finance,Consolidated Monthly Travel July 2023 Rail,BD1 5HQ,509,
"Housing, Communities & Local Government",DLUHC,07/09/2023,"Rail, Underground and Eurostar",Local Govnmnt Resilience and Communities,CORPORATE TRAVEL MANAGEMENT(NORTH)L,,Small,,213089972,2100328971,Rail,Integration and Communities,Consolidated Monthly Travel July 2023 Rail,BD1 5HQ,2899.23,
"Housing, Communities & Local Government",DLUHC,07/09/2023,"Rail, Underground and Eurostar",Local Govnmnt Resilience and Communities,CORPORATE TRAVEL MANAGEMENT(NORTH)L,,Small,,213089972,2100328971,Rail,Integration and Communities,Consolidated Monthly Travel July 2023 Rail,BD1 5HQ,735,
"Housing, Communities & Local Government",DLUHC,07/09/2023,"Rail, Underground and Eurostar",Local Govnmnt Resilience and Communities,CORPORATE TRAVEL MANAGEMENT(NORTH)L,,Small,,213089972,2100328971,Rail,Strategy and Private Offices,Consolidated Monthly Travel July 2023 Rail,BD1 5HQ,4071.2,
"Housing, Communities & Local Government",DLUHC,07/09/2023,"Rail, Underground and Eurostar",Local Govnmnt Resilience and Communities,CORPORATE TRAVEL MANAGEMENT(NORTH)L,,Small,,213089972,2100328971,Rail,Homelessness & Rough Sleeping,Consolidated Monthly Travel July 2023 Rail,BD1 5HQ,4126.4,
"Housing, Communities & Local Government",DLUHC,07/09/2023,"Rail, Underground and Eurostar",Local Govnmnt Resilience and Communities,CORPORATE TRAVEL MANAGEMENT(NORTH)L,,Small,,213089972,2100328971,Rail,Homelessness & Rough Sleeping,Consolidated Monthly Travel July 2023 Rail,BD1 5HQ,2652.4,
"Housing, Communities & Local Government",DLUHC,07/09/2023,"Rail, Underground and Eurostar",Local Govnmnt Resilience and Communities,CORPORATE TRAVEL MANAGEMENT(NORTH)L,,Small,,213089972,2100328971,Rail,Homelessness & Rough Sleeping,Consolidated Monthly Travel July 2023 Rail,BD1 5HQ,2148.5,
"Housing, Communities & Local Government",DLUHC,07/09/2023,"Rail, Underground and Eurostar",Local Govnmnt Resilience and Communities,CORPORATE TRAVEL MANAGEMENT(NORTH)L,,Small,,213089972,2100328971,Rail,Resilience & Recovery,Consolidated Monthly Travel July 2023 Rail,BD1 5HQ,3952.7,
"Housing, Communities & Local Government",DLUHC,07/09/2023,"Rail, Underground and Eurostar",Local Govnmnt Resilience and Communities,CORPORATE TRAVEL MANAGEMENT(NORTH)L,,Small,,213089972,2100328971,Rail,Elections Directorate,Consolidated Monthly Travel July 2023 Rail,BD1 5HQ,2721.25,
"Housing, Communities & Local Government",DLUHC,07/09/2023,"Rail, Underground and Eurostar",Local Govnmnt Resilience and Communities,CORPORATE TRAVEL MANAGEMENT(NORTH)L,,Small,,213089972,2100328971,Rail,Elections Directorate,Consolidated Monthly Travel July 2023 Rail,BD1 5HQ,1134.85,
"Housing, Communities & Local Government",DLUHC,07/09/2023,"Rail, Underground and Eurostar",Local Govnmnt Resilience and Communities,CORPORATE TRAVEL MANAGEMENT(NORTH)L,,Small,,213089972,2100328971,Rail,Elections Directorate,Consolidated Monthly Travel July 2023 Rail,BD1 5HQ,1439.3,
"Housing, Communities & Local Government",DLUHC,07/09/2023,"Rail, Underground and Eurostar",Local Govnmnt Resilience and Communities,CORPORATE TRAVEL MANAGEMENT(NORTH)L,,Small,,213089972,2100328971,Rail,Elections Directorate,Consolidated Monthly Travel July 2023 Rail,BD1 5HQ,331.05,
"Housing, Communities & Local Government",DLUHC,07/09/2023,"Rail, Underground and Eurostar",Local Govnmnt Resilience and Communities,CORPORATE TRAVEL MANAGEMENT(NORTH)L,,Small,,213089972,2100328971,Rail,Local Government Policy,Consolidated Monthly Travel July 2023 Rail,BD1 5HQ,850.7,
"Housing, Communities & Local Government",DLUHC,07/09/2023,"Rail, Underground and Eurostar",Local Govnmnt Resilience and Communities,CORPORATE TRAVEL MANAGEMENT(NORTH)L,,Small,,213089972,2100328971,Rail,Local Government Policy,Consolidated Monthly Travel July 2023 Rail,BD1 5HQ,866.55,
"Housing, Communities & Local Government",DLUHC,07/09/2023,"Rail, Underground and Eurostar",Local Govnmnt Resilience and Communities,CORPORATE TRAVEL MANAGEMENT(NORTH)L,,Small,,213089972,2100328971,Rail,Local Government Policy,Consolidated Monthly Travel July 2023 Rail,BD1 5HQ,935.1,
"Housing, Communities & Local Government",DLUHC,07/09/2023,"Rail, Underground and Eurostar",Local Govnmnt Resilience and Communities,CORPORATE TRAVEL MANAGEMENT(NORTH)L,,Small,,213089972,2100328971,Rail,Local Government Policy,Consolidated Monthly Travel July 2023 Rail,BD1 5HQ,1071.55,
"Housing, Communities & Local Government",DLUHC,07/09/2023,"Rail, Underground and Eurostar",Local Govnmnt Resilience and Communities,CORPORATE TRAVEL MANAGEMENT(NORTH)L,,Small,,213089972,2100328971,Rail,Local Government Policy,Consolidated Monthly Travel July 2023 Rail,BD1 5HQ,686.1,
"Housing, Communities & Local Government",DLUHC,07/09/2023,"Rail, Underground and Eurostar",Local Govnmnt Resilience and Communities,CORPORATE TRAVEL MANAGEMENT(NORTH)L,,Small,,213089972,2100328971,Rail,Local Government Policy,Consolidated Monthly Travel July 2023 Rail,BD1 5HQ,557,
"Housing, Communities & Local Government",DLUHC,07/09/2023,"Rail, Underground and Eurostar",Local Govnmnt Resilience and Communities,CORPORATE TRAVEL MANAGEMENT(NORTH)L,,Small,,213089972,2100328971,Rail,Local Government Policy,Consolidated Monthly Travel July 2023 Rail,BD1 5HQ,509.1,
"Housing, Communities & Local Government",DLUHC,07/09/2023,"Rail, Underground and Eurostar",Regeneration,CORPORATE TRAVEL MANAGEMENT(NORTH)L,,Small,,213089972,2100328971,Rail,Chief Planner,Consolidated Monthly Travel July 2023 Rail,BD1 5HQ,1188.65,
"Housing, Communities & Local Government",DLUHC,07/09/2023,"Rail, Underground and Eurostar",Regeneration,CORPORATE TRAVEL MANAGEMENT(NORTH)L,,Small,,213089972,2100328971,Rail,Housing Markets and Strategy,Consolidated Monthly Travel July 2023 Rail,BD1 5HQ,261.65,
"Housing, Communities & Local Government",DLUHC,07/09/2023,"Rail, Underground and Eurostar",Regeneration,CORPORATE TRAVEL MANAGEMENT(NORTH)L,,Small,,213089972,2100328971,Rail,Housing Markets and Strategy,Consolidated Monthly Travel July 2023 Rail,BD1 5HQ,811.7,
"Housing, Communities & Local Government",DLUHC,07/09/2023,"Rail, Underground and Eurostar",Regeneration,CORPORATE TRAVEL MANAGEMENT(NORTH)L,,Small,,213089972,2100328971,Rail,Housing Markets and Strategy,Consolidated Monthly Travel July 2023 Rail,BD1 5HQ,690.75,
"Housing, Communities & Local Government",DLUHC,07/09/2023,"Rail, Underground and Eurostar",Regeneration,CORPORATE TRAVEL MANAGEMENT(NORTH)L,,Small,,213089972,2100328971,Rail,Housing Markets and Strategy,Consolidated Monthly Travel July 2023 Rail,BD1 5HQ,1687.8,
"Housing, Communities & Local Government",DLUHC,07/09/2023,"Rail, Underground and Eurostar",Regeneration,CORPORATE TRAVEL MANAGEMENT(NORTH)L,,Small,,213089972,2100328971,Rail,Housing Markets and Strategy,Consolidated Monthly Travel July 2023 Rail,BD1 5HQ,266.5,
"Housing, Communities & Local Government",DLUHC,07/09/2023,"Rail, Underground and Eurostar",Regeneration,CORPORATE TRAVEL MANAGEMENT(NORTH)L,,Small,,213089972,2100328971,Rail,Housing Markets and Strategy,Consolidated Monthly Travel July 2023 Rail,BD1 5HQ,-427,
"Housing, Communities & Local Government",DLUHC,07/09/2023,"Rail, Underground and Eurostar",Regeneration,CORPORATE TRAVEL MANAGEMENT(NORTH)L,,Small,,213089972,2100328971,Rail,Housing Markets and Strategy,Consolidated Monthly Travel July 2023 Rail,BD1 5HQ,262.8,
"Housing, Communities & Local Government",DLUHC,07/09/2023,"Rail, Underground and Eurostar",Regeneration,CORPORATE TRAVEL MANAGEMENT(NORTH)L,,Small,,213089972,2100328971,Rail,Social Housing & Resettlement,Consolidated Monthly Travel July 2023 Rail,BD1 5HQ,338.9,
"Housing, Communities & Local Government",DLUHC,07/09/2023,"Rail, Underground and Eurostar",Regeneration,CORPORATE TRAVEL MANAGEMENT(NORTH)L,,Small,,213089972,2100328971,Rail,Social Housing & Resettlement,Consolidated Monthly Travel July 2023 Rail,BD1 5HQ,1018.8,
"Housing, Communities & Local Government",DLUHC,07/09/2023,"Rail, Underground and Eurostar",Regeneration,CORPORATE TRAVEL MANAGEMENT(NORTH)L,,Small,,213089972,2100328971,Rail,Social Housing & Resettlement,Consolidated Monthly Travel July 2023 Rail,BD1 5HQ,980.15,
"Housing, Communities & Local Government",DLUHC,07/09/2023,"Rail, Underground and Eurostar",Regeneration,CORPORATE TRAVEL MANAGEMENT(NORTH)L,,Small,,213089972,2100328971,Rail,Social Housing & Resettlement,Directorate Monthly Travel July 2023 Rail,BD1 5HQ,2006.25,
"Housing, Communities & Local Government",DLUHC,07/09/2023,"Rail, Underground and Eurostar",Regeneration,CORPORATE TRAVEL MANAGEMENT(NORTH)L,,Small,,213089972,2100328971,Rail,Leasehold Land & Planning Systems,Consolidated Monthly Travel July 2023 Rail,BD1 5HQ,1409,
"Housing, Communities & Local Government",DLUHC,07/09/2023,"Rail, Underground and Eurostar",Regeneration,CORPORATE TRAVEL MANAGEMENT(NORTH)L,,Small,,213089972,2100328971,Rail,Leasehold Land & Planning Systems,Consolidated Monthly Travel July 2023 Rail,BD1 5HQ,1368,
"Housing, Communities & Local Government",DLUHC,07/09/2023,"Rail, Underground and Eurostar",Regeneration,CORPORATE TRAVEL MANAGEMENT(NORTH)L,,Small,,213089972,2100328971,Rail,Leasehold Land & Planning Systems,Consolidated Monthly Travel July 2023 Rail,BD1 5HQ,551,
"Housing, Communities & Local Government",DLUHC,07/09/2023,"Rail, Underground and Eurostar",Regeneration,CORPORATE TRAVEL MANAGEMENT(NORTH)L,,Small,,213089972,2100328971,Rail,Leasehold Land & Planning Systems,Consolidated Monthly Travel July 2023 Rail,BD1 5HQ,1572.95,
"Housing, Communities & Local Government",DLUHC,07/09/2023,"Rail, Underground and Eurostar",Regeneration,CORPORATE TRAVEL MANAGEMENT(NORTH)L,,Small,,213089972,2100328971,Rail,"Places,Infrastructure & Housing Delivery",Consolidated Monthly Travel July 2023 Rail,BD1 5HQ,404.85,
"Housing, Communities & Local Government",DLUHC,07/09/2023,"Rail, Underground and Eurostar",Regeneration,CORPORATE TRAVEL MANAGEMENT(NORTH)L,,Small,,213089972,2100328971,Rail,"Places,Infrastructure & Housing Delivery",Consolidated Monthly Travel July 2023 Rail,BD1 5HQ,287.2,
"Housing, Communities & Local Government",DLUHC,07/09/2023,"Rail, Underground and Eurostar",Regeneration,CORPORATE TRAVEL MANAGEMENT(NORTH)L,,Small,,213089972,2100328971,Rail,"Places,Infrastructure & Housing Delivery",Consolidated Monthly Travel July 2023 Rail,BD1 5HQ,514.8,
"Housing, Communities & Local Government",DLUHC,07/09/2023,"Rail, Underground and Eurostar",Regeneration,CORPORATE TRAVEL MANAGEMENT(NORTH)L,,Small,,213089972,2100328971,Rail,Planning Reform,Consolidated Monthly Travel July 2023 Rail,BD1 5HQ,525.35,
"Housing, Communities & Local Government",DLUHC,07/09/2023,"Rail, Underground and Eurostar",Regeneration,CORPORATE TRAVEL MANAGEMENT(NORTH)L,,Small,,213089972,2100328971,Rail,Planning Reform,Consolidated Monthly Travel July 2023 Rail,BD1 5HQ,2551.3,
"Housing, Communities & Local Government",DLUHC,07/09/2023,"Rail, Underground and Eurostar",Regeneration,CORPORATE TRAVEL MANAGEMENT(NORTH)L,,Small,,213089972,2100328971,Rail,Planning Reform & Housing Quality,Consolidated Monthly Travel July 2023 Rail,BD1 5HQ,667.4,
"Housing, Communities & Local Government",DLUHC,07/09/2023,"Rail, Underground and Eurostar",Regeneration,CORPORATE TRAVEL MANAGEMENT(NORTH)L,,Small,,213089972,2100328971,Rail,Planning Reform & Housing Quality,Consolidated Monthly Travel July 2023 Rail,BD1 5HQ,2416.25,
"Housing, Communities & Local Government",DLUHC,07/09/2023,"Rail, Underground and Eurostar",Regeneration,CORPORATE TRAVEL MANAGEMENT(NORTH)L,,Small,,213089972,2100328971,Rail,Planning Reform & Housing Quality,Consolidated Monthly Travel July 2023 Rail,BD1 5HQ,-354.4,
"Housing, Communities & Local Government",DLUHC,07/09/2023,"Rail, Underground and Eurostar",Regeneration,CORPORATE TRAVEL MANAGEMENT(NORTH)L,,Small,,213089972,2100328971,Rail,Planning Reform & Housing Quality,Consolidated Monthly Travel July 2023 Rail,BD1 5HQ,1516.85,
"Housing, Communities & Local Government",DLUHC,07/09/2023,"Rail, Underground and Eurostar",Regeneration,CORPORATE TRAVEL MANAGEMENT(NORTH)L,,Small,,213089972,2100328971,Rail,Planning Reform & Housing Quality,Consolidated Monthly Travel July 2023 Rail,BD1 5HQ,1025.5,
"Housing, Communities & Local Government",DLUHC,07/09/2023,"Rail, Underground and Eurostar",Regeneration,CORPORATE TRAVEL MANAGEMENT(NORTH)L,,Small,,213089972,2100328971,Rail,Planning Reform & Housing Quality,Consolidated Monthly Travel July 2023 Rail,BD1 5HQ,2593,
"Housing, Communities & Local Government",DLUHC,07/09/2023,"Rail, Underground and Eurostar",Safer and Greener Buildings,CORPORATE TRAVEL MANAGEMENT(NORTH)L,,Small,,213089972,2100328971,Rail,Intervention Delivery,Consolidated Monthly Travel July 2023 Rail,BD1 5HQ,570.9,
"Housing, Communities & Local Government",DLUHC,07/09/2023,"Rail, Underground and Eurostar",Safer and Greener Buildings,CORPORATE TRAVEL MANAGEMENT(NORTH)L,,Small,,213089972,2100328971,Rail,Intervention Delivery,Consolidated Monthly Travel July 2023 Rail,BD1 5HQ,1119.1,
"Housing, Communities & Local Government",DLUHC,07/09/2023,"Rail, Underground and Eurostar",Safer and Greener Buildings,CORPORATE TRAVEL MANAGEMENT(NORTH)L,,Small,,213089972,2100328971,Rail,Intervention Delivery,Consolidated Monthly Travel July 2023 Rail,BD1 5HQ,437.75,
"Housing, Communities & Local Government",DLUHC,07/09/2023,"Rail, Underground and Eurostar",Safer and Greener Buildings,CORPORATE TRAVEL MANAGEMENT(NORTH)L,,Small,,213089972,2100328971,Rail,Intervention Delivery,Consolidated Monthly Travel July 2023 Rail,BD1 5HQ,1508.9,
"Housing, Communities & Local Government",DLUHC,07/09/2023,"Rail, Underground and Eurostar",Safer and Greener Buildings,CORPORATE TRAVEL MANAGEMENT(NORTH)L,,Small,,213089972,2100328971,Rail,Building Systems & Net Zero,Consolidated Monthly Travel July 2023 Rail,BD1 5HQ,703.35,
"Housing, Communities & Local Government",DLUHC,07/09/2023,"Rail, Underground and Eurostar",Safer and Greener Buildings,CORPORATE TRAVEL MANAGEMENT(NORTH)L,,Small,,213089972,2100328971,Rail,Building Systems & Net Zero,Consolidated Monthly Travel July 2023 Rail,BD1 5HQ,1146.85,
"Housing, Communities & Local Government",DLUHC,07/09/2023,"Rail, Underground and Eurostar",Safer and Greener Buildings,CORPORATE TRAVEL MANAGEMENT(NORTH)L,,Small,,213089972,2100328971,Rail,Building Systems & Net Zero,Consolidated Monthly Travel July 2023 Rail,BD1 5HQ,358.3,
"Housing, Communities & Local Government",DLUHC,07/09/2023,"Rail, Underground and Eurostar",Safer and Greener Buildings,CORPORATE TRAVEL MANAGEMENT(NORTH)L,,Small,,213089972,2100328971,Rail,Remediation Policy,Consolidated Monthly Travel July 2023 Rail,BD1 5HQ,939.2,
"Housing, Communities & Local Government",DLUHC,07/09/2023,"Rail, Underground and Eurostar",Safer and Greener Buildings,CORPORATE TRAVEL MANAGEMENT(NORTH)L,,Small,,213089972,2100328971,Rail,Remediation Policy,Consolidated Monthly Travel July 2023 Rail,BD1 5HQ,527.65,
"Housing, Communities & Local Government",DLUHC,07/09/2023,"Rail, Underground and Eurostar",Safer and Greener Buildings,CORPORATE TRAVEL MANAGEMENT(NORTH)L,,Small,,213089972,2100328971,Rail,Remediation Policy,Consolidated Monthly Travel July 2023 Rail,BD1 5HQ,895.8,
"Housing, Communities & Local Government",DLUHC,07/09/2023,"Rail, Underground and Eurostar",Union & Windsor Framework,CORPORATE TRAVEL MANAGEMENT(NORTH)L,,Small,,213089972,2100328971,Rail,Union & Devolution,Consolidated Monthly Travel July 2023 Rail,BD1 5HQ,2065.25,
"Housing, Communities & Local Government",DLUHC,07/09/2023,"Rail, Underground and Eurostar",CFO and Corporate,CORPORATE TRAVEL MANAGEMENT(NORTH)L,,Small,,213089972,2100328971,Rail,Not assigned,Consolidated Monthly Travel July 2023 Rail,BD1 5HQ,6008.25,
"Housing, Communities & Local Government",DLUHC,07/09/2023,"Rail, Underground and Eurostar",CFO and Corporate,CORPORATE TRAVEL MANAGEMENT(NORTH)L,,Small,,213089972,2100328971,Rail,Not assigned,Consolidated Monthly Travel July 2023 Rail,BD1 5HQ,425.5,
"Housing, Communities & Local Government",DLUHC,07/09/2023,Rates,CFO and Corporate,GOVERNMENT PROPERTY AGENCY,,Medium,,,5106301354,,Property Asset Management,GPA Balancing Charges 22/23 NON VAT   58,B2 5LS,51413.01,
"Housing, Communities & Local Government",DLUHC,07/09/2023,Rates,CFO and Corporate,GOVERNMENT PROPERTY AGENCY,,Medium,,,5106301355,,Property Asset Management,GPA Balancing Charges 22/23 NON VAT   58,B2 5LS,41631.75,
"Housing, Communities & Local Government",DLUHC,07/09/2023,Rates,CFO and Corporate,GOVERNMENT PROPERTY AGENCY,,Medium,,,5106301356,,Property Asset Management,GPA Balancing Charges 22/23 NON VAT   58,B2 5LS,47891.73,
"Housing, Communities & Local Government",DLUHC,07/09/2023,Rates,CFO and Corporate,GOVERNMENT PROPERTY AGENCY,,Medium,,,5106301357,,Property Asset Management,GPA Balancing Charges 22/23 NON VAT   58,B2 5LS,49894.17,
"Housing, Communities & Local Government",DLUHC,07/09/2023,Rates,CFO and Corporate,GOVERNMENT PROPERTY AGENCY,,Medium,,,5106301377,,Property Asset Management,GPA Balancing Charges 22/23 NON VAT   58,B2 5LS,220794.12,
"Housing, Communities & Local Government",DLUHC,07/09/2023,Rates,CFO and Corporate,GOVERNMENT PROPERTY AGENCY,,Medium,,,5106301379,,Property Asset Management,GPA Balancing Charges 22/23 NON VAT   58,B2 5LS,36865.84,
"Housing, Communities & Local Government",DLUHC,07/09/2023,Rates,CFO and Corporate,GOVERNMENT PROPERTY AGENCY,,Medium,,,5106301383,,Property Asset Management,GPA Balancing Charges 22/23 NON VAT   58,B2 5LS,-64864,
"Housing, Communities & Local Government",DLUHC,07/09/2023,Rates,CFO and Corporate,GOVERNMENT PROPERTY AGENCY,,Medium,,,5106301387,,Property Asset Management,GPA Balancing Charges 22/23 NON VAT   58,B2 5LS,-4806.23,
"Housing, Communities & Local Government",DLUHC,07/09/2023,Rates,CFO and Corporate,GOVERNMENT PROPERTY AGENCY,,Medium,,,5106301388,,Property Asset Management,GPA Balancing Charges 22/23 NON VAT   58,B2 5LS,-69262.21,
"Housing, Communities & Local Government",DLUHC,07/09/2023,Rates,CFO and Corporate,GOVERNMENT PROPERTY AGENCY,,Medium,,,5106301389,,Property Asset Management,GPA Balancing Charges 22/23 NON VAT   58,B2 5LS,-56974.29,
"Housing, Communities & Local Government",DLUHC,07/09/2023,Rates,CFO and Corporate,GOVERNMENT PROPERTY AGENCY,,Medium,,,5106301391,,Property Asset Management,GPA Balancing Charges 22/23 NON VAT   58,B2 5LS,91719.81,
"Housing, Communities & Local Government",DLUHC,07/09/2023,Rates,CFO and Corporate,GOVERNMENT PROPERTY AGENCY,,Medium,,,5106301392,,Property Asset Management,GPA Balancing Charges 22/23 NON VAT   58,B2 5LS,-2711.2,
"Housing, Communities & Local Government",DLUHC,07/09/2023,Rates,CFO and Corporate,GOVERNMENT PROPERTY AGENCY,,Medium,,,5106301394,,Property Asset Management,GPA Balancing Charges 22/23 NON VAT   58,B2 5LS,62580.2,
"Housing, Communities & Local Government",DLUHC,07/09/2023,Rates,CFO and Corporate,GOVERNMENT PROPERTY AGENCY,,Medium,,,5106301396,,Property Asset Management,GPA Balancing Charges 22/23 NON VAT   58,B2 5LS,31405,
"Housing, Communities & Local Government",DLUHC,07/09/2023,Rates,CFO and Corporate,GOVERNMENT PROPERTY AGENCY,,Medium,,,5106301405,,Property Asset Management,GPA Balancing Charges 22/23 NON VAT   58,B2 5LS,-6343.08,
"Housing, Communities & Local Government",DLUHC,07/09/2023,Rates,CFO and Corporate,GOVERNMENT PROPERTY AGENCY,,Medium,,,5106301406,,Property Asset Management,GPA Balancing Charges 22/23 NON VAT   58,B2 5LS,197072.71,
"Housing, Communities & Local Government",DLUHC,07/09/2023,Rent,CFO and Corporate,GOVERNMENT PROPERTY AGENCY,,Medium,,,5106301393,,Property Asset Management,Hastings rent VAT,B2 5LS,12121.02,
"Housing, Communities & Local Government",DLUHC,07/09/2023,Rent,CFO and Corporate,GOVERNMENT PROPERTY AGENCY,,Medium,,,5106301393,,Property Asset Management,Multi Building FM Including Security,B2 5LS,9419.12,
"Housing, Communities & Local Government",DLUHC,07/09/2023,Rent,CFO and Corporate,GOVERNMENT PROPERTY AGENCY,,Medium,,,5106301393,,Property Asset Management,Multi Building Rates,B2 5LS,3186.85,
"Housing, Communities & Local Government",DLUHC,07/09/2023,Rent,CFO and Corporate,GOVERNMENT PROPERTY AGENCY,,Medium,,,5106301393,,Property Asset Management,Multi Building Rent,B2 5LS,4396.81,
"Housing, Communities & Local Government",DLUHC,07/09/2023,Rent,CFO and Corporate,GOVERNMENT PROPERTY AGENCY,,Medium,,,5106301395,,Property Asset Management,Hastings rent VAT,B2 5LS,12121.02,
"Housing, Communities & Local Government",DLUHC,07/09/2023,Rent,CFO and Corporate,GOVERNMENT PROPERTY AGENCY,,Medium,,,5106301395,,Property Asset Management,Multi Building FM Including Security,B2 5LS,9419.12,
"Housing, Communities & Local Government",DLUHC,07/09/2023,Rent,CFO and Corporate,GOVERNMENT PROPERTY AGENCY,,Medium,,,5106301395,,Property Asset Management,Multi Building Rates,B2 5LS,3186.85,
"Housing, Communities & Local Government",DLUHC,07/09/2023,Rent,CFO and Corporate,GOVERNMENT PROPERTY AGENCY,,Medium,,,5106301395,,Property Asset Management,Multi Building Rent,B2 5LS,4396.81,
"Housing, Communities & Local Government",DLUHC,07/09/2023,Research and Development,Regeneration,RSM UK CONSULTING LLP,,Large,,,5106301292,,Planning Reform,M&E of Digital Reforms and Intervention,CB2 1RE,118425.6,
"Housing, Communities & Local Government",DLUHC,07/09/2023,Revenue Support grant payable,Local Govnmnt Resilience and Communities,SOUTHWARK LB,,,,,3700228361,,Local Government Finance,Grant payable by the Exchequer,SE1P 5LX,3374016,Yes
"Housing, Communities & Local Government",DLUHC,07/09/2023,Software Licences,CFO and Corporate,SNP UK,,Small,,216919025,5106301376,Software,Finance,SNP Test Data Organiser Software,SW1W 9TR,3023.28,
"Housing, Communities & Local Government",DLUHC,07/09/2023,Software Licences,Levelling Up,Govforms Ltd,,Micro,,223918190,5106301375,,Community Investment and Funding Service,Additional work for DLUHC Form Builder,BN11 1LY,396,
"Housing, Communities & Local Government",DLUHC,07/09/2023,Steady State Service Provision,CFO and Corporate,GOVERNMENT PROPERTY AGENCY,,Medium,,,5106301355,,Property Asset Management,"Balancing Charges 22/23 VAT  515,683.66",B2 5LS,8558,
"Housing, Communities & Local Government",DLUHC,07/09/2023,Steady State Service Provision,CFO and Corporate,GOVERNMENT PROPERTY AGENCY,,Medium,,,5106301377,,Property Asset Management,"Balancing Charges 22/23 VAT  515,683.66",B2 5LS,217178.96,
"Housing, Communities & Local Government",DLUHC,07/09/2023,Steady State Service Provision,CFO and Corporate,GOVERNMENT PROPERTY AGENCY,,Medium,,,5106301379,,Property Asset Management,"Balancing Charges 22/23 VAT  515,683.66",B2 5LS,1142.8,
"Housing, Communities & Local Government",DLUHC,07/09/2023,Steady State Service Provision,CFO and Corporate,GOVERNMENT PROPERTY AGENCY,,Medium,,,5106301392,,Property Asset Management,"Balancing Charges 22/23 VAT  515,683.66",B2 5LS,-45863.36,
"Housing, Communities & Local Government",DLUHC,07/09/2023,Steady State Service Provision,CFO and Corporate,GOVERNMENT PROPERTY AGENCY,,Medium,,,5106301393,,Property Asset Management,"Balancing Charges 22/23 VAT  515,683.66",B2 5LS,4740.66,
"Housing, Communities & Local Government",DLUHC,07/09/2023,Steady State Service Provision,CFO and Corporate,GOVERNMENT PROPERTY AGENCY,,Medium,,,5106301395,,Property Asset Management,"Balancing Charges 22/23 VAT  515,683.66",B2 5LS,4740.66,
"Housing, Communities & Local Government",DLUHC,07/09/2023,Training,CFO and Corporate,KPMG LLP (CSL),,Large,,,5106301385,,Digital,Civil Service Training,E14 5GL,229,
"Housing, Communities & Local Government",DLUHC,07/09/2023,Training,CFO and Corporate,SOFTWARE ACUMEN LTD,,Micro,,,5106301107,,Digital,Civil Service Training,CB4 0WS,531.25,
"Housing, Communities & Local Government",DLUHC,07/09/2023,Travel and Subsistence Account,Levelling Up,CORPORATE TRAVEL MANAGEMENT(NORTH)L,,Small,,213089972,2100328971,Business Travel,Levelling Up: Major Programmes,Consolidated Monthly Travel July 2023 Misc T&S,BD1 5HQ,426.44,
"Housing, Communities & Local Government",DLUHC,07/09/2023,Travel and Subsistence Account,Local Govnmnt Resilience and Communities,CORPORATE TRAVEL MANAGEMENT(NORTH)L,,Small,,213089972,2100328971,Business Travel,Strategy and Private Offices,Consolidated Monthly Travel July 2023 Misc T&S,BD1 5HQ,367.96,
"Housing, Communities & Local Government",DLUHC,07/09/2023,Travel and Subsistence Account,Regeneration,CORPORATE TRAVEL MANAGEMENT(NORTH)L,,Small,,213089972,2100328971,Business Travel,Housing Markets and Strategy,Consolidated Monthly Travel July 2023,BD1 5HQ,328.96,
"Housing, Communities & Local Government",DLUHC,08/09/2023,Accommodation - actuals,CFO and Corporate,CORPORATE TRAVEL MANAGEMENT(NORTH)L,,Small,,213089972,2100328986,Business Travel Accommodation,Analysis and Data,Business Travel Accomodation August 2023,BD1 5HQ,915.61,
"Housing, Communities & Local Government",DLUHC,08/09/2023,Accommodation - actuals,CFO and Corporate,CORPORATE TRAVEL MANAGEMENT(NORTH)L,,Small,,213089972,2100328986,Business Travel Accommodation,Analysis and Data,Business Travel Accomodation August 2023,BD1 5HQ,1501.57,
"Housing, Communities & Local Government",DLUHC,08/09/2023,Accommodation - actuals,CFO and Corporate,CORPORATE TRAVEL MANAGEMENT(NORTH)L,,Small,,213089972,2100328986,Business Travel Accommodation,Digital,Consolidated Monthly Travel August 2023 Hotels,BD1 5HQ,459,
"Housing, Communities & Local Government",DLUHC,08/09/2023,Accommodation - actuals,CFO and Corporate,CORPORATE TRAVEL MANAGEMENT(NORTH)L,,Small,,213089972,2100328986,Business Travel Accommodation,Digital,Consolidated Monthly Travel August 2023 Hotels,BD1 5HQ,968.21,
"Housing, Communities & Local Government",DLUHC,08/09/2023,Accommodation - actuals,CFO and Corporate,CORPORATE TRAVEL MANAGEMENT(NORTH)L,,Small,,213089972,2100328986,Business Travel Accommodation,Digital,Consolidated Monthly Travel August 2023 Hotels,BD1 5HQ,934.5,
"Housing, Communities & Local Government",DLUHC,08/09/2023,Accommodation - actuals,CFO and Corporate,CORPORATE TRAVEL MANAGEMENT(NORTH)L,,Small,,213089972,2100328986,Business Travel Accommodation,Digital,Consolidated Monthly Travel August 2023 Hotels,BD1 5HQ,383.48,
"Housing, Communities & Local Government",DLUHC,08/09/2023,Accommodation - actuals,CFO and Corporate,CORPORATE TRAVEL MANAGEMENT(NORTH)L,,Small,,213089972,2100328986,Business Travel Accommodation,Commercial,Consolidated Monthly Travel August 2023 Hotels,BD1 5HQ,2087.59,
"Housing, Communities & Local Government",DLUHC,08/09/2023,Accommodation - actuals,Levelling Up,CORPORATE TRAVEL MANAGEMENT(NORTH)L,,Small,,213089972,2100328986,Business Travel Accommodation,Areas,Consolidated Monthly Travel August 2023 Hotels,BD1 5HQ,617.1,
"Housing, Communities & Local Government",DLUHC,08/09/2023,Accommodation - actuals,Levelling Up,CORPORATE TRAVEL MANAGEMENT(NORTH)L,,Small,,213089972,2100328986,Business Travel Accommodation,Place,Consolidated Monthly Travel August 2023 Hotels,BD1 5HQ,4002.73,
"Housing, Communities & Local Government",DLUHC,08/09/2023,Accommodation - actuals,Levelling Up,CORPORATE TRAVEL MANAGEMENT(NORTH)L,,Small,,213089972,2100328986,Business Travel Accommodation,LU Policy & Delivery,Consolidated Monthly Travel August 2023 Hotels,BD1 5HQ,924,
"Housing, Communities & Local Government",DLUHC,08/09/2023,Accommodation - actuals,Levelling Up,CORPORATE TRAVEL MANAGEMENT(NORTH)L,,Small,,213089972,2100328986,Business Travel Accommodation,LU Policy & Delivery,Consolidated Monthly Travel August 2023 Hotels,BD1 5HQ,1350,
"Housing, Communities & Local Government",DLUHC,08/09/2023,Accommodation - actuals,Levelling Up,CORPORATE TRAVEL MANAGEMENT(NORTH)L,,Small,,213089972,2100328986,Business Travel Accommodation,LU Policy & Delivery,Consolidated Monthly Travel August 2023 Hotels,BD1 5HQ,274.99,
"Housing, Communities & Local Government",DLUHC,08/09/2023,Accommodation - actuals,Levelling Up,CORPORATE TRAVEL MANAGEMENT(NORTH)L,,Small,,213089972,2100328986,Business Travel Accommodation,LU Policy & Delivery,Consolidated Monthly Travel August 2023 Hotels,BD1 5HQ,499.08,
"Housing, Communities & Local Government",DLUHC,08/09/2023,Accommodation - actuals,Levelling Up,CORPORATE TRAVEL MANAGEMENT(NORTH)L,,Small,,213089972,2100328986,Business Travel Accommodation,Strategy & Private Offices,Consolidated Monthly Travel August 2023 Hotels,BD1 5HQ,2859.51,
"Housing, Communities & Local Government",DLUHC,08/09/2023,Accommodation - actuals,Levelling Up,CORPORATE TRAVEL MANAGEMENT(NORTH)L,,Small,,213089972,2100328986,Business Travel Accommodation,Strategy & Private Offices,Consolidated Monthly Travel August 2023 Hotels,BD1 5HQ,281.7,
"Housing, Communities & Local Government",DLUHC,08/09/2023,Accommodation - actuals,Levelling Up,CORPORATE TRAVEL MANAGEMENT(NORTH)L,,Small,,213089972,2100328986,Business Travel Accommodation,Levelling Up: Major Programmes,Consolidated Monthly Travel August 2023 Hotels,BD1 5HQ,561.5,
"Housing, Communities & Local Government",DLUHC,08/09/2023,Accommodation - actuals,Levelling Up,CORPORATE TRAVEL MANAGEMENT(NORTH)L,,Small,,213089972,2100328986,Business Travel Accommodation,Levelling Up: Major Programmes,Consolidated Monthly Travel August 2023 Hotels,BD1 5HQ,546.44,
"Housing, Communities & Local Government",DLUHC,08/09/2023,Accommodation - actuals,Levelling Up,CORPORATE TRAVEL MANAGEMENT(NORTH)L,,Small,,213089972,2100328986,Business Travel Accommodation,Community Investment and Funding Service,Consolidated Monthly Travel August 2023 Hotels,BD1 5HQ,316.08,
"Housing, Communities & Local Government",DLUHC,08/09/2023,Accommodation - actuals,Levelling Up,CORPORATE TRAVEL MANAGEMENT(NORTH)L,,Small,,213089972,2100328986,Business Travel Accommodation,Community Investment and Funding Service,Consolidated Monthly Travel August 2023 Hotels,BD1 5HQ,965.86,
"Housing, Communities & Local Government",DLUHC,08/09/2023,Accommodation - actuals,Levelling Up,CORPORATE TRAVEL MANAGEMENT(NORTH)L,,Small,,213089972,2100328986,Business Travel Accommodation,Community Investment and Funding Service,Consolidated Monthly Travel August 2023 Hotels,BD1 5HQ,611.69,
"Housing, Communities & Local Government",DLUHC,08/09/2023,Accommodation - actuals,Local Govnmnt Resilience and Communities,CORPORATE TRAVEL MANAGEMENT(NORTH)L,,Small,,213089972,2100328986,Business Travel Accommodation,Local Government Finance,Consolidated Monthly Travel August 2023 Hotels,BD1 5HQ,294.3,
"Housing, Communities & Local Government",DLUHC,08/09/2023,Accommodation - actuals,Local Govnmnt Resilience and Communities,CORPORATE TRAVEL MANAGEMENT(NORTH)L,,Small,,213089972,2100328986,Business Travel Accommodation,Integration and Communities,Consolidated Monthly Travel August 2023 Hotels,BD1 5HQ,1157.35,
"Housing, Communities & Local Government",DLUHC,08/09/2023,Accommodation - actuals,Local Govnmnt Resilience and Communities,CORPORATE TRAVEL MANAGEMENT(NORTH)L,,Small,,213089972,2100328986,Business Travel Accommodation,Integration and Communities,Consolidated Monthly Travel August 2023 Hotels,BD1 5HQ,271.49,
"Housing, Communities & Local Government",DLUHC,08/09/2023,Accommodation - actuals,Local Govnmnt Resilience and Communities,CORPORATE TRAVEL MANAGEMENT(NORTH)L,,Small,,213089972,2100328986,Business Travel Accommodation,Strategy and Private Offices,Consolidated Monthly Travel August 2023 Hotels,BD1 5HQ,2189.3,
"Housing, Communities & Local Government",DLUHC,08/09/2023,Accommodation - actuals,Local Govnmnt Resilience and Communities,CORPORATE TRAVEL MANAGEMENT(NORTH)L,,Small,,213089972,2100328986,Business Travel Accommodation,Homelessness & Rough Sleeping,Consolidated Monthly Travel August 2023 Hotels,BD1 5HQ,780.7,
"Housing, Communities & Local Government",DLUHC,08/09/2023,Accommodation - actuals,Local Govnmnt Resilience and Communities,CORPORATE TRAVEL MANAGEMENT(NORTH)L,,Small,,213089972,2100328986,Business Travel Accommodation,Homelessness & Rough Sleeping,Consolidated Monthly Travel August 2023 Hotels,BD1 5HQ,415.96,
"Housing, Communities & Local Government",DLUHC,08/09/2023,Accommodation - actuals,Local Govnmnt Resilience and Communities,CORPORATE TRAVEL MANAGEMENT(NORTH)L,,Small,,213089972,2100328986,Business Travel Accommodation,Homelessness & Rough Sleeping,Consolidated Monthly Travel August 2023 Hotels,BD1 5HQ,1265.98,
"Housing, Communities & Local Government",DLUHC,08/09/2023,Accommodation - actuals,Local Govnmnt Resilience and Communities,CORPORATE TRAVEL MANAGEMENT(NORTH)L,,Small,,213089972,2100328986,Business Travel Accommodation,Resilience & Recovery,Consolidated Monthly Travel August 2023 Hotels,BD1 5HQ,1633.36,
"Housing, Communities & Local Government",DLUHC,08/09/2023,Accommodation - actuals,Local Govnmnt Resilience and Communities,CORPORATE TRAVEL MANAGEMENT(NORTH)L,,Small,,213089972,2100328986,Business Travel Accommodation,Elections Directorate,Consolidated Monthly Travel August 2023 Hotels,BD1 5HQ,723,
"Housing, Communities & Local Government",DLUHC,08/09/2023,Accommodation - actuals,Local Govnmnt Resilience and Communities,CORPORATE TRAVEL MANAGEMENT(NORTH)L,,Small,,213089972,2100328986,Business Travel Accommodation,Elections Directorate,Consolidated Monthly Travel August 2023 Hotels,BD1 5HQ,481.75,
"Housing, Communities & Local Government",DLUHC,08/09/2023,Accommodation - actuals,Local Govnmnt Resilience and Communities,CORPORATE TRAVEL MANAGEMENT(NORTH)L,,Small,,213089972,2100328986,Business Travel Accommodation,Local Government Policy,Consolidated Monthly Travel August 2023 Hotels,BD1 5HQ,332.89,
"Housing, Communities & Local Government",DLUHC,08/09/2023,Accommodation - actuals,Local Govnmnt Resilience and Communities,CORPORATE TRAVEL MANAGEMENT(NORTH)L,,Small,,213089972,2100328986,Business Travel Accommodation,Local Government Policy,Consolidated Monthly Travel August 2023 Hotels,BD1 5HQ,413.5,
"Housing, Communities & Local Government",DLUHC,08/09/2023,Accommodation - actuals,Local Govnmnt Resilience and Communities,CORPORATE TRAVEL MANAGEMENT(NORTH)L,,Small,,213089972,2100328986,Business Travel Accommodation,Local Government Policy,Consolidated Monthly Travel August 2023 Hotels,BD1 5HQ,283.77,
"Housing, Communities & Local Government",DLUHC,08/09/2023,Accommodation - actuals,Local Govnmnt Resilience and Communities,CORPORATE TRAVEL MANAGEMENT(NORTH)L,,Small,,213089972,2100328986,Business Travel Accommodation,Local Government Policy,Consolidated Monthly Travel August 2023 Hotels,BD1 5HQ,358.5,
"Housing, Communities & Local Government",DLUHC,08/09/2023,Accommodation - actuals,Local Govnmnt Resilience and Communities,CORPORATE TRAVEL MANAGEMENT(NORTH)L,,Small,,213089972,2100328986,Business Travel Accommodation,Covid 19 Inquiry,Consolidated Monthly Travel August 2023 Hotels,BD1 5HQ,304.5,
"Housing, Communities & Local Government",DLUHC,08/09/2023,Accommodation - actuals,Local Govnmnt Resilience and Communities,CORPORATE TRAVEL MANAGEMENT(NORTH)L,,Small,,213089972,2100328989,Business Travel Accommodation,Local Government Policy,Consolidated Monthly Travel August 2023 Hotels,BD1 5HQ,433.62,
"Housing, Communities & Local Government",DLUHC,08/09/2023,Accommodation - actuals,Regeneration,CORPORATE TRAVEL MANAGEMENT(NORTH)L,,Small,,213089972,2100328986,Business Travel Accommodation,Chief Planner,Consolidated Monthly Travel August 2023 Hotels,BD1 5HQ,379.8,
"Housing, Communities & Local Government",DLUHC,08/09/2023,Accommodation - actuals,Regeneration,CORPORATE TRAVEL MANAGEMENT(NORTH)L,,Small,,213089972,2100328986,Business Travel Accommodation,Housing Markets and Strategy,Consolidated Monthly Travel August 2023 Hotels,BD1 5HQ,604.58,
"Housing, Communities & Local Government",DLUHC,08/09/2023,Accommodation - actuals,Regeneration,CORPORATE TRAVEL MANAGEMENT(NORTH)L,,Small,,213089972,2100328986,Business Travel Accommodation,Housing Markets and Strategy,Consolidated Monthly Travel August 2023 Hotels,BD1 5HQ,369.82,
"Housing, Communities & Local Government",DLUHC,08/09/2023,Accommodation - actuals,Regeneration,CORPORATE TRAVEL MANAGEMENT(NORTH)L,,Small,,213089972,2100328986,Business Travel Accommodation,Social Housing & Resettlement,Consolidated Monthly Travel August 2023 Hotels,BD1 5HQ,399.5,
"Housing, Communities & Local Government",DLUHC,08/09/2023,Accommodation - actuals,Regeneration,CORPORATE TRAVEL MANAGEMENT(NORTH)L,,Small,,213089972,2100328986,Business Travel Accommodation,Social Housing & Resettlement,Directorate Monthly Travel August 2023 Hotels,BD1 5HQ,874.3,
"Housing, Communities & Local Government",DLUHC,08/09/2023,Accommodation - actuals,Regeneration,CORPORATE TRAVEL MANAGEMENT(NORTH)L,,Small,,213089972,2100328986,Business Travel Accommodation,Leasehold Land & Planning Systems,Consolidated Monthly Travel August 2023 Hotels,BD1 5HQ,592,
"Housing, Communities & Local Government",DLUHC,08/09/2023,Accommodation - actuals,Regeneration,CORPORATE TRAVEL MANAGEMENT(NORTH)L,,Small,,213089972,2100328986,Business Travel Accommodation,"Places,Infrastructure & Housing Delivery",Consolidated Monthly Travel August 2023 Hotels,BD1 5HQ,508.5,
"Housing, Communities & Local Government",DLUHC,08/09/2023,Accommodation - actuals,Regeneration,CORPORATE TRAVEL MANAGEMENT(NORTH)L,,Small,,213089972,2100328986,Business Travel Accommodation,Planning Reform & Housing Quality,Consolidated Monthly Travel August 2023 Hotels,BD1 5HQ,1853.4,
"Housing, Communities & Local Government",DLUHC,08/09/2023,Accommodation - actuals,Regeneration,CORPORATE TRAVEL MANAGEMENT(NORTH)L,,Small,,213089972,2100328986,Business Travel Accommodation,Planning Reform & Housing Quality,Consolidated Monthly Travel August 2023 Hotels,BD1 5HQ,414.29,
"Housing, Communities & Local Government",DLUHC,08/09/2023,Accommodation - actuals,Regeneration,CORPORATE TRAVEL MANAGEMENT(NORTH)L,,Small,,213089972,2100328986,Business Travel Accommodation,Planning Reform & Housing Quality,Consolidated Monthly Travel August 2023 Hotels,BD1 5HQ,583.87,
"Housing, Communities & Local Government",DLUHC,08/09/2023,Accommodation - actuals,Regeneration,CORPORATE TRAVEL MANAGEMENT(NORTH)L,,Small,,213089972,2100328986,Business Travel Accommodation,Planning Reform & Housing Quality,Consolidated Monthly Travel August 2023 Hotels,BD1 5HQ,2137.19,
"Housing, Communities & Local Government",DLUHC,08/09/2023,Accommodation - actuals,Safer and Greener Buildings,CORPORATE TRAVEL MANAGEMENT(NORTH)L,,Small,,213089972,2100328986,Business Travel Accommodation,"BSP Standards, Insurance and Public Inq",Consolidated Monthly Travel August 2023 Hotels,BD1 5HQ,344.15,
"Housing, Communities & Local Government",DLUHC,08/09/2023,Accommodation - actuals,Safer and Greener Buildings,CORPORATE TRAVEL MANAGEMENT(NORTH)L,,Small,,213089972,2100328986,Business Travel Accommodation,Building Systems & Net Zero,Consolidated Monthly Travel August 2023 Hotels,BD1 5HQ,275.4,
"Housing, Communities & Local Government",DLUHC,08/09/2023,Accommodation - actuals,Safer and Greener Buildings,CORPORATE TRAVEL MANAGEMENT(NORTH)L,,Small,,213089972,2100328986,Business Travel Accommodation,Remediation Policy,Consolidated Monthly Travel August 2023 Hotels,BD1 5HQ,409.05,
"Housing, Communities & Local Government",DLUHC,08/09/2023,Accommodation - actuals,Safer and Greener Buildings,CORPORATE TRAVEL MANAGEMENT(NORTH)L,,Small,,213089972,2100328986,Business Travel Accommodation,Remediation Policy,Consolidated Monthly Travel August 2023 Hotels,BD1 5HQ,550,
"Housing, Communities & Local Government",DLUHC,08/09/2023,Accommodation - actuals,Safer and Greener Buildings,CORPORATE TRAVEL MANAGEMENT(NORTH)L,,Small,,213089972,2100328986,Business Travel Accommodation,Regulatory Stewardship & Reform,Consolidated Monthly Travel August 2023 Hotels,BD1 5HQ,264.5,
"Housing, Communities & Local Government",DLUHC,08/09/2023,Accommodation - actuals,Union & Windsor Framework,CORPORATE TRAVEL MANAGEMENT(NORTH)L,,Small,,213089972,2100328986,Business Travel Accommodation,Union & Devolution,Consolidated Monthly Travel August 2023 Hotels,BD1 5HQ,1090.99,
"Housing, Communities & Local Government",DLUHC,08/09/2023,Accommodation - actuals,CFO and Corporate,CORPORATE TRAVEL MANAGEMENT(NORTH)L,,Small,,213089972,2100328986,Business Travel Accommodation,Not assigned,Consolidated Monthly Travel August 2023 Hotels,BD1 5HQ,1871.29,
"Housing, Communities & Local Government",DLUHC,08/09/2023,Agency Staff,CFO and Corporate,ALEXANDER MANN SOLUTIONS LTD,,Large,,,5106301458,,Digital,Agency Staff,EC2N 3AQ,3545.09,
"Housing, Communities & Local Government",DLUHC,08/09/2023,Agency Staff,CFO and Corporate,ALEXANDER MANN SOLUTIONS LTD,,Large,,,5106301459,,Digital,Agency Staff,EC2N 3AQ,3872.3,
"Housing, Communities & Local Government",DLUHC,08/09/2023,Agency Staff,CFO and Corporate,ALEXANDER MANN SOLUTIONS LTD,,Large,,,5106301463,,Digital,Agency Staff,EC2N 3AQ,3449.18,
"Housing, Communities & Local Government",DLUHC,08/09/2023,Agency Staff,CFO and Corporate,ALEXANDER MANN SOLUTIONS LTD,,Large,,,5106301465,,Digital,Agency Staff,EC2N 3AQ,3202.85,
"Housing, Communities & Local Government",DLUHC,08/09/2023,Agency Staff,CFO and Corporate,ALEXANDER MANN SOLUTIONS LTD,,Large,,,5106301466,,Commercial,Commercial interim - Working in Procurement team ,EC2N 3AQ,3317.42,
"Housing, Communities & Local Government",DLUHC,08/09/2023,Agency Staff,CFO and Corporate,ALEXANDER MANN SOLUTIONS LTD,,Large,,,5106301467,,Digital,Agency Staff,EC2N 3AQ,7206.41,
"Housing, Communities & Local Government",DLUHC,08/09/2023,Agency Staff,CFO and Corporate,ALEXANDER MANN SOLUTIONS LTD,,Large,,,5106301470,,Digital,Agency Staff,EC2N 3AQ,3695.62,
"Housing, Communities & Local Government",DLUHC,08/09/2023,Agency Staff,CFO and Corporate,ALEXANDER MANN SOLUTIONS LTD,,Large,,,5106301471,,Commercial,Commercial interim - Working in Procurement team ,EC2N 3AQ,3695.62,
"Housing, Communities & Local Government",DLUHC,08/09/2023,Agency Staff,CFO and Corporate,ALEXANDER MANN SOLUTIONS LTD,,Large,,,5106301476,,Digital,Agency Staff,EC2N 3AQ,3317.18,
"Housing, Communities & Local Government",DLUHC,08/09/2023,Agency Staff,CFO and Corporate,ALEXANDER MANN SOLUTIONS LTD,,Large,,,5106301484,,Digital,Agency Staff,EC2N 3AQ,3695.62,
"Housing, Communities & Local Government",DLUHC,08/09/2023,Agency Staff,Levelling Up,ALEXANDER MANN SOLUTIONS LTD,,Large,,,5106301455,,Community Investment and Funding Service,Agency Staff,EC2N 3AQ,608.16,
"Housing, Communities & Local Government",DLUHC,08/09/2023,Agency Staff,Levelling Up,ALEXANDER MANN SOLUTIONS LTD,,Large,,,5106301462,,Community Investment and Funding Service,Agency Staff,EC2N 3AQ,651.6,
"Housing, Communities & Local Government",DLUHC,08/09/2023,Agency Staff,Levelling Up,ALEXANDER MANN SOLUTIONS LTD,,Large,,,5106301486,,Community Investment and Funding Service,Agency Staff,EC2N 3AQ,1387.19,
"Housing, Communities & Local Government",DLUHC,08/09/2023,Agency Staff,Local Govnmnt Resilience and Communities,ALEXANDER MANN SOLUTIONS LTD,,Large,,,5106301454,,Holocaust Memorial UKHMF,Agency Staff,EC2N 3AQ,3141.25,
"Housing, Communities & Local Government",DLUHC,08/09/2023,Agency Staff,Local Govnmnt Resilience and Communities,ALEXANDER MANN SOLUTIONS LTD,,Large,,,5106301456,,Holocaust Memorial UKHMF,Agency Staff,EC2N 3AQ,1006.55,
"Housing, Communities & Local Government",DLUHC,08/09/2023,Agency Staff,Local Govnmnt Resilience and Communities,ALEXANDER MANN SOLUTIONS LTD,,Large,,,5106301464,,Covid 19 Inquiry,Agency Staff,EC2N 3AQ,2772.24,
"Housing, Communities & Local Government",DLUHC,08/09/2023,Agency Staff,Local Govnmnt Resilience and Communities,ALEXANDER MANN SOLUTIONS LTD,,Large,,,5106301468,,Covid 19 Inquiry,Agency Staff,EC2N 3AQ,2772.24,
"Housing, Communities & Local Government",DLUHC,08/09/2023,Agency Staff,Local Govnmnt Resilience and Communities,ALEXANDER MANN SOLUTIONS LTD,,Large,,,5106301469,,Elections Directorate,Agency Staff,EC2N 3AQ,3024.29,
"Housing, Communities & Local Government",DLUHC,08/09/2023,Agency Staff,Local Govnmnt Resilience and Communities,ALEXANDER MANN SOLUTIONS LTD,,Large,,,5106301474,,Elections Directorate,Agency Staff,EC2N 3AQ,4003.56,
"Housing, Communities & Local Government",DLUHC,08/09/2023,Agency Staff,Local Govnmnt Resilience and Communities,ALEXANDER MANN SOLUTIONS LTD,,Large,,,5106301483,,Elections Directorate,Agency Staff,EC2N 3AQ,1035.02,
"Housing, Communities & Local Government",DLUHC,08/09/2023,Agency Staff,Regeneration,ALEXANDER MANN SOLUTIONS LTD,,Large,,,5106301482,,Planning Reform,Agency Staff,EC2N 3AQ,3402.29,
"Housing, Communities & Local Government",DLUHC,08/09/2023,Agency Staff,Regeneration,ALEXANDER MANN SOLUTIONS LTD,,Large,,,5106301487,,Leasehold Land & Planning Systems,Agency Staff,EC2N 3AQ,443.23,
"Housing, Communities & Local Government",DLUHC,08/09/2023,Agency Staff,Safer and Greener Buildings,ALEXANDER MANN SOLUTIONS LTD,,Large,,,5106301457,,Building Systems & Net Zero,Agency Staff,EC2N 3AQ,251.05,
"Housing, Communities & Local Government",DLUHC,08/09/2023,Agency Staff,Safer and Greener Buildings,ALEXANDER MANN SOLUTIONS LTD,,Large,,,5106301460,,Intervention Delivery,Agency Staff,EC2N 3AQ,1890.18,
"Housing, Communities & Local Government",DLUHC,08/09/2023,Agency Staff,Safer and Greener Buildings,ALEXANDER MANN SOLUTIONS LTD,,Large,,,5106301461,,Intervention Delivery,Agency Staff,EC2N 3AQ,3465.3,
"Housing, Communities & Local Government",DLUHC,08/09/2023,Agency Staff,Safer and Greener Buildings,ALEXANDER MANN SOLUTIONS LTD,,Large,,,5106301479,,Intervention Delivery,Agency Staff,EC2N 3AQ,4434.67,
"Housing, Communities & Local Government",DLUHC,08/09/2023,Agency Staff,Safer and Greener Buildings,ALEXANDER MANN SOLUTIONS LTD,,Large,,,5106301485,,Intervention Delivery,Agency Staff,EC2N 3AQ,2520.24,
"Housing, Communities & Local Government",DLUHC,08/09/2023,Air Travel,Levelling Up,CORPORATE TRAVEL MANAGEMENT(NORTH)L,,Small,,213089972,2100328986,Air,Strategy & Private Offices,Consolidated Monthly Travel August 2023 Air Ticket,BD1 5HQ,1032,
"Housing, Communities & Local Government",DLUHC,08/09/2023,Air Travel,Levelling Up,CORPORATE TRAVEL MANAGEMENT(NORTH)L,,Small,,213089972,2100328986,Air,Strategy & Private Offices,Consolidated Monthly Travel August 2023 Air Ticket,BD1 5HQ,1174.66,
"Housing, Communities & Local Government",DLUHC,08/09/2023,Air Travel,Levelling Up,CORPORATE TRAVEL MANAGEMENT(NORTH)L,,Small,,213089972,2100328986,Air,Community Investment and Funding Service,Consolidated Monthly Travel August 2023 Air Ticket,BD1 5HQ,516.6,
"Housing, Communities & Local Government",DLUHC,08/09/2023,Air Travel,Local Govnmnt Resilience and Communities,CORPORATE TRAVEL MANAGEMENT(NORTH)L,,Small,,213089972,2100328986,Air,Strategy and Private Offices,Consolidated Monthly Travel August 2023 Air Ticket,BD1 5HQ,594.62,
"Housing, Communities & Local Government",DLUHC,08/09/2023,Air Travel,Local Govnmnt Resilience and Communities,CORPORATE TRAVEL MANAGEMENT(NORTH)L,,Small,,213089972,2100328986,Air,Holocaust Memorial UKHMF,Consolidated Monthly Travel August 2023 Air Ticket,BD1 5HQ,17720.9,
"Housing, Communities & Local Government",DLUHC,08/09/2023,Air Travel,Local Govnmnt Resilience and Communities,CORPORATE TRAVEL MANAGEMENT(NORTH)L,,Small,,213089972,2100328986,Air,Local Government Policy,Consolidated Monthly Travel August 2023 Air Ticket,BD1 5HQ,706.31,
"Housing, Communities & Local Government",DLUHC,08/09/2023,Air Travel,Union & Windsor Framework,CORPORATE TRAVEL MANAGEMENT(NORTH)L,,Small,,213089972,2100328986,Air,Union & Devolution,Consolidated Monthly Travel August 2023 Air Ticket,BD1 5HQ,1956.68,
"Housing, Communities & Local Government",DLUHC,08/09/2023,Capital Grants to Private Sect Non Profit,Levelling Up,Sangat Community Association,Yes,Micro,,,2100328972,,Community Investment and Funding Service,COF23 018 Sangat Centre Renovations Capital Grant,BD21 3HU,37453.73,Yes
"Housing, Communities & Local Government",DLUHC,08/09/2023,Consulting,Local Govnmnt Resilience and Communities,ALEXANDER MANN SOLUTIONS LTD,,Large,,,5106301472,,Holocaust Memorial UKHMF,Agency Staff,EC2N 3AQ,3024.29,
"Housing, Communities & Local Government",DLUHC,08/09/2023,Current (non AEF) Grants to Local Authorities,Local Govnmnt Resilience and Communities,BURNLEY BC,,,,,2300003596,,Resilience & Recovery,Business Rates Refund,BB11 2DS,-63097,Yes
"Housing, Communities & Local Government",DLUHC,08/09/2023,Current Grants to Non Profit Bodies,Levelling Up,Sangat Community Association,Yes,Micro,,,2100328973,,Community Investment and Funding Service,COF23 018 Sangat Centre Renovations Rev Grant,BD21 3HU,6000,Yes
"Housing, Communities & Local Government",DLUHC,08/09/2023,ERDF Work in Progress � Capital,Regeneration,CITY OF BRADFORD MC,,,,,7700014341,,Community Investment & Funding Services,ERDF grant payment,BD1 1NN,82444.67,Yes
"Housing, Communities & Local Government",DLUHC,08/09/2023,ERDF Work in Progress � Capital,Regeneration,SOUTH HOLLAND DISTRICT COUNCIL,,,,,7700014344,,Community Investment & Funding Services,ERDF grant payment,PE11 2XE,357811.15,Yes
"Housing, Communities & Local Government",DLUHC,08/09/2023,ERDF Work in Progress � Resource,Regeneration,CITY OF BRADFORD MC,,,,,7700014341,,Community Investment & Funding Services,ERDF grant payment,BD1 1NN,129.56,Yes
"Housing, Communities & Local Government",DLUHC,08/09/2023,ERDF Work in Progress � Resource,Regeneration,MEDILINK EAST MIDLANDS,,Small,,,7700014339,,Community Investment & Funding Services,ERDF grant payment,NG1 1GF,460804.21,Yes
"Housing, Communities & Local Government",DLUHC,08/09/2023,ERDF Work in Progress � Resource,Regeneration,NORTH EAST ENTERPRISE AGENCY LTD,,,,,7700014343,,Community Investment & Funding Services,ERDF grant payment,SR5 2TA,61206.84,Yes
"Housing, Communities & Local Government",DLUHC,08/09/2023,ERDF Work in Progress � Resource,Regeneration,SOUTH HOLLAND DISTRICT COUNCIL,,,,,7700014344,,Community Investment & Funding Services,ERDF grant payment,PE11 2XE,30680.52,Yes
"Housing, Communities & Local Government",DLUHC,08/09/2023,ERDF Work in Progress � Resource,Regeneration,UNIVERSITY OF BIRMINGHAM,,Large,,,7700014340,,Community Investment & Funding Services,ERDF grant payment,B15 2TT,242880.89,Yes
"Housing, Communities & Local Government",DLUHC,08/09/2023,EXP � PURCHASE OF GOODS /SERVICES R & D,CFO and Corporate,GLENIGAN LTD,,Large,,218633327,5106301195,,Analysis and Data,Planning Application & Development Pipe - Research,BH8 8AQ,24987.5,
"Housing, Communities & Local Government",DLUHC,08/09/2023,EXP � PURCHASE OF GOODS /SERVICES R & D,Local Govnmnt Resilience and Communities,MADE TECH LTD,,Medium,,,5106301452,,Elections Directorate,EIP October Delivery (Beta),EC2A 4NE,93432.86,
"Housing, Communities & Local Government",DLUHC,08/09/2023,EXP � PURCHASE OF GOODS /SERVICES R & D,Regeneration,Zaizi Limited,,Micro,,,5106301478,,Leasehold Land & Planning Systems,PRPP Alpha Extension 2,W6 7JP,48349.51,
"Housing, Communities & Local Government",DLUHC,08/09/2023,IT - Service Contracts,CFO and Corporate,AirWalk Consulting Reply Ltd,,,,,5106301450,,Digital,Cyber Resource - Livelink,EH2 3ES,33768,
"Housing, Communities & Local Government",DLUHC,08/09/2023,IT - Service Contracts,CFO and Corporate,ALEXANDER MANN SOLUTIONS LTD,,Large,,,5106301473,,Digital,Agency Staff,EC2N 3AQ,2698.58,
"Housing, Communities & Local Government",DLUHC,08/09/2023,IT - Service Contracts,CFO and Corporate,ALEXANDER MANN SOLUTIONS LTD,,Large,,,5106301475,,Digital,Agency Staff,EC2N 3AQ,1334.52,
"Housing, Communities & Local Government",DLUHC,08/09/2023,IT - Service Contracts,CFO and Corporate,ALEXANDER MANN SOLUTIONS LTD,,Large,,,5106301477,,Digital,Agency Staff,EC2N 3AQ,6005.34,
"Housing, Communities & Local Government",DLUHC,08/09/2023,IT - Service Contracts,CFO and Corporate,ALEXANDER MANN SOLUTIONS LTD,,Large,,,5106301480,,Digital,Agency Staff,EC2N 3AQ,3284.96,
"Housing, Communities & Local Government",DLUHC,08/09/2023,IT - Service Contracts,CFO and Corporate,ARCUS CLOUD SERVICES LTD,,Medium,,,5106301424,,Analysis and Data,Data Analytics Platform,NG24 2AG,85398.58,
"Housing, Communities & Local Government",DLUHC,08/09/2023,IT - Service Contracts,CFO and Corporate,DAISY CORPORATE SERVICES TRADING LT,,Large,,,5106301491,,Digital,Telephony 3 year Service costs,BB9 5SR,1301.75,
"Housing, Communities & Local Government",DLUHC,08/09/2023,IT - Service Contracts,CFO and Corporate,X M A LTD,,Large,,298484148,5106301449,,Digital,6 month extension Hardware Support Servi,NG11 7EP,300,
"Housing, Communities & Local Government",DLUHC,08/09/2023,IT - Service Contracts,CFO and Corporate,Zaizi Limited,,Micro,,,5106301436,,Digital,Front Door Automation Team,W6 7JP,37805.27,
"Housing, Communities & Local Government",DLUHC,08/09/2023,IT - Service Contracts,CFO and Corporate,Zaizi Limited,,Micro,,,5106301436,,Digital,Front Door Automation Team Contingency,W6 7JP,25857.56,
"Housing, Communities & Local Government",DLUHC,08/09/2023,IT - Service Contracts,Resettlements,EXELA TECHNOLOGIES LIMITED,,Large,,,5106301493,,Resettlements,HforU Service Desk 6mth ext,TW20 9AB,18756.33,
"Housing, Communities & Local Government",DLUHC,08/09/2023,IT - Service Contracts,Safer and Greener Buildings,EXELA TECHNOLOGIES LIMITED,,Large,,,5106301421,,Building Systems & Net Zero,EPB Register Helpdesk Service charges,TW20 9AB,2062.59,
"Housing, Communities & Local Government",DLUHC,08/09/2023,IT - Software Maintenance,CFO and Corporate,ARCH CONSULTING LTD,,Small,,543735104,5106301430,,Digital,SAP eForms Maintenance & Development 2 y,W4 1PF,2775,
"Housing, Communities & Local Government",DLUHC,08/09/2023,IT - Software Maintenance,CFO and Corporate,ARCH CONSULTING LTD,,Small,,543735104,5106301431,,Digital,SAP S4 Migration & Fiori Finance Impleme,W4 1PF,68445,
"Housing, Communities & Local Government",DLUHC,08/09/2023,IT Consultancy,CFO and Corporate,AirWalk Consulting Reply Ltd,,,,,5106301453,,Digital,Cloud Engineer Services July22 to Dec22,EH2 3ES,32160,
"Housing, Communities & Local Government",DLUHC,08/09/2023,IT SUPPORT,CFO and Corporate,Zaizi Limited,,Micro,,,5106301492,,Digital,Outsourced Management Service,W6 7JP,13097.51,
"Housing, Communities & Local Government",DLUHC,08/09/2023,Legal Fees,CFO and Corporate,GOVERNMENT LEGAL DEPARTMENT,,Public Bodies,,215580680,5106301445,,Not assigned,Legal Advice,SW1H 9GL,1935.36,
"Housing, Communities & Local Government",DLUHC,08/09/2023,Legal Fees,CFO and Corporate,GOVERNMENT LEGAL DEPARTMENT,,Public Bodies,,215580680,5106301446,,Not assigned,Legal Advice,SW1H 9GL,639.12,
"Housing, Communities & Local Government",DLUHC,08/09/2023,Legal Fees,CFO and Corporate,GOVERNMENT LEGAL DEPARTMENT,,Public Bodies,,215580680,5106301447,,Not assigned,Legal Advice,SW1H 9GL,353.28,
"Housing, Communities & Local Government",DLUHC,08/09/2023,Legal Fees,CFO and Corporate,GOVERNMENT LEGAL DEPARTMENT,,Public Bodies,,215580680,5106301448,,Not assigned,Legal Advice,SW1H 9GL,814.08,
"Housing, Communities & Local Government",DLUHC,08/09/2023,Management Consultancy,Levelling Up,LOCALITY,,Medium,,347998312,5106301418,,Community Investment and Funding Service,Revenue Grants,N1 6DR,20000,
"Housing, Communities & Local Government",DLUHC,08/09/2023,Professional services,Regeneration,LOCALITY,,Medium,,347998312,5106301451,,Chief Planner,DMHP 19/20 Technical Support,N1 6DR,62075.5,
"Housing, Communities & Local Government",DLUHC,08/09/2023,"Rail, Underground and Eurostar",CFO and Corporate,CORPORATE TRAVEL MANAGEMENT(NORTH)L,,Small,,213089972,2100328986,Rail,Analysis and Data,Business Travel Rail August 2023,BD1 5HQ,1432.65,
"Housing, Communities & Local Government",DLUHC,08/09/2023,"Rail, Underground and Eurostar",CFO and Corporate,CORPORATE TRAVEL MANAGEMENT(NORTH)L,,Small,,213089972,2100328986,Rail,Analysis and Data,Business Travel Rail August 2023,BD1 5HQ,5707.1,
"Housing, Communities & Local Government",DLUHC,08/09/2023,"Rail, Underground and Eurostar",CFO and Corporate,CORPORATE TRAVEL MANAGEMENT(NORTH)L,,Small,,213089972,2100328986,Rail,People Capability & Change C/O,Consolidated Monthly Travel August 2023 Rail,BD1 5HQ,265.2,
"Housing, Communities & Local Government",DLUHC,08/09/2023,"Rail, Underground and Eurostar",CFO and Corporate,CORPORATE TRAVEL MANAGEMENT(NORTH)L,,Small,,213089972,2100328986,Rail,Digital,Consolidated Monthly Travel August 2023 Rail,BD1 5HQ,497.8,
"Housing, Communities & Local Government",DLUHC,08/09/2023,"Rail, Underground and Eurostar",CFO and Corporate,CORPORATE TRAVEL MANAGEMENT(NORTH)L,,Small,,213089972,2100328986,Rail,Digital,Consolidated Monthly Travel August 2023 Rail,BD1 5HQ,3657.7,
"Housing, Communities & Local Government",DLUHC,08/09/2023,"Rail, Underground and Eurostar",CFO and Corporate,CORPORATE TRAVEL MANAGEMENT(NORTH)L,,Small,,213089972,2100328986,Rail,Digital,Consolidated Monthly Travel August 2023 Rail,BD1 5HQ,273.4,
"Housing, Communities & Local Government",DLUHC,08/09/2023,"Rail, Underground and Eurostar",CFO and Corporate,CORPORATE TRAVEL MANAGEMENT(NORTH)L,,Small,,213089972,2100328986,Rail,Finance,Consolidated Monthly Travel August 2023 Rail,BD1 5HQ,698.1,
"Housing, Communities & Local Government",DLUHC,08/09/2023,"Rail, Underground and Eurostar",CFO and Corporate,CORPORATE TRAVEL MANAGEMENT(NORTH)L,,Small,,213089972,2100328986,Rail,Finance,Consolidated Monthly Travel August 2023 Rail,BD1 5HQ,384.55,
